Workbook

Sheet Notice
B2: DISCLAIMER
B4: 1. This workbook is the property of Fonterra Co-operative Group Limited (Fonterra).
B5: 2. The workbook contains the higher level inputs and calculations underpinning the calculation of the Farmgate Milk Price for the 2016/17 season.
B6: To protect the commercial confidentiality of certain information derived from Fonterra's actual performance data, a number of inputs have been aggregated for the purposes of this workbook.
B7: The workbook does not contain all the intermediate calculations required to calculate the Farmgate Milk Price. For example, the workbook does not contain the calculations required to convert contracted prices into 'shipment month' prices, or the
B8: 'tilted annuity' calculations used to calculate the WACC charge and depreciation inputs.
B9: 3. Fonterra does not warrant that the workbook is free from error, and explicitly disclaims any liability to any third party with respect to any use they may make of the workbook.
B10: 4. Third party recipients of this workbook use it entirely at their own risk. Fonterra will not accept any responsibility any loss which may result from use of the workbook including the direct or indirect consequences of computer viruses.
B11: 5. The workbook was not designed for use by third parties and Fonterra provides no assurance that third parties will be able to be readily operate the workbook.
B12: 6. The workbook was updated on 4 October 2017 to correct a minor input error. This update did not have any impact on any calculations or outputs.

Sheet Global
K1: F17 Milk Price | N1: =Summary!L104 -> 6.127782999
K2: Average FX conversion rate (Sales) | N2: =Summary!L20 -> 0.6923938352
F7: Period Ended | O7: =K34 -> 2017-05-31 | Q7: =EOMONTH(T7,-1) -> 2016-05-31 | R7: =EOMONTH(S7,-1) -> 2016-04-30 | S7: =EOMONTH(T7,-1) -> 2016-05-31 | T7: =K32 -> 2016-06-30 | U7: =EOMONTH(T7,1) -> 2016-07-31 | V7: 2016-08-31 | W7: 2016-09-30 | X7: 2016-10-31 | Y7: 2016-11-30 | Z7: 2016-12-31 | AA7: 2017-01-31 | AB7: 2017-02-28 | AC7: 2017-03-31 | AD7: 2017-04-30 | AE7: 2017-05-31 | AF7: 2017-06-30 | AG7: 2017-07-31 | AH7: 2017-08-31 | AI7: 2017-09-30 | AJ7: 2017-10-31 | AK7: 2017-11-30 | AL7: 2017-12-31 | AM7: 2018-01-31 | AN7: 2018-02-28 | AO7: 2018-03-31 | AP7: =EOMONTH(AO7,1) -> 2018-04-30 | AQ7: =EOMONTH(AP7,1) -> 2018-05-31 | AR7: =EOMONTH(AQ7,1) -> 2018-06-30
D8: Calendar Year | T8: =YEAR(T7) -> 2016 | U8: 2016 | V8: 2016 | W8: 2016 | X8: 2016 | Y8: 2016 | Z8: 2016 | AA8: 2017 | AB8: 2017 | AC8: 2017 | AD8: 2017 | AE8: 2017 | AF8: 2017 | AG8: 2017 | AH8: 2017 | AI8: 2017 | AJ8: 2017 | AK8: 2017 | AL8: 2017 | AM8: 2018 | AN8: 2018 | AO8: 2018
D9: Month Number | T9: 1 | U9: =T9+1 -> 2 | V9: 3 | W9: 4 | X9: 5 | Y9: 6 | Z9: 7 | AA9: 8 | AB9: 9 | AC9: 10 | AD9: 11 | AE9: 12 | AF9: 13 | AG9: 14 | AH9: 15 | AI9: 16 | AJ9: 17 | AK9: 18 | AL9: 19 | AM9: 20 | AN9: 21 | AO9: 22
D10: Days in Period | R10: =R7-EOMONTH(R7,-1) -> 30 | S10: =S7-R7 -> 31 | T10: =T7-S7 -> 30 | U10: =U7-T7 -> 31 | V10: 31 | W10: 30 | X10: 31 | Y10: 30 | Z10: 31 | AA10: 31 | AB10: 28 | AC10: 31 | AD10: 30 | AE10: 31 | AF10: 30 | AG10: 31 | AH10: 31 | AI10: 30 | AJ10: 31 | AK10: 30 | AL10: 31 | AM10: 31 | AN10: 28 | AO10: 31
D11: Year to Go flag | O11: =INDEX(LookupTables!E11:E28,LookupTables!I11) -> 2017-11-30 | P11: =LookupTables!I11 -> 18 | T11: =IF(T9<=$P$11,1,0) -> 1 | U11: 1 | V11: 1 | W11: 1 | X11: 1 | Y11: 1 | Z11: 1 | AA11: 1 | AB11: 1 | AC11: 1 | AD11: 1 | AE11: 1 | AF11: 1 | AG11: 1 | AH11: 1 | AI11: 1 | AJ11: 1 | AK11: 1 | AL11: 0 | AM11: 0 | AN11: 0 | AO11: 0
C13: GENERAL MODEL INPUTS
C15: MODEL INFORMATION
C17: This model contains circular logic relating to the calculation of tax expense and net working capital. It is therefore necessary to set the calculation approach to 'iterative calculations.'
C20: INPUT KEY
F22: Colour Key: | K22: Description
K23: General Input Cells
K24: Calculation cell with different logic to adjacent cells
K25: Normal general input cells where inputs have been 'bundled' into a higher level / different input for purposes of this simplified model.
K26: Additional input cells added for purpose of this public model
K27: Cells intentionally left blank in 'Calculations' Tab
C29: DATE AND TIME DATA
A31: 7 | F31: First Day of the season | K31: 2016-06-01
F32: End Date of First Period | K32: =EOMONTH(K31,0) -> 2016-06-30
F34: End of season | K34: =EOMONTH(K31,11) -> 2017-05-31
C36: GLOBAL TIME DEPENDENT INPUTS | R36: =R7 -> 2016-04-30 | S36: 2016-05-31 | T36: 2016-06-30 | U36: 2016-07-31 | V36: 2016-08-31 | W36: 2016-09-30 | X36: 2016-10-31 | Y36: 2016-11-30 | Z36: 2016-12-31 | AA36: 2017-01-31 | AB36: 2017-02-28 | AC36: 2017-03-31 | AD36: 2017-04-30 | AE36: 2017-05-31 | AF36: 2017-06-30 | AG36: 2017-07-31 | AH36: 2017-08-31 | AI36: 2017-09-30 | AJ36: 2017-10-31 | AK36: 2017-11-30 | AL36: 2017-12-31 | AM36: 2018-01-31 | AN36: 2018-02-28 | AO36: 2018-03-31
F38: WACC - Annual | O38: 0.056
F39: WACC - monthly | O39: =(1+$O$38)^(1/12)-1 -> 0.004551006625
C41: SUMMARY OF ERROR CHECKS
F43: Worksheet name:
F44: Data Input | K44: ='Data Input'!J4 -> Okay
F45: Calculations | K45: =Calculations!J5 -> Okay
F46: Summary | K46: =Summary!L141 -> Okay | L46: If the 'Summary' sheet error check returns 'error', press F9 for more iterations until the figure (right) is close to zero. | U46: =SUM(Summary!Q141:AJ141) -> 4.227811019e-10
F47: Overall model | K47: =IF(COUNTA(K44:K46)=COUNTIF(K44:K46,"Okay"),"Okay","Error") -> Okay
F49: Calculations Worksheet:
F50: Debtor Reconciliation Check | K50: =Calculations!B906 -> Okay
F51: Closing Inventory Check | K51: =Calculations!B976 -> Okay
F52: FIFO Production Volume Check | K52: =Calculations!B1010 -> Okay
F53: Milk Solids Volume Check | K53: =Calculations!B1029 -> Okay
F54: Milk Price Calculation Check | K54: =Calculations!B1253 -> Okay
F55: PV of Cash Flow Check | K55: =Calculations!B1267 -> Okay
F57: Summary Worksheet
F58: Operating Cash Flow Check | K58: =Summary!L141 -> Okay

Sheet Data Input
F4: =Calculations!F5 -> Overall error check | J4: =IF(COUNTA(B:B)=COUNTIF(B:B,"Okay"),"Okay","Error") -> Okay | M4: Annual | T4: Monthly
J6: Units | K6: Input | N6: =Global!O7 -> 2017-05-31 | Q6: Date | R6: =Global!R7 -> 2016-04-30 | S6: =Global!S7 -> 2016-05-31 | T6: =Global!T7 -> 2016-06-30 | U6: =Global!U7 -> 2016-07-31 | V6: =Global!V7 -> 2016-08-31 | W6: =Global!W7 -> 2016-09-30 | X6: =Global!X7 -> 2016-10-31 | Y6: =Global!Y7 -> 2016-11-30 | Z6: =Global!Z7 -> 2016-12-31 | AA6: =Global!AA7 -> 2017-01-31 | AB6: =Global!AB7 -> 2017-02-28 | AC6: =Global!AC7 -> 2017-03-31 | AD6: =Global!AD7 -> 2017-04-30 | AE6: =Global!AE7 -> 2017-05-31 | AF6: =Global!AF7 -> 2017-06-30 | AG6: =Global!AG7 -> 2017-07-31 | AH6: =Global!AH7 -> 2017-08-31 | AI6: =Global!AI7 -> 2017-09-30 | AJ6: =Global!AJ7 -> 2017-10-31 | AK6: =Global!AK7 -> 2017-11-30 | AL6: =Global!AL7 -> 2017-12-31 | AM6: =Global!AM7 -> 2018-01-31 | AN6: =Global!AN7 -> 2018-02-28 | AO6: =Global!AO7 -> 2018-03-31
D7: Calendar Year | T7: =YEAR(T6) -> 2016 | U7: 2016 | V7: 2016 | W7: 2016 | X7: 2016 | Y7: 2016 | Z7: 2016 | AA7: =YEAR(AA6) -> 2017 | AB7: 2017 | AC7: 2017 | AD7: 2017 | AE7: 2017 | AF7: 2017 | AG7: 2017 | AH7: 2017 | AI7: 2017 | AJ7: 2017 | AK7: 2017 | AL7: 2017 | AM7: 2018 | AN7: =YEAR(AN6) -> 2018 | AO7: =YEAR(AO6) -> 2018
D8: Month Number | T8: =Global!T9 -> 1 | U8: =Global!U9 -> 2 | V8: =Global!V9 -> 3 | W8: =Global!W9 -> 4 | X8: =Global!X9 -> 5 | Y8: =Global!Y9 -> 6 | Z8: =Global!Z9 -> 7 | AA8: =Global!AA9 -> 8 | AB8: =Global!AB9 -> 9 | AC8: =Global!AC9 -> 10 | AD8: =Global!AD9 -> 11 | AE8: =Global!AE9 -> 12 | AF8: =Global!AF9 -> 13 | AG8: =Global!AG9 -> 14 | AH8: =Global!AH9 -> 15 | AI8: =Global!AI9 -> 16 | AJ8: =Global!AJ9 -> 17 | AK8: =Global!AK9 -> 18 | AL8: =Global!AL9 -> 19 | AM8: =Global!AM9 -> 20 | AN8: =Global!AN9 -> 21 | AO8: =Global!AO9 -> 22
D9: Days in Period | R9: =Global!R10 -> 30 | S9: =Global!S10 -> 31 | T9: =Global!T10 -> 30 | U9: =Global!U10 -> 31 | V9: =Global!V10 -> 31 | W9: =Global!W10 -> 30 | X9: =Global!X10 -> 31 | Y9: =Global!Y10 -> 30 | Z9: =Global!Z10 -> 31 | AA9: =Global!AA10 -> 31 | AB9: =Global!AB10 -> 28 | AC9: =Global!AC10 -> 31 | AD9: =Global!AD10 -> 30 | AE9: =Global!AE10 -> 31 | AF9: =Global!AF10 -> 30 | AG9: =Global!AG10 -> 31 | AH9: =Global!AH10 -> 31 | AI9: =Global!AI10 -> 30 | AJ9: =Global!AJ10 -> 31 | AK9: =Global!AK10 -> 30 | AL9: =Global!AL10 -> 31 | AM9: =Global!AM10 -> 31 | AN9: =Global!AN10 -> 28 | AO9: =Global!AO10 -> 31
D10: Year to Go flag | N10: 1 | P10: =Global!P11 -> 18 | T10: =Global!T11 -> 1 | U10: =Global!U11 -> 1 | V10: =Global!V11 -> 1 | W10: =Global!W11 -> 1 | X10: =Global!X11 -> 1 | Y10: =Global!Y11 -> 1 | Z10: =Global!Z11 -> 1 | AA10: =Global!AA11 -> 1 | AB10: =Global!AB11 -> 1 | AC10: =Global!AC11 -> 1 | AD10: =Global!AD11 -> 1 | AE10: =Global!AE11 -> 1 | AF10: =Global!AF11 -> 1 | AG10: =Global!AG11 -> 1 | AH10: =Global!AH11 -> 1 | AI10: =Global!AI11 -> 1 | AJ10: =Global!AJ11 -> 1 | AK10: =Global!AK11 -> 1 | AL10: =Global!AL11 -> 0 | AM10: =Global!AM11 -> 0 | AN10: =Global!AN11 -> 0 | AO10: =Global!AO11 -> 0
Q11: updated | T11: =T6 -> 2016-06-30 | U11: 2016-07-31 | V11: 2016-08-31 | W11: 2016-09-30 | X11: 2016-10-31 | Y11: 2016-11-30 | Z11: 2016-12-31 | AA11: 2017-01-31 | AB11: 2017-02-28 | AC11: 2017-03-31 | AD11: 2017-04-30 | AE11: 2017-05-31 | AF11: 2017-06-30 | AG11: 2017-07-31 | AH11: 2017-08-31 | AI11: 2017-09-30 | AJ11: 2017-10-31 | AK11: 2017-11-30 | AL11: 2017-12-31 | AM11: 2018-01-31 | AN11: =AN6 -> 2018-02-28 | AO11: =AO6 -> 2018-03-31
F14: GLOBAL
F16: STATUS / DATA SOURCE | J16: Weighted average annual FX rate for revenue. Also used in this simplified model to translate costs. In practice, USD purchases have a different time profile, & therefore weighted average conversion rate, to sales.
J17: We have adjusted the USD cost inputs to correct for this difference (so reported NZD values reconcile to the actual F17 milk price calculation.)
F20: FX
F22: Weighted average annual FX rate | R22: 0.6923938352 | S22: 0.6923938352 | T22: 0.6923938352 | U22: 0.6923938352 | V22: 0.6923938352 | W22: 0.6923938352 | X22: 0.6923938352 | Y22: 0.6923938352 | Z22: 0.6923938352 | AA22: 0.6923938352 | AB22: 0.6923938352 | AC22: 0.6923938352 | AD22: 0.6923938352 | AE22: 0.6923938352 | AF22: 0.6923938352 | AG22: 0.6923938352 | AH22: 0.6923938352 | AI22: 0.6923938352 | AJ22: 0.6923938352 | AK22: 0.6923938352 | AL22: 0.6923938352 | AM22: 0.6923938352 | AN22: 0.6923938352
F24: MILK SUPPLY
F26: STATUS / DATA SOURCE | J26: The minor difference between 'milk paid for' and 'milk collected' reflects circumstances where Fonterra is unable to collect and process milk (eg due to adverse weather events) but is contractually obliged to pay for it.
J27: The calculation of the aggregate amount available to pay for milk is based on milk actually collected and therefore available for processing. The average milk price per kgMS is calculated based on all milk paid for by Fonterra.
F30: KGMS | O30: YTD | P30: YTG
F31: Milk Paid For | J31: 000 kgMS | N31: =SUM(T31:AE31) -> 1525717.315 | O31: =SUMIF($T$10:$AE$10,1,T31:AE31) -> 1525717.315 | P31: =N31-O31 -> 0 | T31: 9918.4371 | U31: 16346.08 | V31: 95761.0547 | W31: 174736.8535 | X31: 204164.5346 | Y31: 193840.691 | Z31: 186307.0726 | AA31: 172539.6 | AB31: 140933.3926 | AC31: 147011.5642 | AD31: 117681.059 | AE31: 66476.9756
F32: Milk Supply collected | J32: 000 kgMS | N32: =SUM(T32:AE32) -> 1524841.946 | T32: 9918.4371 | U32: 16346.08 | V32: 95761.0547 | W32: 174450.0184 | X32: 204101.6848 | Y32: 193534.9963 | Z32: 186231.3931 | AA32: 172539.6 | AB32: 140933.3926 | AC32: 147011.5642 | AD32: 117545.3258 | AE32: 66468.3992
F33: Monthly distribution | J33: % | N33: =SUM(T33:AE33) -> 1 | T33: =T32/$N$32 -> 0.006504567326 | U33: =U32/$N$32 -> 0.01071985201 | V33: 0.062800643 | W33: 0.1144053119 | X33: 0.1338510429 | Y33: 0.1269213487 | Z33: 0.1221316042 | AA33: 0.1131524486 | AB33: 0.0924249185 | AC33: 0.09641101792 | AD33: 0.07708689159 | AE33: 0.04359035333
F36: PRODUCTION
F38: STATUS / DATA SOURCE | J38: Milk composition shown below is weighted average composition by quarter. In practice monthly average composition is used. The detail of the loss and composition assumptions reflects information that is confidential
J39: to Fonterra and is therefore not disclosed. We have left the relevant logic intact but have hardcoded the results of the production volume calculations on the Calculations tab.
F40: National average composition
F41: Fat | J41: % w/w | T41: 0.04749741292 | U41: 0.04749741292 | V41: 0.04749741292 | W41: 0.045957805 | X41: 0.045957805 | Y41: 0.045957805 | Z41: 0.04868948526 | AA41: 0.04868948526 | AB41: 0.04868948526 | AC41: 0.05550252759 | AD41: 0.05550252759 | AE41: 0.05550252759
F42: Protein | J42: % w/w | T42: 0.03738925755 | U42: 0.03738925755 | V42: 0.03738925755 | W42: 0.03600196147 | X42: 0.03600196147 | Y42: 0.03600196147 | Z42: 0.03779714617 | AA42: 0.03779714617 | AB42: 0.03779714617 | AC42: 0.04212088439 | AD42: 0.04212088439 | AE42: 0.04212088439
F43: Lactose + Minerals | J43: % w/w | T43: 0.0540378134 | U43: 0.0540378134 | V43: 0.0540378134 | W43: 0.05459307745 | X43: 0.05459307745 | Y43: 0.05459307745 | Z43: 0.05350290988 | AA43: 0.05350290988 | AB43: 0.05350290988 | AC43: 0.05227745509 | AD43: 0.05227745509 | AE43: 0.05227745509
F45: Milk Composition Input Parameters
F46: Cream Fat Content | J46: % | N46: 0.42
F47: Skimmilk Fat Content | J47: % | N47: 0.0008
F48: Wholemilk Density | J48: % | N48: 1.032
F50: Lactose Standardising Inputs
F51: Lactose losses - WMP | J51: %
F52: Lactose losses - SMP | J52: %
F53: Lactose losses - BMP | J53: %
F54: Lactose content of lactose powder | J54: % | N54: 0.95
F56: Composition Target | L56: Fat | M56: Protein | N56: Moisture
F57: Butter | J57: %w/w
F58: AMF | J58: %w/w
F59: SMP | J59: %w/w
F60: BMP | J60: %w/w
F61: WMP | J61: %w/w
F63: Value Component Usage | L63: Fat | M63: Protein
F64: Butter | J64: kg/mt
F65: AMF | J65: kg/mt
F66: SMP | J66: kg/mt
F67: BMP | J67: kg/mt
F68: WMP | J68: kg/mt
F70: Product mix
F71: Annual average ratio of WMP MT to WMP + SMP | J71: % | N71: =SUMPRODUCT($T$33:$AE$33,T71:AE71) -> 0.7459104289 | T71: 0.7459104289 | U71: 0.7459104289 | V71: 0.7459104289 | W71: 0.7459104289 | X71: 0.7459104289 | Y71: 0.7459104289 | Z71: 0.7459104289 | AA71: 0.7459104289 | AB71: 0.7459104289 | AC71: 0.7459104289 | AD71: 0.7459104289 | AE71: 0.7459104289
F72: Annual average ratio of Butter MT to Butter + AMF | J72: % | N72: =SUMPRODUCT($T$33:$AE$33,T72:AE72) -> 0.6294598064 | T72: 0.6294598064 | U72: 0.6294598064 | V72: 0.6294598064 | W72: 0.6294598064 | X72: 0.6294598064 | Y72: 0.6294598064 | Z72: 0.6294598064 | AA72: 0.6294598064 | AB72: 0.6294598064 | AC72: 0.6294598064 | AD72: 0.6294598064 | AE72: 0.6294598064
F74: Fat : Protein Valued Component Ratio | N74: 0.67
F77: REVENUE
F79: STATUS / DATA SOURCE | J79: Prices and sales phasings entered as 3 month averages, consistent with the F17 Milk Price Statement.
J80: Downgrade adjustments are normally calculated separately but have been included here in average prices.
J81: Lactose prices to model are for calculated prices of lactose in month of use, under the assumption that lactose has been imported in prior months and stored for a period prior to usage.
E83: 1. Base Commodity Prices
F84: Full Year Commodity Prices - To Model
F85: Butter | J85: USD | N85: =SUM(T85:AO85)/COUNTIF(T85:AO85,"<>0") -> 4305.805044 | T85: 0 | U85: 0 | V85: 2936.208151 | W85: 2936.208151 | X85: 2936.208151 | Y85: 3588.540158 | Z85: 3588.540158 | AA85: 3588.540158 | AB85: 4387.552713 | AC85: 4387.552713 | AD85: 4387.552713 | AE85: 5015.450408 | AF85: 5015.450408 | AG85: 5015.450408 | AH85: 5601.273791 | AI85: 5601.273791 | AJ85: 5601.273791 | AK85: 0 | AL85: 0 | AM85: 0 | AN85: 0 | AO85: 0
F86: AMF | J86: USD | N86: =SUM(T86:AO86)/COUNTIF(T86:AO86,"<>0") -> 5266.841377 | T86: 0 | U86: 0 | V86: 3840.171064 | W86: 3840.171064 | X86: 3840.171064 | Y86: 4654.590958 | Z86: 4654.590958 | AA86: 4654.590958 | AB86: 5496.871287 | AC86: 5496.871287 | AD86: 5496.871287 | AE86: 6072.583191 | AF86: 6072.583191 | AG86: 6072.583191 | AH86: 6269.990386 | AI86: 6269.990386 | AJ86: 6269.990386 | AK86: 0 | AL86: 0 | AM86: 0 | AN86: 0 | AO86: 0
F87: SMP | J87: USD | N87: =SUM(T87:AO87)/COUNTIF(T87:AO87,"<>0") -> 2193.557744 | T87: 0 | U87: 0 | V87: 1918.386189 | W87: 1918.386189 | X87: 1918.386189 | Y87: 2236.33605 | Z87: 2236.33605 | AA87: 2236.33605 | AB87: 2575.755874 | AC87: 2575.755874 | AD87: 2575.755874 | AE87: 2135.074348 | AF87: 2135.074348 | AG87: 2135.074348 | AH87: 2102.236257 | AI87: 2102.236257 | AJ87: 2102.236257 | AK87: 0 | AL87: 0 | AM87: 0 | AN87: 0 | AO87: 0
F88: BMP | J88: USD | N88: =SUM(T88:AO88)/COUNTIF(T88:AO88,"<>0") -> 2113.714384 | T88: 0 | U88: 0 | V88: 1766.524609 | W88: 1766.524609 | X88: 1766.524609 | Y88: 2337.407276 | Z88: 2337.407276 | AA88: 2337.407276 | AB88: 2655.409617 | AC88: 2655.409617 | AD88: 2655.409617 | AE88: 1899.987639 | AF88: 1899.987639 | AG88: 1899.987639 | AH88: 1909.242778 | AI88: 1909.242778 | AJ88: 1909.242778 | AK88: 0 | AL88: 0 | AM88: 0 | AN88: 0 | AO88: 0
F89: WMP | J89: USD | N89: =SUM(T89:AO89)/COUNTIF(T89:AO89,"<>0") -> 2837.301597 | T89: 0 | U89: 0 | V89: 2271.143696 | W89: 2271.143696 | X89: 2271.143696 | Y89: 2709.346312 | Z89: 2709.346312 | AA89: 2709.346312 | AB89: 3249.614973 | AC89: 3249.614973 | AD89: 3249.614973 | AE89: 3005.466301 | AF89: 3005.466301 | AG89: 3005.466301 | AH89: 2950.936703 | AI89: 2950.936703 | AJ89: 2950.936703 | AK89: 0 | AL89: 0 | AM89: 0 | AN89: 0 | AO89: 0
F91: Lactose
F92: Fonterra Price | J92: USD | M92: 1
F93: Competitor Price | J93: USD | M93: 2 | N93: =SUMPRODUCT($T$93:$AE$93,Calculations!$T$216:$AE$216)/SUM(Calculations!$T$216:$AE$216) -> 728.3111171 | T93: 521.9004874 | U93: 543.8504457 | V93: 566.6614228 | W93: 609.4374489 | X93: 634.7134943 | Y93: 668.0646849 | Z93: 703.7070701 | AA93: 757.1620001 | AB93: 791.7323819 | AC93: 820.2448313 | AD93: 852.0554969 | AE93: 868.0966595
F94: Adjustment for difference in average FX | J94: USD | N94: 9.879830038
F95: Lactose | J95: USD | M95: =IF(N92<N93,1,2) -> 1 | N95: =CHOOSE($M$95,N$92,N$93) -> 0 | T95: =T93+$N$94 -> 531.7803175 | U95: 553.7302758 | V95: 576.5412529 | W95: 619.3172789 | X95: 644.5933243 | Y95: 677.944515 | Z95: 713.5869001 | AA95: 767.0418301 | AB95: 801.612212 | AC95: 830.1246613 | AD95: 861.9353269 | AE95: 877.9764896
E97: 2. Sales Phasing
F98: To Model: Selected Full Year Percentage Sales Phasings Adjusted to Align to YTD Percentage Phasings
F99: Butter | J99: % | N99: =SUM(T99:AO99) -> 1 | T99: 0 | U99: 0 | V99: 0 | W99: 0.05212147231 | X99: 0.05212147231 | Y99: 0.1120413189 | Z99: 0.1120413189 | AA99: 0.1120413189 | AB99: 0.08001270659 | AC99: 0.08001270659 | AD99: 0.08001270659 | AE99: 0.07644618626 | AF99: 0.07644618626 | AG99: 0.07644618626 | AH99: 0.0300854734 | AI99: 0.0300854734 | AJ99: 0.0300854734 | AK99: 0 | AL99: 0 | AM99: 0 | AN99: 0 | AO99: 0
F100: AMF | J100: % | N100: =SUM(T100:AO100) -> 1 | T100: 0 | U100: 0 | V100: 0 | W100: 0.09652464039 | X100: 0.09652464039 | Y100: 0.1087338528 | Z100: 0.1087338528 | AA100: 0.1087338528 | AB100: 0.06380553584 | AC100: 0.06380553584 | AD100: 0.06380553584 | AE100: 0.08421535172 | AF100: 0.08421535172 | AG100: 0.08421535172 | AH100: 0.0122288327 | AI100: 0.0122288327 | AJ100: 0.0122288327 | AK100: 0 | AL100: 0 | AM100: 0 | AN100: 0 | AO100: 0
F101: SMP | J101: % | N101: =SUM(T101:AO101) -> 1 | T101: 0 | U101: 0 | V101: 0 | W101: 0.08375901178 | X101: 0.08375901178 | Y101: 0.1193760589 | Z101: 0.1193760589 | AA101: 0.1193760589 | AB101: 0.06191974377 | AC101: 0.06191974377 | AD101: 0.06191974377 | AE101: 0.08317644423 | AF101: 0.08317644423 | AG101: 0.08317644423 | AH101: 0.01302174529 | AI101: 0.01302174529 | AJ101: 0.01302174529 | AK101: 0 | AL101: 0 | AM101: 0 | AN101: 0 | AO101: 0
F102: BMP | J102: % | N102: =SUM(T102:AO102) -> 1 | T102: 0 | U102: 0 | V102: 0 | W102: 0.01914798212 | X102: 0.01914798212 | Y102: 0.08942779152 | Z102: 0.08942779152 | AA102: 0.08942779152 | AB102: 0.08728005806 | AC102: 0.08728005806 | AD102: 0.08728005806 | AE102: 0.1277536558 | AF102: 0.1277536558 | AG102: 0.1277536558 | AH102: 0.01610650654 | AI102: 0.01610650654 | AJ102: 0.01610650654 | AK102: 0 | AL102: 0 | AM102: 0 | AN102: 0 | AO102: 0
F103: WMP | J103: % | N103: =SUM(T103:AO103) -> 1 | T103: 0 | U103: 0 | V103: 0 | W103: 0.07034337776 | X103: 0.07034337776 | Y103: 0.112519847 | Z103: 0.112519847 | AA103: 0.112519847 | AB103: 0.07395410743 | AC103: 0.07395410743 | AD103: 0.07395410743 | AE103: 0.0885751356 | AF103: 0.0885751356 | AG103: 0.0885751356 | AH103: 0.01138865812 | AI103: 0.01138865812 | AJ103: 0.01138865812 | AK103: 0 | AL103: 0 | AM103: 0 | AN103: 0 | AO103: 0
E105: 3. Edible, Stockfood and Placement Spec Downgrade
L107: Butter | M107: AMF | N107: SMP | O107: BMP | P107: WMP
F108: Placement Specs Downgrade Adjustment | J108: % of Loss in Price x % of Production
F109: Edible Downgrade Downgrade Adjustment | J109: % of Loss in Price x % of Production
F110: Stockfood Downgrade Downgrade Adjustment | J110: % of Loss in Price x % of Production
E112: 4. Trader's Commission
F114: USD fixed costs | J114: USD 000s
F115: NZD fixed costs | J115: NZD 000s | N115: 106195.2616
F116: Annual production sold on GDT | J116: %
F117: Sales support cost across all volume | J117: USD / MT
F119: GDT fees schedule thresholds
F120: Base level threshold (upper limit) | J120: MT | N120: 0
F121: 2nd level threshold (upper limit) | J121: MT | N121: 50000
F122: 3rd level threshold (upper limit) | J122: MT | N122: 250000
F124: Base level threshold | J124: USD / MT | N124: 0
F125: 2nd level threshold | J125: USD / MT | N125: 30
F126: 3rd level threshold | J126: USD / MT | N126: 20
F127: Commission costs beyond 3rd level threshold | J127: USD / MT | N127: 5
F129: Fixed commission phasing | J129: % | N129: =SUM(V129:AJ129) -> 1 | V129: 0.06859456559 | W129: 0.0813057324 | X129: 0.0813057324 | Y129: 0.08862245567 | Z129: 0.08862245567 | AA129: 0.08862245567 | AB129: 0.0812730036 | AC129: 0.0812730036 | AD129: 0.0812730036 | AE129: 0.08397733388 | AF129: 0.08397733388 | AG129: 0.08397733388 | AH129: 0.002391863386 | AI129: 0.002391863386 | AJ129: 0.002391863386
F132: COLLECTION
F134: STATUS / DATA SOURCE
F137: By Product Diversion (Transport Cost) | J137: NZD '000
F138: Farm Milk Collection | J138: NZD '000 | N138: 345987.6783
F139: Total | J139: NZD '000 | N139: =SUM(N137:N138) -> 345987.6783
F141: Phasing | J141: NZD '000 | N141: =SUM(Q141:AO141) -> 1 | T141: 0.04133948466 | U141: 0.04624914536 | V141: 0.06282986389 | W141: 0.1024957554 | X141: 0.1336531502 | Y141: 0.1259140978 | Z141: 0.1101401768 | AA141: 0.1014414357 | AB141: 0.0767290354 | AC141: 0.07488876682 | AD141: 0.06680260318 | AE141: 0.0575164849
F143: OPEX
F145: STATUS / DATA SOURCE | J145: NOTE: (a) weighted average unit costs across all RCPs, given F17 actual product mix (b) average unit costs grossed up for weighted average rework volumes.
F149: Variable Costs
L150: Butter | M150: AMF | N150: SMP | O150: BMP | P150: WMP
F151: Production | J151: MT | L151: =Calculations!$N$185 -> 256440.1118 | M151: =Calculations!$N$186 -> 153625.0008 | N151: =Calculations!$N$187 -> 619309.7871 | O151: =Calculations!$N$188 -> 62601.35021 | P151: =Calculations!$N$189 -> 1826261.221
F152: Rework | J152: MT
F153: Total Manufacturer | J153: MT
F154: Average Revenue per MT | J154: NZD 000s | L154: =Calculations!N353 -> 6096.5885 | M154: =Calculations!N354 -> 7331.243377 | N154: =Calculations!N355 -> 3199.938483 | O154: =Calculations!N356 -> 3192.512518 | P154: =Calculations!N357 -> 4122.658086
F155: Weights | J155: % | L155: =L151/SUM($L$151:$P$151) -> 0.08787499797 | M155: =M151/SUM($L$151:$P$151) -> 0.05264307731 | N155: =N151/SUM($L$151:$P$151) -> 0.2122204904 | O155: =O151/SUM($L$151:$P$151) -> 0.02145176698 | P155: =P151/SUM($L$151:$P$151) -> 0.6258096673
L156: Butter | M156: AMF | N156: SMP | O156: BMP | P156: WMP
F157: Rework - downgrade adjustment | J157: % of Production
F158: Packaging costs | J158: NZD / MT | L158: 163.0359253 | M158: 163.0359253 | N158: 163.0359253 | O158: 163.0359253 | P158: 163.0359253
F159: Energy (Exclusive of ETS Costs) | J159: NZD / MT
F160: Water, cleaning / CIP, consumables, effluent, lab, carbon | J160: NZD / MT
F161: Cleaning & CIP | J161: NZD / MT
F162: Consumables | J162: NZD / MT
F163: Effluent | J163: NZD / MT
F164: Laboratory | J164: NZD / MT
F165: Carbon Credit Requirement | J165: MT CO2e / MT
F167: Fixed Manufacturing Costs
F168: Wages & ERE | J168: NZD 000s
F169: Repairs & Maintenance | J169: NZD 000s
F170: Energy | J170: NZD 000s
F171: Water (Fixed) | J171: NZD 000s
F172: Cleaning & CIP (Fixed) | J172: NZD 000s
F173: Consumables (Fixed) | J173: NZD 000s
F174: Effluent (Fixed) | J174: NZD 000s
F175: Laboratory (Fixed) | J175: NZD 000s
F176: Total | J176: NZD 000s | N176: =SUM(N168:N170) -> 0
F178: Site Overheads
F179: Staff Costs | J179: NZD 000s
F180: Other | J180: NZD 000s | N180: 375112.6422
F181: Total | J181: NZD 000s | N181: =N180 -> 375112.6422
F183: Fixed Opex - Phasing | J183: % | N183: =SUM(T183:AE183) -> 1 | T183: 0.0953967276 | U183: 0.09545026095 | V183: 0.08759421194 | W183: 0.08041636686 | X183: 0.08181526152 | Y183: 0.07762094773 | Z183: 0.07879251644 | AA183: 0.07472657194 | AB183: 0.07246617621 | AC183: 0.07832896852 | AD183: 0.08200343218 | AE183: 0.0953885581
F185: Lactose CIF costs per MT | J185: USD | T185: 90.38491208 | U185: 87.09958462 | V185: 82.85494768 | W185: 83.16426542 | X185: 87.28113782 | Y185: 88.39082864 | Z185: 86.19159147 | AA185: 78.38062018 | AB185: 72.27725655 | AC185: 70.36435187 | AD185: 72.10577188 | AE185: 85.01092353
F187: NZUSSPOT Index | J187: NZD / MT CO2e | T187: 17.19863636 | U187: 17.97285714 | V187: 17.91043478 | W187: 18.88409091 | X187: 18.87619048 | Y187: 18.06136364 | Z187: 17.44318182 | AA187: 17.30227273 | AB187: 17.7525 | AC187: 17.55652174 | AD187: 17.465 | AE187: 17.05181818
F189: SUPPLY CHAIN
F191: STATUS / DATA SOURCE
F194: Inland Freight Costs per MT
F195: Butter | J195: NZD / MT
F196: Other (Excl Lactose) | J196: NZD / MT
F197: Lactose | J197: NZD / MT
F199: Variable Supply Chain Costs
F200: Kotahi Fees | J200: USD / MT
F201: Complaints | J201: NZD / MT | N201: 78.50399219
F202: Supply chain admin etc (excl depn & amortisation) | J202: NZD / MT
F203: Pallets & Recycling | J203: NZD / MT
F204: Port Costs | J204: NZD / MT
F205: Dry Storage Costs | J205: NZD / MT
F206: Cool Storage Costs (Butter) per month | J206: NZD / MT
F207: Cool Storage Costs (Inbound) | J207: NZD / MT
F208: Cool Storage Costs (Outbound) | J208: NZD / MT
F209: Cool Storage Write-off Costs | J209: NZD / MT
F211: Fixed Supply Chain Costs
F212: Group Supply Chain Overheads | J212: NZD '000
F214: Supply Chain - Phasing | J214: % | N214: =SUM(T214:AO214) -> 1 | T214: 0.07695353482 | U214: 0.06080168379 | V214: 0.07477710625 | W214: 0.08379381469 | X214: 0.08673651303 | Y214: 0.09083598335 | Z214: 0.08574060333 | AA214: 0.09658340316 | AB214: 0.0834235151 | AC214: 0.09403069183 | AD214: 0.08158029806 | AE214: 0.08474285258
F216: ADMINISTRATION
F218: STATUS / DATA SOURCE
F221: NZ Manufacturing Overhead | J221: NZD '000
F222: Corporate Overhead | J222: NZD '000
F223: Fms Overheads | J223: NZD '000
F224: Shareholder Relations | J224: NZD '000
F225: Admin costs to model | J225: NZD '000 | N225: 230818.2546
F227: Admin - Phasing | J227: % | N227: =SUM(T227:AO227) -> 1 | T227: 0.0693707596 | U227: 0.1615095108 | V227: 0.07561102156 | W227: 0.07714733952 | X227: 0.08590756115 | Y227: 0.07303073976 | Z227: 0.08179312858 | AA227: 0.07253666436 | AB227: 0.0669679519 | AC227: 0.07871872691 | AD227: 0.07675565193 | AE227: 0.08065094392
F229: FIXED ASSETS
F231: STATUS / DATA SOURCE | J231: Fonterra's actual accounting and tax depreciation for collection assets are used in the calculation. Bundled here into (a) other depreciation and (b) as an adjustment to tilted annuity depreciation : tax depreciation ratio.
F235: Capital Charge | J235: NZD '000 | N235: 398133.5723
F236: Net Depreciation | J236: NZD '000 | N236: 264601.6797
F237: Accounting Depreciation - collection assets | J237: NZD '000
F238: Tax Depreciation - collection assets | J238: NZD '000
F240: INCOME TAX
F242: STATUS / DATA SOURCE | J242: Tax depn as % of accounting depn ratio actually set at 130% for F17 for assets other than collection assets. Adjusted here to generate correct average ratio when collection depreciation is included.
F246: Company Tax Rate | J246: % | N246: 0.28
F247: Tax depn as % of accounting depn | J247: % | N247: 1.20816
F250: WORKING CAPITAL
F252: STATUS / DATA SOURCE | J252: Debtor days reset to weighted average across 5 RCPs. In practice debtor days are calculated by reference to sales included in the Milk Price calcuatlion for each RCP.
J253: Creditor days 'other' normally set separately to lactose (which is paid for prior to month of utilisation, when cost is recognised in the model) and other. Have been (a) set equal here and (b) used as balancing adjustment to align simplified capital charge to actual.
F255: Creditor days - Other | J255: Days | N255: -0.6294
F256: Creditor days - Lactose | J256: Days | N256: =N255 -> -0.6294
F257: Debtor Days
F258: Butter | J258: Days | N258: 28.07967295
F259: AMF | J259: Days | N259: 28.07967295
F260: SMP | J260: Days | N260: 28.07967295
F261: BMP | J261: Days | N261: 28.07967295
F262: WMP | J262: Days | N262: 28.07967295
F264: Supplier Payables - Advance Rate Schedule
F265: Advance rate | N265: 6.127782999 | U265: 3.0134 | V265: 3.0134 | W265: 3.3134 | X265: 3.811308892 | Y265: 3.72515176 | Z265: 4.19025643 | AA265: 4.221163238 | AB265: 4.343634091 | AC265: 4.85 | AD265: 4.873041405 | AE265: 4.896193746 | AF265: 5.05843734 | AG265: 5.20843734 | AH265: 5.55843734 | AI265: 5.55843734 | AJ265: =MilkPrice -> 6.127782999
F266: YTD advance rate / YTG % MP | J266: % | U266: =U265 -> 3.0134 | V266: =V265 -> 3.0134 | W266: 3.3134 | X266: 3.811308892 | Y266: 3.72515176 | Z266: 4.19025643 | AA266: 4.221163238 | AB266: 4.343634091 | AC266: 4.85 | AD266: 4.873041405 | AE266: 4.896193746 | AF266: 5.05843734 | AG266: 5.20843734 | AH266: 5.55843734 | AI266: 5.55843734 | AJ266: 6.127782999

Sheet Calculations
F5: Overall error check | J5: =IF(COUNTA(B:B)=COUNTIF(B:B,"Okay"),"Okay","Error") -> Okay | N5: Annual | T5: Monthly
J9: Units | K9: Cross Reference | N9: =Global!O7 -> 2017-05-31 | R9: =Global!R7 -> 2016-04-30 | S9: =Global!S7 -> 2016-05-31 | T9: =Global!T7 -> 2016-06-30 | U9: =Global!U7 -> 2016-07-31 | V9: =Global!V7 -> 2016-08-31 | W9: =Global!W7 -> 2016-09-30 | X9: =Global!X7 -> 2016-10-31 | Y9: =Global!Y7 -> 2016-11-30 | Z9: =Global!Z7 -> 2016-12-31 | AA9: =Global!AA7 -> 2017-01-31 | AB9: =Global!AB7 -> 2017-02-28 | AC9: =Global!AC7 -> 2017-03-31 | AD9: =Global!AD7 -> 2017-04-30 | AE9: =Global!AE7 -> 2017-05-31 | AF9: =Global!AF7 -> 2017-06-30 | AG9: =Global!AG7 -> 2017-07-31 | AH9: =Global!AH7 -> 2017-08-31 | AI9: =Global!AI7 -> 2017-09-30 | AJ9: =Global!AJ7 -> 2017-10-31 | AK9: =Global!AK7 -> 2017-11-30 | AL9: =Global!AL7 -> 2017-12-31 | AM9: =Global!AM7 -> 2018-01-31 | AN9: =Global!AN7 -> 2018-02-28 | AO9: =Global!AO7 -> 2018-03-31 | AP9: =Global!AP7 -> 2018-04-30 | AQ9: =Global!AQ7 -> 2018-05-31
D10: Calendar Year | T10: =YEAR(T9) -> 2016 | U10: =YEAR(U9) -> 2016 | V10: 2016 | W10: 2016 | X10: 2016 | Y10: 2016 | Z10: 2016 | AA10: 2017 | AB10: 2017 | AC10: 2017 | AD10: 2017 | AE10: 2017 | AF10: 2017 | AG10: 2017 | AH10: 2017 | AI10: 2017 | AJ10: 2017 | AK10: 2017 | AL10: 2017 | AM10: =YEAR(AM9) -> 2018 | AN10: =YEAR(AN9) -> 2018 | AO10: =YEAR(AO9) -> 2018 | AP10: =YEAR(AP9) -> 2018
D11: Month Number | T11: 1 | U11: =T11+1 -> 2 | V11: =U11+1 -> 3 | W11: =V11+1 -> 4 | X11: 5 | Y11: 6 | Z11: 7 | AA11: 8 | AB11: 9 | AC11: 10 | AD11: 11 | AE11: 12 | AF11: 13 | AG11: 14 | AH11: 15 | AI11: 16 | AJ11: 17 | AK11: 18 | AL11: 19 | AM11: =AL11+1 -> 20 | AN11: =AM11+1 -> 21 | AO11: =AN11+1 -> 22 | AP11: =AO11+1 -> 23
D12: Days in Period | R12: =Global!R10 -> 30 | S12: =Global!S10 -> 31 | T12: =Global!T10 -> 30 | U12: =U9-T9 -> 31 | V12: =V9-U9 -> 31 | W12: 30 | X12: 31 | Y12: 30 | Z12: 31 | AA12: 31 | AB12: 28 | AC12: 31 | AD12: 30 | AE12: 31 | AF12: 30 | AG12: 31 | AH12: 31 | AI12: 30 | AJ12: 31 | AK12: 30 | AL12: 31 | AM12: 31 | AN12: 28 | AO12: 31 | AP12: 30
D13: Year to Go flag | N13: 1 | P13: =Global!P11 -> 18 | T13: =Global!T11 -> 1 | U13: =Global!U11 -> 1 | V13: =Global!V11 -> 1 | W13: =Global!W11 -> 1 | X13: =Global!X11 -> 1 | Y13: =Global!Y11 -> 1 | Z13: =Global!Z11 -> 1 | AA13: =Global!AA11 -> 1 | AB13: =Global!AB11 -> 1 | AC13: =Global!AC11 -> 1 | AD13: =Global!AD11 -> 1 | AE13: =Global!AE11 -> 1 | AF13: =Global!AF11 -> 1 | AG13: =Global!AG11 -> 1 | AH13: =Global!AH11 -> 1 | AI13: =Global!AI11 -> 1 | AJ13: =Global!AJ11 -> 1 | AK13: =Global!AK11 -> 1 | AL13: =Global!AL11 -> 0 | AM13: =Global!AM11 -> 0 | AN13: =Global!AN11 -> 0 | AO13: =Global!AO11 -> 0
D14: PRODUCTION
D16: COMMENT | F16: See comments below. Production volumes to model have been hardcoded to align to actual volumes. Detail of loss assumptions & specification offsets, which is confidential to Fonterra, is required to
F17: flow milk supply through yield logic. Logic has however been retained in the model, and we have disclosed overall valued component usages by RCP (in cells O59:P63).
D20: DATA INPUT
F21: Milk Collected | J21: ='Data Input'!J32 -> 000 kgMS | N21: ='Data Input'!N32 -> 1524841.946 | T21: ='Data Input'!T32 -> 9918.4371 | U21: ='Data Input'!U32 -> 16346.08 | V21: ='Data Input'!V32 -> 95761.0547 | W21: ='Data Input'!W32 -> 174450.0184 | X21: ='Data Input'!X32 -> 204101.6848 | Y21: ='Data Input'!Y32 -> 193534.9963 | Z21: ='Data Input'!Z32 -> 186231.3931 | AA21: ='Data Input'!AA32 -> 172539.6 | AB21: ='Data Input'!AB32 -> 140933.3926 | AC21: ='Data Input'!AC32 -> 147011.5642 | AD21: ='Data Input'!AD32 -> 117545.3258 | AE21: ='Data Input'!AE32 -> 66468.3992
F22: Milk Supply - Phasing | J22: ='Data Input'!J33 -> % | N22: =SUM(T22:AE22) -> 1 | T22: ='Data Input'!T33 -> 0.006504567326 | U22: ='Data Input'!U33 -> 0.01071985201 | V22: ='Data Input'!V33 -> 0.062800643 | W22: ='Data Input'!W33 -> 0.1144053119 | X22: ='Data Input'!X33 -> 0.1338510429 | Y22: ='Data Input'!Y33 -> 0.1269213487 | Z22: ='Data Input'!Z33 -> 0.1221316042 | AA22: ='Data Input'!AA33 -> 0.1131524486 | AB22: ='Data Input'!AB33 -> 0.0924249185 | AC22: ='Data Input'!AC33 -> 0.09641101792 | AD22: ='Data Input'!AD33 -> 0.07708689159 | AE22: ='Data Input'!AE33 -> 0.04359035333
F24: ='Data Input'!F40 -> National average composition
F25: ='Data Input'!F41 -> Fat | J25: ='Data Input'!J41 -> % w/w | T25: ='Data Input'!T41 -> 0.04749741292 | U25: ='Data Input'!U41 -> 0.04749741292 | V25: ='Data Input'!V41 -> 0.04749741292 | W25: ='Data Input'!W41 -> 0.045957805 | X25: ='Data Input'!X41 -> 0.045957805 | Y25: ='Data Input'!Y41 -> 0.045957805 | Z25: ='Data Input'!Z41 -> 0.04868948526 | AA25: ='Data Input'!AA41 -> 0.04868948526 | AB25: ='Data Input'!AB41 -> 0.04868948526 | AC25: ='Data Input'!AC41 -> 0.05550252759 | AD25: ='Data Input'!AD41 -> 0.05550252759 | AE25: ='Data Input'!AE41 -> 0.05550252759
F26: ='Data Input'!F42 -> Protein | J26: ='Data Input'!J42 -> % w/w | T26: ='Data Input'!T42 -> 0.03738925755 | U26: ='Data Input'!U42 -> 0.03738925755 | V26: ='Data Input'!V42 -> 0.03738925755 | W26: ='Data Input'!W42 -> 0.03600196147 | X26: ='Data Input'!X42 -> 0.03600196147 | Y26: ='Data Input'!Y42 -> 0.03600196147 | Z26: ='Data Input'!Z42 -> 0.03779714617 | AA26: ='Data Input'!AA42 -> 0.03779714617 | AB26: ='Data Input'!AB42 -> 0.03779714617 | AC26: ='Data Input'!AC42 -> 0.04212088439 | AD26: ='Data Input'!AD42 -> 0.04212088439 | AE26: ='Data Input'!AE42 -> 0.04212088439
F27: ='Data Input'!F43 -> Lactose + Minerals | J27: ='Data Input'!J43 -> % w/w | T27: ='Data Input'!T43 -> 0.0540378134 | U27: ='Data Input'!U43 -> 0.0540378134 | V27: ='Data Input'!V43 -> 0.0540378134 | W27: ='Data Input'!W43 -> 0.05459307745 | X27: ='Data Input'!X43 -> 0.05459307745 | Y27: ='Data Input'!Y43 -> 0.05459307745 | Z27: ='Data Input'!Z43 -> 0.05350290988 | AA27: ='Data Input'!AA43 -> 0.05350290988 | AB27: ='Data Input'!AB43 -> 0.05350290988 | AC27: ='Data Input'!AC43 -> 0.05227745509 | AD27: ='Data Input'!AD43 -> 0.05227745509 | AE27: ='Data Input'!AE43 -> 0.05227745509
F29: ='Data Input'!F70 -> Product mix
F30: ='Data Input'!F71 -> Annual average ratio of WMP MT to WMP + SMP | J30: ='Data Input'!J71 -> % | T30: ='Data Input'!T71 -> 0.7459104289 | U30: ='Data Input'!U71 -> 0.7459104289 | V30: ='Data Input'!V71 -> 0.7459104289 | W30: ='Data Input'!W71 -> 0.7459104289 | X30: ='Data Input'!X71 -> 0.7459104289 | Y30: ='Data Input'!Y71 -> 0.7459104289 | Z30: ='Data Input'!Z71 -> 0.7459104289 | AA30: ='Data Input'!AA71 -> 0.7459104289 | AB30: ='Data Input'!AB71 -> 0.7459104289 | AC30: ='Data Input'!AC71 -> 0.7459104289 | AD30: ='Data Input'!AD71 -> 0.7459104289 | AE30: ='Data Input'!AE71 -> 0.7459104289
F31: ='Data Input'!F72 -> Annual average ratio of Butter MT to Butter + AMF | J31: ='Data Input'!J72 -> % | T31: ='Data Input'!T72 -> 0.6294598064 | U31: ='Data Input'!U72 -> 0.6294598064 | V31: ='Data Input'!V72 -> 0.6294598064 | W31: ='Data Input'!W72 -> 0.6294598064 | X31: ='Data Input'!X72 -> 0.6294598064 | Y31: ='Data Input'!Y72 -> 0.6294598064 | Z31: ='Data Input'!Z72 -> 0.6294598064 | AA31: ='Data Input'!AA72 -> 0.6294598064 | AB31: ='Data Input'!AB72 -> 0.6294598064 | AC31: ='Data Input'!AC72 -> 0.6294598064 | AD31: ='Data Input'!AD72 -> 0.6294598064 | AE31: ='Data Input'!AE72 -> 0.6294598064
F33: ='Data Input'!F45 -> Milk Composition Input Parameters
F34: ='Data Input'!F46 -> Cream Fat Content | J34: ='Data Input'!J46 -> % | N34: ='Data Input'!N46 -> 0.42
F35: ='Data Input'!F47 -> Skimmilk Fat Content | J35: ='Data Input'!J47 -> % | N35: ='Data Input'!N47 -> 0.0008
F36: ='Data Input'!F48 -> Wholemilk Density | J36: ='Data Input'!J48 -> % | N36: ='Data Input'!N48 -> 1.032
F38: ='Data Input'!F50 -> Lactose Standardising Inputs
F39: ='Data Input'!F51 -> Lactose losses - WMP | J39: ='Data Input'!J51 -> % | N39: ='Data Input'!N51 -> 0
F40: ='Data Input'!F52 -> Lactose losses - SMP | J40: ='Data Input'!J52 -> % | N40: ='Data Input'!N52 -> 0
F41: ='Data Input'!F53 -> Lactose losses - BMP | J41: ='Data Input'!J53 -> % | N41: ='Data Input'!N53 -> 0
F42: ='Data Input'!F54 -> Lactose content of lactose powder | J42: ='Data Input'!J54 -> % | N42: ='Data Input'!N54 -> 0.95
F44: ='Data Input'!F56 -> Composition Target | L44: ='Data Input'!L56 -> Fat | M44: ='Data Input'!M56 -> Protein | N44: ='Data Input'!N56 -> Moisture
F45: ='Data Input'!F57 -> Butter | J45: ='Data Input'!J57 -> %w/w | L45: ='Data Input'!L57 -> 0 | M45: ='Data Input'!M57 -> 0 | N45: ='Data Input'!N57 -> 0
F46: ='Data Input'!F58 -> AMF | J46: ='Data Input'!J58 -> %w/w | L46: ='Data Input'!L58 -> 0 | M46: ='Data Input'!M58 -> 0 | N46: ='Data Input'!N58 -> 0
F47: ='Data Input'!F59 -> SMP | J47: ='Data Input'!J59 -> %w/w | L47: ='Data Input'!L59 -> 0 | M47: ='Data Input'!M59 -> 0 | N47: ='Data Input'!N59 -> 0
F48: ='Data Input'!F60 -> BMP | J48: ='Data Input'!J60 -> %w/w | L48: ='Data Input'!L60 -> 0 | M48: ='Data Input'!M60 -> 0 | N48: ='Data Input'!N60 -> 0
F49: ='Data Input'!F61 -> WMP | J49: ='Data Input'!J61 -> %w/w | L49: ='Data Input'!L61 -> 0 | M49: ='Data Input'!M61 -> 0 | N49: ='Data Input'!N61 -> 0
F51: ='Data Input'!F63 -> Value Component Usage | L51: ='Data Input'!L63 -> Fat | M51: ='Data Input'!M63 -> Protein
F52: ='Data Input'!F64 -> Butter | J52: ='Data Input'!J64 -> kg/mt | L52: ='Data Input'!L64 -> 0 | M52: ='Data Input'!M64 -> 0
F53: ='Data Input'!F65 -> AMF | J53: ='Data Input'!J65 -> kg/mt | L53: ='Data Input'!L65 -> 0 | M53: ='Data Input'!M65 -> 0
F54: ='Data Input'!F66 -> SMP | J54: ='Data Input'!J66 -> kg/mt | L54: ='Data Input'!L66 -> 0 | M54: ='Data Input'!M66 -> 0
F55: ='Data Input'!F67 -> BMP | J55: ='Data Input'!J67 -> kg/mt | L55: ='Data Input'!L67 -> 0 | M55: ='Data Input'!M67 -> 0
F56: ='Data Input'!F68 -> WMP | J56: ='Data Input'!J68 -> kg/mt | L56: ='Data Input'!L68 -> 0 | M56: ='Data Input'!M68 -> 0
O57: Hardcoded for use in inventory calculations
D58: CALCULATIONS | F58: Valued Component Usage | L58: Fat | M58: Protein | O58: Fat | P58: Protein
D59: Logic retained, but key input cells not populated. | F59: Butter | J59: % | L59: =OFFSET($L$51,MATCH($F59,$F$52:$F$56,0),)/1000 -> 0 | M59: =OFFSET($M$51,MATCH($F59,$F$52:$F$56,0),)/1000 -> 0 | O59: 0.83158 | P59: 0.00535
F60: AMF | J60: % | L60: =OFFSET($L$51,MATCH($F60,$F$52:$F$56,0),)/1000 -> 0 | M60: =OFFSET($M$51,MATCH($F60,$F$52:$F$56,0),)/1000 -> 0 | O60: 1.00196 | P60: 0.0008
F61: SMP | J61: % | L61: =OFFSET($L$51,MATCH($F61,$F$52:$F$56,0),)/1000 -> 0 | M61: =OFFSET($M$51,MATCH($F61,$F$52:$F$56,0),)/1000 -> 0 | O61: 0.01004257629 | P61: 0.3283902185
F62: BMP | J62: % | L62: =OFFSET($L$51,MATCH($F62,$F$52:$F$56,0),)/1000 -> 0 | M62: =OFFSET($M$51,MATCH($F62,$F$52:$F$56,0),)/1000 -> 0 | O62: 0.08056 | P62: 0.3045
F63: WMP | J63: % | L63: =OFFSET($L$51,MATCH($F63,$F$52:$F$56,0),)/1000 -> 0 | M63: =OFFSET($M$51,MATCH($F63,$F$52:$F$56,0),)/1000 -> 0 | O63: 0.2629130539 | P63: 0.2422011594
F65: Lactose Requirements per MT
F66: SMP | J66: % | N66: =SUMPRODUCT(T66:AE66,T187:AE187)/N187 -> 1.052631579 | T66: =T$90/1000 -> 1.052631579 | U66: =U$90/1000 -> 1.052631579 | V66: 1.052631579 | W66: 1.052631579 | X66: 1.052631579 | Y66: 1.052631579 | Z66: 1.052631579 | AA66: 1.052631579 | AB66: 1.052631579 | AC66: 1.052631579 | AD66: 1.052631579 | AE66: 1.052631579
F67: BMP | J67: % | N67: =SUMPRODUCT(T67:AE67,T188:AE188)/N188 -> 1.052631579 | T67: =T$92/1000 -> 1.052631579 | U67: =U$92/1000 -> 1.052631579 | V67: 1.052631579 | W67: 1.052631579 | X67: 1.052631579 | Y67: 1.052631579 | Z67: 1.052631579 | AA67: 1.052631579 | AB67: 1.052631579 | AC67: 1.052631579 | AD67: 1.052631579 | AE67: 1.052631579
F68: WMP | J68: % | N68: =SUMPRODUCT(T68:AE68,T189:AE189)/N189 -> 1.052631579 | T68: =T$108/1000 -> 1.052631579 | U68: =U$108/1000 -> 1.052631579 | V68: 1.052631579 | W68: 1.052631579 | X68: 1.052631579 | Y68: 1.052631579 | Z68: 1.052631579 | AA68: 1.052631579 | AB68: 1.052631579 | AC68: 1.052631579 | AD68: 1.052631579 | AE68: 1.052631579
F70: Wholemilk Composition Parameters
F71: Fat | J71: kg Fat / m3 wholemilk | T71: =$N$36*T25*1000 -> 49.01733013 | U71: 49.01733013 | V71: 49.01733013 | W71: 47.42845476 | X71: 47.42845476 | Y71: 47.42845476 | Z71: 50.24754879 | AA71: 50.24754879 | AB71: 50.24754879 | AC71: 57.27860848 | AD71: 57.27860848 | AE71: 57.27860848
F72: Protein | J72: kg Protein / m3 wholemilk | T72: =$N$36*T26*1000 -> 38.58571379 | U72: 38.58571379 | V72: 38.58571379 | W72: 37.15402424 | X72: 37.15402424 | Y72: 37.15402424 | Z72: 39.00665484 | AA72: 39.00665484 | AB72: 39.00665484 | AC72: 43.46875269 | AD72: 43.46875269 | AE72: 43.46875269
F73: Raw Milk Protein : SNF Ratio | J73: % | T73: =T26/SUM(T26:T27) -> 0.408951716 | U73: 0.408951716 | V73: 0.408951716 | W73: 0.3973944037 | X73: 0.3973944037 | Y73: 0.3973944037 | Z73: 0.4139882033 | AA73: 0.4139882033 | AB73: 0.4139882033 | AC73: 0.4462036581 | AD73: 0.4462036581 | AE73: 0.4462036581
F74: Cream Protein | J74: % | T74: =(1-$N$34)/(1-T25)*T26 -> 0.02276715011 | U74: 0.02276715011 | V74: 0.02276715011 | W74: 0.02188701691 | X74: 0.02188701691 | Y74: 0.02188701691 | Z74: 0.02304436295 | AA74: 0.02304436295 | AB74: 0.02304436295 | AC74: 0.02586572612 | AD74: 0.02586572612 | AE74: 0.02586572612
F76: SMP
F77: Excess Cream
F78: kg cream | J78: kg /m3 wholemilk | T78: =(T$72*$L$54-T$71*$M$54)/(T$74*$L$54-$N$34*$M$54) -> 
F79: Fat | J79: kg /m3 wholemilk | T79: =T78*$N$34 ->  | U79: =U78*$N$34 -> 
F80: Protein | J80: kg /m3 wholemilk | T80: =T78*T74 -> 
F82: SMP | J82: kg /m3 wholemilk | T82: =(T71-T78*$N$34)/$L$54*1000 ->  | U82: =(U71-U78*$N$34)/$L$54*1000 -> 
F83: Butter | J83: kg /m3 wholemilk | T83: =(T79*$M$55-T80*$L$55)*1000/($L$52*$M$55-$M$52*$L$55) -> 
F84: BMP | J84: kg /m3 wholemilk | T84: =(T80-T83*$M$52/1000)/($M$55/1000) -> 
F85: AMF | J85: kg /m3 wholemilk | T85: =(T79*$M$55-T80*$L$55)*1000/($L$53*$M$55-$M$53*$L$55) -> 
F86: BMP | J86: kg /m3 wholemilk | T86: =(T80-T85*$M$53/1000)/($M$55/1000) -> 
F88: Lactose Standardising
F89: Primary product (excl Losses) | J89: kg/mt | T89: =(1-$L$47-$N$47-$M$47/T73)*1000 -> 1000 | U89: =(1-$L$47-$N$47-$M$47/U73)*1000 -> 1000 | V89: 1000 | W89: 1000 | X89: 1000 | Y89: 1000 | Z89: 1000 | AA89: 1000 | AB89: 1000 | AC89: 1000 | AD89: 1000 | AE89: 1000
F90: Primary product (incl Losses) | J90: kg/mt | T90: =T89/(1-$N$40)/$N$42 -> 1052.631579 | U90: =U89/(1-$N$40)/$N$42 -> 1052.631579 | V90: 1052.631579 | W90: 1052.631579 | X90: 1052.631579 | Y90: 1052.631579 | Z90: 1052.631579 | AA90: 1052.631579 | AB90: 1052.631579 | AC90: 1052.631579 | AD90: 1052.631579 | AE90: 1052.631579
F91: BMP (excl Losses) | J91: kg/mt | T91: =(1-$L$48-$N$48-$M$48/T73)*1000 -> 1000 | U91: 1000 | V91: 1000 | W91: 1000 | X91: 1000 | Y91: 1000 | Z91: 1000 | AA91: 1000 | AB91: 1000 | AC91: 1000 | AD91: 1000 | AE91: 1000
F92: BMP (incl Losses and Moisture) | J92: kg/mt | T92: =T91/(1-$N$41)/$N$42 -> 1052.631579 | U92: =U91/(1-$N$41)/$N$42 -> 1052.631579 | V92: 1052.631579 | W92: 1052.631579 | X92: 1052.631579 | Y92: 1052.631579 | Z92: 1052.631579 | AA92: 1052.631579 | AB92: 1052.631579 | AC92: 1052.631579 | AD92: 1052.631579 | AE92: 1052.631579
F94: WMP
F95: Excess Cream
F96: kg cream | J96: kg /m3 wholemilk | T96: =(T$72*$L$56-T$71*$M$56)/(T$74*$L$56-$N$34*$M$56) -> 
F97: Fat | J97: kg /m3 wholemilk | T97: =T96*$N$34 ->  | U97: =U96*$N$34 -> 
F98: Protein | J98: kg /m3 wholemilk | T98: =T96*T74 -> 
F100: WMP | J100: kg /m3 wholemilk | T100: =(T71-T96*$N$34)/$L$56*1000 -> 
F101: Butter | J101: kg /m3 wholemilk | T101: =(T97*$M$55-T98*$L$55)*1000/($L$52*$M$55-$M$52*$L$55) -> 
F102: BMP | J102: kg /m3 wholemilk | T102: =(T98-T101*$M$52/1000)/($M$55/1000) -> 
F103: AMF | J103: kg /m3 wholemilk | T103: =(T97*$M$55-T98*$L$55)*1000/($L$53*$M$55-$M$53*$L$55) -> 
F104: BMP | J104: kg /m3 wholemilk | T104: =(T98-T103*$M$53/1000)/($M$55/1000) -> 
F106: Lactose Standardising
F107: Primary product (excl Losses) | J107: kg/mt | T107: =(1-$L$49-$N$49-$M$49/T73)*1000 -> 1000 | U107: =(1-$L$49-$N$49-$M$49/U73)*1000 -> 1000 | V107: 1000 | W107: 1000 | X107: 1000 | Y107: 1000 | Z107: 1000 | AA107: 1000 | AB107: 1000 | AC107: 1000 | AD107: 1000 | AE107: 1000
F108: Primary product (incl Losses) | J108: kg/mt | T108: =T107/(1-$N$39)/$N$42 -> 1052.631579 | U108: =U107/(1-$N$39)/$N$42 -> 1052.631579 | V108: 1052.631579 | W108: 1052.631579 | X108: 1052.631579 | Y108: 1052.631579 | Z108: 1052.631579 | AA108: 1052.631579 | AB108: 1052.631579 | AC108: 1052.631579 | AD108: 1052.631579 | AE108: 1052.631579
F109: BMP (excl Losses) | J109: kg/mt | T109: =(1-$L$48-$N$48-$M$48/T73)*1000 -> 1000 | U109: 1000 | V109: 1000 | W109: 1000 | X109: 1000 | Y109: 1000 | Z109: 1000 | AA109: 1000 | AB109: 1000 | AC109: 1000 | AD109: 1000 | AE109: 1000
F110: BMP (incl Losses and Moisture) | J110: kg/mt | T110: =T109/(1-$N$41)/$N$42 -> 1052.631579 | U110: 1052.631579 | V110: 1052.631579 | W110: 1052.631579 | X110: 1052.631579 | Y110: 1052.631579 | Z110: 1052.631579 | AA110: 1052.631579 | AB110: 1052.631579 | AC110: 1052.631579 | AD110: 1052.631579 | AE110: 1052.631579
F112: Monthly National Average Yields
F113: SMP | J113: % | N113: =SUMPRODUCT(T113:AE113,$T$21:$AE$21)/$N$21 ->  | T113: =T82/SUM(T$71:T$72) ->  | U113: =U82/SUM(U$71:U$72) -> 
F114: SMP Butter | J114: % | N114: =SUMPRODUCT(T114:AE114,$T$21:$AE$21)/$N$21 ->  | T114: =T83/SUM(T$71:T$72) -> 
F115: SMP Butter BMP | J115: % | T115: =T84/SUM(T$71:T$72) -> 
F116: SMP AMF | J116: % | T116: =T85/SUM(T$71:T$72) -> 
F117: SMP AMF BMP | J117: % | T117: =T86/SUM(T$71:T$72) -> 
F119: WMP | J119: % | T119: =T100/SUM(T$71:T$72) -> 
F120: WMP Butter | J120: % | T120: =T101/SUM(T$71:T$72) -> 
F121: WMP Butter BMP | J121: % | T121: =T102/SUM(T$71:T$72) -> 
F122: WMP AMF | J122: % | T122: =T103/SUM(T$71:T$72) -> 
F123: WMP AMF BMP | J123: % | T123: =T104/SUM(T$71:T$72) -> 
F125: Calculated Mix to Model
F126: % of milksolids allocated to WMP | J126: % | N126: =SUMPRODUCT(T126:AE126,'Data Input'!$T$33:$AE$33) -> 0 | T126: =IFERROR(T30/(T30+(1-T30)*(T119/T113)),0) -> 0 | U126: 0 | V126: 0 | W126: 0 | X126: 0 | Y126: 0 | Z126: 0 | AA126: 0 | AB126: 0 | AC126: 0 | AD126: 0 | AE126: 0
F127: % of milkfat allocated to Butter - SMP | J127: % | N127: =SUMPRODUCT(T127:AE127,'Data Input'!$T$33:$AE$33) -> 0 | T127: =IFERROR(T31/(T31+(1-T31)*(T114/T116)),0) -> 0 | U127: 0 | V127: 0 | W127: 0 | X127: 0 | Y127: 0 | Z127: 0 | AA127: 0 | AB127: 0 | AC127: 0 | AD127: 0 | AE127: 0
F128: % of milkfat allocated to Butter - WMP | J128: % | N128: =SUMPRODUCT(T128:AE128,'Data Input'!$T$33:$AE$33) -> 0 | T128: =IFERROR(T31/(T31+(1-T31)*(T120/T122)),0) -> 0 | U128: 0 | V128: 0 | W128: 0 | X128: 0 | Y128: 0 | Z128: 0 | AA128: 0 | AB128: 0 | AC128: 0 | AD128: 0 | AE128: 0
F130: Product Weights
F131: SMP | J131: % | N131: =1-N126 -> 1 | T131: =1-T126 -> 1 | U131: 1 | V131: 1 | W131: 1 | X131: 1 | Y131: 1 | Z131: 1 | AA131: 1 | AB131: 1 | AC131: 1 | AD131: 1 | AE131: 1
F132: SMP Butter | J132: % | N132: =N131*N127 -> 0 | T132: =T131*T127 -> 0 | U132: 0 | V132: 0 | W132: 0 | X132: 0 | Y132: 0 | Z132: 0 | AA132: 0 | AB132: 0 | AC132: 0 | AD132: 0 | AE132: 0
F133: SMP Butter BMP | J133: % | N133: =N132 -> 0 | T133: =T132 -> 0 | U133: =U132 -> 0 | V133: 0 | W133: 0 | X133: 0 | Y133: 0 | Z133: 0 | AA133: 0 | AB133: 0 | AC133: 0 | AD133: 0 | AE133: 0
F134: SMP AMF | J134: % | N134: =N131*(1-N127) -> 1 | T134: =T131*(1-T127) -> 1 | U134: 1 | V134: 1 | W134: 1 | X134: 1 | Y134: 1 | Z134: 1 | AA134: 1 | AB134: 1 | AC134: 1 | AD134: 1 | AE134: 1
F135: SMP AMF BMP | J135: % | N135: =N134 -> 1 | T135: =T134 -> 1 | U135: =U134 -> 1 | V135: 1 | W135: 1 | X135: 1 | Y135: 1 | Z135: 1 | AA135: 1 | AB135: 1 | AC135: 1 | AD135: 1 | AE135: 1
F137: WMP | J137: % | N137: =N126 -> 0 | T137: =T126 -> 0 | U137: 0 | V137: 0 | W137: 0 | X137: 0 | Y137: 0 | Z137: 0 | AA137: 0 | AB137: 0 | AC137: 0 | AD137: 0 | AE137: 0
F138: WMP Butter | J138: % | N138: =N137*N128 -> 0 | T138: =T137*T128 -> 0 | U138: 0 | V138: 0 | W138: 0 | X138: 0 | Y138: 0 | Z138: 0 | AA138: 0 | AB138: 0 | AC138: 0 | AD138: 0 | AE138: 0
F139: WMP Butter BMP | J139: % | N139: =N138 -> 0 | T139: =T138 -> 0 | U139: =U138 -> 0 | V139: 0 | W139: 0 | X139: 0 | Y139: 0 | Z139: 0 | AA139: 0 | AB139: 0 | AC139: 0 | AD139: 0 | AE139: 0
F140: WMP AMF | J140: % | N140: =N137*(1-N128) -> 0 | T140: =T137*(1-T128) -> 0 | U140: 0 | V140: 0 | W140: 0 | X140: 0 | Y140: 0 | Z140: 0 | AA140: 0 | AB140: 0 | AC140: 0 | AD140: 0 | AE140: 0
F141: WMP AMF BMP | J141: % | N141: =N140 -> 0 | T141: =T140 -> 0 | U141: =U140 -> 0 | V141: 0 | W141: 0 | X141: 0 | Y141: 0 | Z141: 0 | AA141: 0 | AB141: 0 | AC141: 0 | AD141: 0 | AE141: 0
F142: Calculated Yields
F143: Butter | N143: =SUMPRODUCT(T143:AE143,$T$21:$AE$21)/$N$21 ->  | T143: =T132*T114+T138*T120 -> 
F144: AMF | N144: =SUMPRODUCT(T144:AE144,$T$21:$AE$21)/$N$21 ->  | T144: =T134*T116+T140*T122 -> 
F145: SMP | N145: =SUMPRODUCT(T145:AE145,$T$21:$AE$21)/$N$21 ->  | T145: =T131*T113 -> 
F146: BMP | N146: =SUMPRODUCT(T146:AE146,$T$21:$AE$21)/$N$21 ->  | T146: =T133*T115+T139*T121+T135*T117+T141*T123 -> 
F147: WMP | N147: =SUMPRODUCT(T147:AE147,$T$21:$AE$21)/$N$21 ->  | T147: =T137*T119 -> 
F148: Total | N148: =SUM(N143:N147) ->  | T148: =SUM(T143:T147) -> 
D150: Actual yield calculations | F150: Product Mix to Model
F151: Butter | J151: MT | N151: =SUM(T151:AE151) ->  | T151: =T143*T$21 ->  | U151: =U143*U$21 -> 
F152: AMF | J152: MT | N152: =SUM(T152:AE152) ->  | T152: =T144*T$21 -> 
F153: SMP | J153: MT | N153: =SUM(T153:AE153) ->  | T153: =T145*T$21 ->  | U153: =U145*U$21 -> 
F154: BMP | J154: MT | N154: =SUM(T154:AE154) ->  | W154: =W146*W$21 -> 
F155: WMP | J155: MT | N155: =SUM(T155:AE155) ->  | T155: =T147*T$21 -> 
F156: Total | J156: MT | N156: =SUM(N151:N155) ->  | T156: =SUM(T151:T155) ->  | U156: =SUM(U151:U155) ->  | V156: =SUM(V151:V155) ->  | W156: =SUM(W151:W155) -> 
F158: Fat Usage
F159: Butter | J159: 000 kgMS | N159: =SUM(T159:AE159) ->  | T159: =T151*$L59 -> 
F160: AMF | J160: 000 kgMS | N160: =SUM(T160:AE160) -> 
F161: SMP | J161: 000 kgMS | N161: =SUM(T161:AE161) -> 
F162: BMP | J162: 000 kgMS | N162: =SUM(T162:AE162) -> 
F163: WMP | J163: 000 kgMS | N163: =SUM(T163:AE163) -> 
F164: Total | J164: 000 kgMS | N164: =SUM(N159:N163) ->  | T164: =SUM(T159:T163) -> 
F166: Protein Usage
F167: Butter | J167: 000 kgMS | N167: =SUM(T167:AE167) ->  | T167: =T151*$M59 -> 
F168: AMF | J168: 000 kgMS | N168: =SUM(T168:AE168) -> 
F169: SMP | J169: 000 kgMS | N169: =SUM(T169:AE169) -> 
F170: BMP | J170: 000 kgMS | N170: =SUM(T170:AE170) -> 
F171: WMP | J171: 000 kgMS | N171: =SUM(T171:AE171) -> 
F172: Total | J172: 000 kgMS | N172: =SUM(N167:N171) ->  | T172: =SUM(T167:T171) -> 
F174: Milk Composition
F175: Fat | J175: MT | N175: =IF(ISERROR(N164/SUM(N164,N172)),"N/A",N164/SUM(N164,N172)) -> N/A | T175: =IF(ISERROR(T164/SUM(T164,T172)),"N/A",T164/SUM(T164,T172)) -> N/A | U175: =IF(ISERROR(U164/SUM(U164,U172)),"N/A",U164/SUM(U164,U172)) -> N/A | V175: N/A | W175: N/A | X175: N/A | Y175: N/A | Z175: N/A | AA175: N/A | AB175: N/A | AC175: N/A | AD175: N/A | AE175: N/A
F176: Protein | J176: MT | N176: =IF(ISERROR(N172/SUM(N164,N172)),"N/A",N172/SUM(N164,N172)) -> N/A | T176: =IF(ISERROR(T172/SUM(T164,T172)),"N/A",T172/SUM(T164,T172)) -> N/A | U176: =IF(ISERROR(U172/SUM(U164,U172)),"N/A",U172/SUM(U164,U172)) -> N/A | V176: N/A | W176: N/A | X176: N/A | Y176: N/A | Z176: N/A | AA176: N/A | AB176: N/A | AC176: N/A | AD176: N/A | AE176: N/A
F178: Required Lactose - Calculated
F179: SMP | J179: MT | N179: =SUM(T179:AE179) ->  | T179: =T66*T153 -> 
F180: BMP | J180: MT | N180: =SUM(T180:AE180) -> 
F181: WMP | J181: MT | N181: =SUM(T181:AE181) -> 
F182: Total | J182: MT | N182: =SUM(T182:AE182) ->  | T182: =SUM(T179:T181) ->  | U182: =SUM(U179:U181) -> 
D184: Hard coded outputs from actual yield calculations | F184: Product Mix to Model
F185: Butter | J185: MT | N185: =SUM(T185:AE185) -> 256440.1118 | T185: 51.45422219 | U185: 1250.041469 | V185: 14329.17611 | W185: 31687.219 | X185: 36055.31784 | Y185: 30621.85042 | Z185: 29540.42871 | AA185: 30764.80034 | AB185: 27859.95567 | AC185: 23071.11204 | AD185: 20401.70945 | AE185: 10807.04652
F186: AMF | J186: MT | N186: =SUM(T186:AE186) -> 153625.0008 | T186: 4381.285856 | U186: 3870.506654 | V186: 10699.33375 | W186: 18942.31019 | X186: 20426.72777 | Y186: 19615.19151 | Z186: 16861.74581 | AA186: 15592.38152 | AB186: 13126.40122 | AC186: 12843.32032 | AD186: 8054.776581 | AE186: 9211.01958
F187: SMP | J187: MT | N187: =SUM(T187:AE187) -> 619309.7871 | T187: 9440.722833 | U187: 10082.62959 | V187: 39879.0116 | W187: 83242.15406 | X187: 89150.40176 | Y187: 77697.00093 | Z187: 70451.26034 | AA187: 69130.4551 | AB187: 60026.36765 | AC187: 45908.81786 | AD187: 33521.68406 | AE187: 30779.28129
F188: BMP | J188: MT | N188: =SUM(T188:AE188) -> 62601.35021 | T188: 810.7790115 | U188: 878.72696 | V188: 3775.224769 | W188: 7237.450598 | X188: 7995.872262 | Y188: 7303.403126 | Z188: 6817.776227 | AA188: 6984.713215 | AB188: 6301.980249 | AC188: 5906.09734 | AD188: 4844.41571 | AE188: 3744.91074
F189: WMP | J189: MT | N189: =SUM(T189:AE189) -> 1826261.221 | T189: 3909.504982 | U189: 15180.80114 | V189: 115002.9409 | W189: 193969.4293 | X189: 237951.1183 | Y189: 235847.3725 | Z189: 233871.0036 | AA189: 208013.6524 | AB189: 161770.1418 | AC189: 192060.7985 | AD189: 156763.1346 | AE189: 71921.32253
F190: Total | J190: MT | N190: =SUM(N185:N189) -> 2918237.47 | T190: =SUM(T185:T189) -> 18593.7469 | U190: =SUM(U185:U189) -> 31262.70581 | V190: 183685.6871 | W190: 335078.5631 | X190: 391579.4379 | Y190: 371084.8185 | Z190: 357542.2147 | AA190: 330486.0025 | AB190: 269084.8466 | AC190: 279790.1461 | AD190: 223585.7204 | AE190: 126463.5807
F192: Fat Usage
F193: Butter | J193: 000 kgMS | N193: =SUM(T193:AE193) -> 213250.4682 | T193: 42.78830209 | U193: 1039.509485 | V193: 11915.85627 | W193: 26350.45757 | X193: 29982.88121 | Y193: 25464.51837 | Z193: 24565.22971 | AA193: 25583.39266 | AB193: 23167.78194 | AC193: 19185.47535 | AD193: 16965.65355 | AE193: 8986.923742
F194: AMF | J194: 000 kgMS | N194: =SUM(T194:AE194) -> 153926.1058 | T194: 4389.873177 | U194: 3878.092847 | V194: 10720.30445 | W194: 18979.43711 | X194: 20466.76416 | Y194: 19653.63729 | Z194: 16894.79484 | AA194: 15622.94258 | AB194: 13152.12896 | AC194: 12868.49323 | AD194: 8070.563944 | AE194: 9229.073178
F195: SMP | J195: 000 kgMS | N195: =SUM(T195:AE195) -> 6219.465784 | T195: 94.80917928 | U195: 101.2555768 | V195: 400.4880164 | W195: 835.9656826 | X195: 895.299711 | Y195: 780.2780594 | Z195: 707.5121566 | AA195: 694.2478693 | AB195: 602.8193765 | AC195: 461.0428057 | AD195: 336.6440695 | AE195: 309.1032805
F196: BMP | J196: 000 kgMS | N196: =SUM(T196:AE196) -> 5043.164773 | T196: 65.31635716 | U196: 70.7902439 | V196: 304.1321074 | W196: 583.0490202 | X196: 644.1474694 | Y196: 588.3621558 | Z196: 549.2400528 | AA196: 562.6884966 | AB196: 507.6875288 | AC196: 475.7952017 | AD196: 390.2661296 | AE196: 301.6900092
F197: WMP | J197: 000 kgMS | N197: =SUM(T197:AE197) -> 480147.9147 | T197: 1027.859894 | U197: 3991.23079 | V197: 30235.7744 | W197: 50997.09502 | X197: 62560.45518 | Y197: 62007.35295 | Z197: 61487.73979 | AA197: 54689.5046 | AB197: 42531.48203 | AC197: 50495.29107 | AD197: 41215.07446 | AE197: 18909.05455
F198: Total | J198: 000 kgMS | N198: =SUM(N193:N197) -> 858587.1192 | T198: =SUM(T193:T197) -> 5620.646909 | U198: =SUM(U193:U197) -> 9080.878943 | V198: =SUM(V193:V197) -> 53576.55525 | W198: =SUM(W193:W197) -> 97746.00441 | X198: =SUM(X193:X197) -> 114549.5477 | Y198: =SUM(Y193:Y197) -> 108494.1488 | Z198: =SUM(Z193:Z197) -> 104204.5165 | AA198: =SUM(AA193:AA197) -> 97152.77621 | AB198: =SUM(AB193:AB197) -> 79961.89983 | AC198: =SUM(AC193:AC197) -> 83486.09766 | AD198: =SUM(AD193:AD197) -> 66978.20215 | AE198: =SUM(AE193:AE197) -> 37735.84476
F200: Protein Usage
F201: Butter | J201: 000 kgMS | N201: =SUM(T201:AE201) -> 1371.954598 | T201: 0.2752800887 | U201: 6.687721861 | V201: 76.6610922 | W201: 169.5266216 | X201: 192.8959505 | Y201: 163.8268998 | Z201: 158.0412936 | AA201: 164.5916818 | AB201: 149.0507628 | AC201: 123.4304494 | AD201: 109.1491456 | AE201: 57.81769886
F202: AMF | J202: 000 kgMS | N202: =SUM(T202:AE202) -> 122.9000006 | T202: 3.505028685 | U202: 3.096405324 | V202: 8.559467004 | W202: 15.15384815 | X202: 16.34138222 | Y202: 15.69215321 | Z202: 13.48939665 | AA202: 12.47390521 | AB202: 10.50112097 | AC202: 10.27465626 | AD202: 6.443821265 | AE202: 7.368815664
F203: SMP | J203: 000 kgMS | N203: =SUM(T203:AE203) -> 203375.2763 | T203: 3100.241034 | U203: 3311.036933 | V203: 13095.87733 | W203: 27335.90916 | X203: 29276.11992 | Y203: 25514.93512 | Z203: 23135.50478 | AA203: 22701.76526 | AB203: 19712.07199 | AC203: 15076.00673 | AD203: 11008.19315 | AE203: 10107.61491
F204: BMP | J204: 000 kgMS | N204: =SUM(T204:AE204) -> 19062.11114 | T204: 246.882209 | U204: 267.5723593 | V204: 1149.555942 | W204: 2203.803707 | X204: 2434.743104 | Y204: 2223.886252 | Z204: 2076.012861 | AA204: 2126.845174 | AB204: 1918.952986 | AC204: 1798.40664 | AD204: 1475.124584 | AE204: 1140.32532
F205: WMP | J205: 000 kgMS | N205: =SUM(T205:AE205) -> 442322.5849 | T205: 946.8866391 | U205: 3676.807637 | V205: 27853.84562 | W205: 46979.62065 | X205: 57632.03672 | Y205: 57122.50705 | Z205: 56643.82823 | AA205: 50381.14777 | AB205: 39180.91591 | AC205: 46517.34807 | AD205: 37968.21295 | AE205: 17419.4277
F206: Total | J206: 000 kgMS | N206: =SUM(N201:N205) -> 666254.827 | T206: =SUM(T201:T205) -> 4297.790191 | U206: =SUM(U201:U205) -> 7265.201057 | V206: =SUM(V201:V205) -> 42184.49945 | W206: =SUM(W201:W205) -> 76704.01399 | X206: =SUM(X201:X205) -> 89552.13707 | Y206: =SUM(Y201:Y205) -> 85040.84747 | Z206: =SUM(Z201:Z205) -> 82026.87656 | AA206: =SUM(AA201:AA205) -> 75386.82379 | AB206: =SUM(AB201:AB205) -> 60971.49277 | AC206: =SUM(AC201:AC205) -> 63525.46654 | AD206: =SUM(AD201:AD205) -> 50567.12365 | AE206: =SUM(AE201:AE205) -> 28732.55444
F208: Milk Composition
F209: Fat | J209: % | N209: =IF(ISERROR(N198/SUM(N198,N206)),"N/A",N198/SUM(N198,N206)) -> 0.5630663043 | T209: 0.5666867524 | U209: 0.5555386333 | V209: 0.5594816746 | W209: 0.5603095104 | X209: 0.5612376392 | Y209: 0.5605918873 | Z209: 0.5595432371 | AA209: 0.5630752373 | AB209: 0.5673736959 | AC209: 0.5678879625 | AD209: 0.5698074483 | AE209: 0.5677260956
F210: Protein | J210: % | N210: =IF(ISERROR(N206/SUM(N198,N206)),"N/A",N206/SUM(N198,N206)) -> 0.4369336957 | T210: 0.4333132476 | U210: 0.4444613667 | V210: 0.4405183254 | W210: 0.4396904896 | X210: 0.4387623608 | Y210: 0.4394081127 | Z210: 0.4404567629 | AA210: 0.4369247627 | AB210: 0.4326263041 | AC210: 0.4321120375 | AD210: 0.4301925517 | AE210: 0.4322739044
F212: Required Lactose - Calculated
F213: SMP | J213: MT | N213: =SUM(T213:AE213) -> 0
F214: BMP | J214: MT | N214: =SUM(T214:AE214) -> 0
F215: WMP | J215: MT | N215: =SUM(T215:AE215) -> 0
F216: Total | J216: MT | N216: =SUM(T216:AE216) -> 351456.1952 | T216: 2473.750339 | U216: 3991.353665 | V216: 20400.60033 | W216: 31968.41824 | X216: 36934.09579 | Y216: 37796.29323 | Z216: 40134.48759 | AA216: 40453.22687 | AB216: 35301.63815 | AC216: 41783.98111 | AD216: 37321.537 | AE216: 22896.81288
D218: COMPONENT MILK PRICE
D221: COMMENT
F225: Milk Price | J225: NZD | N225: =IF(ISERROR(N1249),2,N1249) -> 6.127782999 | T225: =$N225 -> 6.127782999 | U225: 6.127782999 | V225: 6.127782999 | W225: 6.127782999 | X225: 6.127782999 | Y225: 6.127782999 | Z225: 6.127782999 | AA225: 6.127782999 | AB225: 6.127782999 | AC225: 6.127782999 | AD225: 6.127782999 | AE225: 6.127782999 | AF225: 6.127782999 | AG225: 6.127782999 | AH225: 6.127782999 | AI225: 6.127782999 | AJ225: 6.127782999 | AK225: 6.127782999 | AL225: 6.127782999 | AM225: 6.127782999 | AN225: 6.127782999 | AO225: 6.127782999
F227: kgMS into production
F228: Total | J228: 000 kgMS | K228: ="Row "&ROW(K$21) -> Row 21 | N228: =SUM(T228:AE228) -> 1524841.946 | T228: =T21 -> 9918.4371 | U228: 16346.08 | V228: 95761.0547 | W228: 174450.0184 | X228: 204101.6848 | Y228: 193534.9963 | Z228: 186231.3931 | AA228: 172539.6 | AB228: 140933.3926 | AC228: 147011.5642 | AD228: 117545.3258 | AE228: 66468.3992
F229: Fat | J229: 000 kgMS | N229: =SUM(T229:AE229) -> 858587.1192 | T229: =T198 -> 5620.646909 | U229: =U198 -> 9080.878943 | V229: 53576.55525 | W229: 97746.00441 | X229: 114549.5477 | Y229: 108494.1488 | Z229: 104204.5165 | AA229: 97152.77621 | AB229: 79961.89983 | AC229: 83486.09766 | AD229: 66978.20215 | AE229: 37735.84476
F230: Protein | J230: 000 kgMS | N230: =SUM(T230:AE230) -> 666254.827 | T230: =T206 -> 4297.790191 | U230: =U206 -> 7265.201057 | V230: 42184.49945 | W230: 76704.01399 | X230: 89552.13707 | Y230: 85040.84747 | Z230: 82026.87656 | AA230: 75386.82379 | AB230: 60971.49277 | AC230: 63525.46654 | AD230: 50567.12365 | AE230: 28732.55444
F231: Total | J231: 000 kgMS | N231: =N229+N230 -> 1524841.946 | T231: =T230+T229 -> 9918.4371 | U231: 16346.08 | V231: 95761.0547 | W231: 174450.0184 | X231: 204101.6848 | Y231: 193534.9963 | Z231: 186231.3931 | AA231: 172539.6 | AB231: 140933.3926 | AC231: 147011.5642 | AD231: 117545.3258 | AE231: 66468.3992
F232: Protein : Fat ratio | J232: % | N232: =N230/N229 -> 0.7759897768 | T232: =T230/T229 -> 0.7646433339 | U232: =U230/U229 -> 0.8000548298 | V232: 0.7873686403 | W232: 0.7847278716 | X232: 0.7817764351 | Y232: 0.7838288828 | Z232: 0.787171989 | AA232: 0.7759616012 | AB232: 0.7625068051 | AC232: 0.7609107184 | AD232: 0.7549788144 | AE232: 0.7614127795
F233: Valued Component Ratio | J233: % | N233: ='Data Input'!N74 -> 0.67 | T233: =$N233 -> 0.67 | U233: =$N233 -> 0.67 | V233: 0.67 | W233: 0.67 | X233: 0.67 | Y233: 0.67 | Z233: 0.67 | AA233: 0.67 | AB233: 0.67 | AC233: 0.67 | AD233: 0.67 | AE233: 0.67
F235: Fat Price | J235: NZD | N235: =(1+N232)/(1+1/N233*N232)*N225 -> 5.042587223 | T235: =$N235 -> 5.042587223 | U235: =$N235 -> 5.042587223 | V235: 5.042587223 | W235: 5.042587223 | X235: 5.042587223 | Y235: 5.042587223 | Z235: 5.042587223 | AA235: 5.042587223 | AB235: 5.042587223 | AC235: 5.042587223 | AD235: =$N235 -> 5.042587223 | AE235: 5.042587223 | AF235: 5.042587223 | AG235: 5.042587223 | AH235: 5.042587223 | AI235: 5.042587223 | AJ235: 5.042587223 | AK235: 5.042587223 | AL235: 5.042587223 | AM235: 5.042587223 | AN235: 5.042587223 | AO235: 5.042587223
F236: Protein Price | J236: NZD | N236: =(1+N232)/(N232+N233)*N225 -> 7.526249587 | T236: =$N236 -> 7.526249587 | U236: 7.526249587 | V236: 7.526249587 | W236: 7.526249587 | X236: 7.526249587 | Y236: 7.526249587 | Z236: 7.526249587 | AA236: 7.526249587 | AB236: 7.526249587 | AC236: 7.526249587 | AD236: 7.526249587 | AE236: 7.526249587 | AF236: 7.526249587 | AG236: 7.526249587 | AH236: 7.526249587 | AI236: 7.526249587 | AJ236: 7.526249587 | AK236: 7.526249587 | AL236: 7.526249587 | AM236: 7.526249587 | AN236: 7.526249587 | AO236: 7.526249587
D238: Conversion of Average FX Cash Conversion Rates to Corresponding ACRs for Transaction Months
D240: COMMENT | F240: This section converts average USD : NZD cash conversion rates into:
F241: 1. Average FX conversion rates by month of sale, given the receivables days assumption.
F242: 2. Average FX conversion rates by month in which a USD-denominated cost is incurred, given the Trade Creditors days assumption.
D244: DATA INPUT
F245: Average Conversion Rate to model - Cash | J245: USD : NZD | R245: ='Data Input'!R22 -> 0.6923938352 | S245: ='Data Input'!S22 -> 0.6923938352 | T245: ='Data Input'!T22 -> 0.6923938352 | U245: ='Data Input'!U22 -> 0.6923938352 | V245: ='Data Input'!V22 -> 0.6923938352 | W245: ='Data Input'!W22 -> 0.6923938352 | X245: ='Data Input'!X22 -> 0.6923938352 | Y245: ='Data Input'!Y22 -> 0.6923938352 | Z245: ='Data Input'!Z22 -> 0.6923938352 | AA245: ='Data Input'!AA22 -> 0.6923938352 | AB245: ='Data Input'!AB22 -> 0.6923938352 | AC245: ='Data Input'!AC22 -> 0.6923938352 | AD245: ='Data Input'!AD22 -> 0.6923938352 | AE245: ='Data Input'!AE22 -> 0.6923938352 | AF245: ='Data Input'!AF22 -> 0.6923938352 | AG245: ='Data Input'!AG22 -> 0.6923938352 | AH245: ='Data Input'!AH22 -> 0.6923938352 | AI245: ='Data Input'!AI22 -> 0.6923938352 | AJ245: ='Data Input'!AJ22 -> 0.6923938352 | AK245: ='Data Input'!AK22 -> 0.6923938352 | AL245: ='Data Input'!AL22 -> 0.6923938352 | AM245: ='Data Input'!AM22 -> 0.6923938352 | AN245: ='Data Input'!AN22 -> 0.6923938352 | AO245: =AN245 -> 0.6923938352
F247: Timing of Receipts in respect of sales
F248: Received in month of sale | J248: % | K248: ="Row "&ROW(F896) -> Row 896 | T248: =T896 -> 0.06401090152 | U248: =U896 -> 0.09420409825 | V248: 0.09420409825 | W248: 0.06401090152 | X248: 0.09420409825 | Y248: 0.06401090152 | Z248: 0.09420409825 | AA248: 0.09420409825 | AB248: 0 | AC248: 0.09420409825 | AD248: 0.06401090152 | AE248: 0.09420409825 | AF248: 0.06401090152 | AG248: 0.09420409825 | AH248: 0.09420409825 | AI248: 0.06401090152 | AJ248: 0.09420409825 | AK248: 0.06401090152 | AL248: 0.09420409825 | AM248: =AM896/SUM(AM$896:AM$898) -> 0.09420409825 | AN248: =AN896/SUM(AN$896:AN$897) -> 0 | AO248: 1
F249: Received in 1 month's time | J249: % | K249: ="Row "&ROW(F897) -> Row 897 | T249: =T897 -> 0.9359890985 | U249: =U897 -> 0.9057959018 | V249: 0.9057959018 | W249: 0.9359890985 | X249: 0.9057959018 | Y249: 0.9359890985 | Z249: 0.9057959018 | AA249: 0.9032258065 | AB249: 1 | AC249: 0.9057959018 | AD249: 0.9359890985 | AE249: 0.9057959018 | AF249: 0.9359890985 | AG249: 0.9057959018 | AH249: 0.9057959018 | AI249: 0.9359890985 | AJ249: 0.9057959018 | AK249: 0.9359890985 | AL249: 0.9057959018 | AM249: =AM897/SUM(AM$896:AM$898) -> 0.9032258065 | AN249: =AN897/SUM(AN$896:AN$897) -> 1
F250: Received in 2 month's time | J250: % | K250: ="Row "&ROW(F898) -> Row 898 | T250: =T898 -> 0 | U250: =U898 -> 0 | V250: 0 | W250: 0 | X250: 0 | Y250: 0 | Z250: 0 | AA250: 0.002570095299 | AB250: 0 | AC250: 0 | AD250: 0 | AE250: 0 | AF250: 0 | AG250: 0 | AH250: 0 | AI250: 0 | AJ250: 0 | AK250: 0 | AL250: 0 | AM250: =AM898/SUM(AM$896:AM$898) -> 0.002570095299
F251: Received in 3 month's time | J251: % | K251: ="Row "&ROW(F899) -> Row 899 | T251: =T899 -> 0 | U251: =U899 -> 0 | V251: 0 | W251: 0 | X251: 0 | Y251: 0 | Z251: 0 | AA251: 0 | AB251: 0 | AC251: 0 | AD251: 0 | AE251: 0 | AF251: 0 | AG251: 0 | AH251: 0 | AI251: 0 | AJ251: 0 | AK251: 0 | AL251: 0
... 828 more rows

Sheet Summary
J3: 1
S4: MONTHLY
I5: Period Number | O5: 1 | P5: 1 | Q5: 1 | R5: =IF(Q5=12,1,Q5+1) -> 2 | S5: 3 | T5: 4 | U5: 5 | V5: 6 | W5: 7 | X5: 8 | Y5: 9 | Z5: 10 | AA5: 11 | AB5: 12 | AC5: 1 | AD5: 2 | AE5: 3 | AF5: 4 | AG5: 5 | AH5: 6 | AI5: 7 | AJ5: 8
O6: =Global!R36 -> 2016-04-30 | P6: =Global!S36 -> 2016-05-31 | Q6: =Global!T36 -> 2016-06-30 | R6: =Global!U36 -> 2016-07-31 | S6: =Global!V36 -> 2016-08-31 | T6: =Global!W36 -> 2016-09-30 | U6: =Global!X36 -> 2016-10-31 | V6: =Global!Y36 -> 2016-11-30 | W6: =Global!Z36 -> 2016-12-31 | X6: =Global!AA36 -> 2017-01-31 | Y6: =Global!AB36 -> 2017-02-28 | Z6: =Global!AC36 -> 2017-03-31 | AA6: =Global!AD36 -> 2017-04-30 | AB6: =Global!AE36 -> 2017-05-31 | AC6: =Global!AF36 -> 2017-06-30 | AD6: =Global!AG36 -> 2017-07-31 | AE6: =Global!AH36 -> 2017-08-31 | AF6: =Global!AI36 -> 2017-09-30 | AG6: =Global!AJ36 -> 2017-10-31 | AH6: =Global!AK36 -> 2017-11-30 | AI6: =Global!AL36 -> 2017-12-31 | AJ6: =Global!AM36 -> 2018-01-31
I7: Period | O7: 1 | P7: 1 | Q7: 1 | R7: =Q7+1 -> 2 | S7: 3 | T7: 4 | U7: 5 | V7: 6 | W7: 7 | X7: 8 | Y7: 9 | Z7: 10 | AA7: 11 | AB7: 12 | AC7: 13 | AD7: 14 | AE7: 15 | AF7: 16 | AG7: 17 | AH7: 18 | AI7: 19 | AJ7: 20
I9: Financial Year | L9: =Global!O7 -> 2017-05-31 | O9: =Global!R36 -> 2016-04-30 | P9: =Global!S36 -> 2016-05-31 | Q9: =Global!T36 -> 2016-06-30 | R9: =Global!U36 -> 2016-07-31 | S9: =Global!V36 -> 2016-08-31 | T9: =Global!W36 -> 2016-09-30 | U9: =Global!X36 -> 2016-10-31 | V9: =Global!Y36 -> 2016-11-30 | W9: =Global!Z36 -> 2016-12-31 | X9: =Global!AA36 -> 2017-01-31 | Y9: =Global!AB36 -> 2017-02-28 | Z9: =Global!AC36 -> 2017-03-31 | AA9: =Global!AD36 -> 2017-04-30 | AB9: =Global!AE36 -> 2017-05-31 | AC9: =Global!AF36 -> 2017-06-30 | AD9: =Global!AG36 -> 2017-07-31 | AE9: =Global!AH36 -> 2017-08-31 | AF9: =Global!AI36 -> 2017-09-30 | AG9: =Global!AJ36 -> 2017-10-31 | AH9: =Global!AK36 -> 2017-11-30 | AI9: =Global!AL36 -> 2017-12-31 | AJ9: =Global!AM36 -> 2018-01-31
I10: KGMS 000s
I11: Milk Supply Paid for | L11: =SUM(O11:AB11) -> 1525717.315 | O11: ='Data Input'!R31 -> 0 | P11: ='Data Input'!S31 -> 0 | Q11: ='Data Input'!T31 -> 9918.4371 | R11: ='Data Input'!U31 -> 16346.08 | S11: ='Data Input'!V31 -> 95761.0547 | T11: ='Data Input'!W31 -> 174736.8535 | U11: ='Data Input'!X31 -> 204164.5346 | V11: ='Data Input'!Y31 -> 193840.691 | W11: ='Data Input'!Z31 -> 186307.0726 | X11: ='Data Input'!AA31 -> 172539.6 | Y11: ='Data Input'!AB31 -> 140933.3926 | Z11: ='Data Input'!AC31 -> 147011.5642 | AA11: ='Data Input'!AD31 -> 117681.059 | AB11: ='Data Input'!AE31 -> 66476.9756
I12: Milk Supply Collected | L12: =SUM(O12:AB12) -> 1524841.946 | O12: ='Data Input'!R32 -> 0 | P12: ='Data Input'!S32 -> 0 | Q12: ='Data Input'!T32 -> 9918.4371 | R12: ='Data Input'!U32 -> 16346.08 | S12: ='Data Input'!V32 -> 95761.0547 | T12: ='Data Input'!W32 -> 174450.0184 | U12: ='Data Input'!X32 -> 204101.6848 | V12: ='Data Input'!Y32 -> 193534.9963 | W12: ='Data Input'!Z32 -> 186231.3931 | X12: ='Data Input'!AA32 -> 172539.6 | Y12: ='Data Input'!AB32 -> 140933.3926 | Z12: ='Data Input'!AC32 -> 147011.5642 | AA12: ='Data Input'!AD32 -> 117545.3258 | AB12: ='Data Input'!AE32 -> 66468.3992
I14: $'000
I16: NZD Revenue
I17: Sales | J17: =$J$3&I17 -> 1Sales | L17: =SUM(O17:AJ17) -> 12400331.51 | O17: =-SUMIF(Calculations!$I$15:$I$1318,$J17,Calculations!R$15:R$1318) -> 0 | P17: =-SUMIF(Calculations!$I$15:$I$1318,$J17,Calculations!S$15:S$1318) -> 0 | Q17: =-SUMIF(Calculations!$I$15:$I$1318,$J17,Calculations!T$15:T$1318) -> 0 | R17: =-SUMIF(Calculations!$I$15:$I$1318,$J17,Calculations!U$15:U$1318) -> 0 | S17: =-SUMIF(Calculations!$I$15:$I$1318,$J17,Calculations!V$15:V$1318) -> 0 | T17: =-SUMIF(Calculations!$I$15:$I$1318,$J17,Calculations!W$15:W$1318) -> 707087.0191 | U17: =-SUMIF(Calculations!$I$15:$I$1318,$J17,Calculations!X$15:X$1318) -> 707087.0191 | V17: =-SUMIF(Calculations!$I$15:$I$1318,$J17,Calculations!Y$15:Y$1318) -> 1322977.92 | W17: =-SUMIF(Calculations!$I$15:$I$1318,$J17,Calculations!Z$15:Z$1318) -> 1322977.92 | X17: =-SUMIF(Calculations!$I$15:$I$1318,$J17,Calculations!AA$15:AA$1318) -> 1322977.92 | Y17: =-SUMIF(Calculations!$I$15:$I$1318,$J17,Calculations!AB$15:AB$1318) -> 1005325.067 | Z17: =-SUMIF(Calculations!$I$15:$I$1318,$J17,Calculations!AC$15:AC$1318) -> 1005325.067 | AA17: =-SUMIF(Calculations!$I$15:$I$1318,$J17,Calculations!AD$15:AD$1318) -> 1005325.067 | AB17: =-SUMIF(Calculations!$I$15:$I$1318,$J17,Calculations!AE$15:AE$1318) -> 1138415.96 | AC17: =-SUMIF(Calculations!$I$15:$I$1318,$J17,Calculations!AF$15:AF$1318) -> 1138415.96 | AD17: =-SUMIF(Calculations!$I$15:$I$1318,$J17,Calculations!AG$15:AG$1318) -> 1138415.96 | AE17: =-SUMIF(Calculations!$I$15:$I$1318,$J17,Calculations!AH$15:AH$1318) -> 195333.5426 | AF17: =-SUMIF(Calculations!$I$15:$I$1318,$J17,Calculations!AI$15:AI$1318) -> 195333.5426 | AG17: =-SUMIF(Calculations!$I$15:$I$1318,$J17,Calculations!AJ$15:AJ$1318) -> 195333.5426 | AH17: =-SUMIF(Calculations!$I$15:$I$1318,$J17,Calculations!AK$15:AK$1318) -> 0 | AI17: =-SUMIF(Calculations!$I$15:$I$1318,$J17,Calculations!AL$15:AL$1318) -> 0 | AJ17: =-SUMIF(Calculations!$I$15:$I$1318,$J17,Calculations!AM$15:AM$1318) -> 0
I18: Downgrade expense (excl rework) | J18: =$J$3&I18 -> 1Downgrade expense (excl rework) | L18: =SUM(O18:AJ18) -> 0 | O18: =-SUMIF(Calculations!$I$15:$I$1318,$J18,Calculations!R$15:R$1318) -> 0 | P18: =-SUMIF(Calculations!$I$15:$I$1318,$J18,Calculations!S$15:S$1318) -> 0 | Q18: =-SUMIF(Calculations!$I$15:$I$1318,$J18,Calculations!T$15:T$1318) -> 0 | R18: =-SUMIF(Calculations!$I$15:$I$1318,$J18,Calculations!U$15:U$1318) -> 0 | S18: =-SUMIF(Calculations!$I$15:$I$1318,$J18,Calculations!V$15:V$1318) -> 0 | T18: =-SUMIF(Calculations!$I$15:$I$1318,$J18,Calculations!W$15:W$1318) -> 0 | U18: =-SUMIF(Calculations!$I$15:$I$1318,$J18,Calculations!X$15:X$1318) -> 0 | V18: =-SUMIF(Calculations!$I$15:$I$1318,$J18,Calculations!Y$15:Y$1318) -> 0 | W18: =-SUMIF(Calculations!$I$15:$I$1318,$J18,Calculations!Z$15:Z$1318) -> 0 | X18: =-SUMIF(Calculations!$I$15:$I$1318,$J18,Calculations!AA$15:AA$1318) -> 0 | Y18: =-SUMIF(Calculations!$I$15:$I$1318,$J18,Calculations!AB$15:AB$1318) -> 0 | Z18: =-SUMIF(Calculations!$I$15:$I$1318,$J18,Calculations!AC$15:AC$1318) -> 0 | AA18: =-SUMIF(Calculations!$I$15:$I$1318,$J18,Calculations!AD$15:AD$1318) -> 0 | AB18: =-SUMIF(Calculations!$I$15:$I$1318,$J18,Calculations!AE$15:AE$1318) -> 0 | AC18: =-SUMIF(Calculations!$I$15:$I$1318,$J18,Calculations!AF$15:AF$1318) -> 0 | AD18: =-SUMIF(Calculations!$I$15:$I$1318,$J18,Calculations!AG$15:AG$1318) -> 0 | AE18: =-SUMIF(Calculations!$I$15:$I$1318,$J18,Calculations!AH$15:AH$1318) -> 0 | AF18: =-SUMIF(Calculations!$I$15:$I$1318,$J18,Calculations!AI$15:AI$1318) -> 0 | AG18: =-SUMIF(Calculations!$I$15:$I$1318,$J18,Calculations!AJ$15:AJ$1318) -> 0 | AH18: =-SUMIF(Calculations!$I$15:$I$1318,$J18,Calculations!AK$15:AK$1318) -> 0 | AI18: =-SUMIF(Calculations!$I$15:$I$1318,$J18,Calculations!AL$15:AL$1318) -> 0 | AJ18: =-SUMIF(Calculations!$I$15:$I$1318,$J18,Calculations!AM$15:AM$1318) -> 0
I19: Net Sales | L19: =SUM(L17:L18) -> 12400331.51 | O19: =SUM(O17:O18) -> 0 | P19: =SUM(P17:P18) -> 0 | Q19: =SUM(Q17:Q18) -> 0 | R19: 0 | S19: 0 | T19: 707087.0191 | U19: 707087.0191 | V19: 1322977.92 | W19: 1322977.92 | X19: 1322977.92 | Y19: 1005325.067 | Z19: 1005325.067 | AA19: 1005325.067 | AB19: 1138415.96 | AC19: 1138415.96 | AD19: 1138415.96 | AE19: 195333.5426 | AF19: 195333.5426 | AG19: 195333.5426 | AH19: 0 | AI19: 0 | AJ19: 0
I20: Average conversion rate (Sales) | L20: =Calculations!N334/Calculations!N342 -> 0.6923938352
I21: Non-Milk Costs
I22: Commission | J22: =$J$3&I22 -> 1Commission | L22: =SUM(O22:AJ22) -> 106195.2616 | O22: =SUMIF(Calculations!$I$15:$I$1318,$J22,Calculations!R$15:R$1318) -> 0 | P22: =SUMIF(Calculations!$I$15:$I$1318,$J22,Calculations!S$15:S$1318) -> 0 | Q22: =SUMIF(Calculations!$I$15:$I$1318,$J22,Calculations!T$15:T$1318) -> 0 | R22: =SUMIF(Calculations!$I$15:$I$1318,$J22,Calculations!U$15:U$1318) -> 0 | S22: =SUMIF(Calculations!$I$15:$I$1318,$J22,Calculations!V$15:V$1318) -> 7284.417835 | T22: =SUMIF(Calculations!$I$15:$I$1318,$J22,Calculations!W$15:W$1318) -> 8634.283519 | U22: =SUMIF(Calculations!$I$15:$I$1318,$J22,Calculations!X$15:X$1318) -> 8634.283519 | V22: =SUMIF(Calculations!$I$15:$I$1318,$J22,Calculations!Y$15:Y$1318) -> 9411.28486 | W22: =SUMIF(Calculations!$I$15:$I$1318,$J22,Calculations!Z$15:Z$1318) -> 9411.28486 | X22: =SUMIF(Calculations!$I$15:$I$1318,$J22,Calculations!AA$15:AA$1318) -> 9411.28486 | Y22: =SUMIF(Calculations!$I$15:$I$1318,$J22,Calculations!AB$15:AB$1318) -> 8630.807876 | Z22: =SUMIF(Calculations!$I$15:$I$1318,$J22,Calculations!AC$15:AC$1318) -> 8630.807876 | AA22: =SUMIF(Calculations!$I$15:$I$1318,$J22,Calculations!AD$15:AD$1318) -> 8630.807876 | AB22: =SUMIF(Calculations!$I$15:$I$1318,$J22,Calculations!AE$15:AE$1318) -> 8917.994937 | AC22: =SUMIF(Calculations!$I$15:$I$1318,$J22,Calculations!AF$15:AF$1318) -> 8917.994937 | AD22: =SUMIF(Calculations!$I$15:$I$1318,$J22,Calculations!AG$15:AG$1318) -> 8917.994937 | AE22: =SUMIF(Calculations!$I$15:$I$1318,$J22,Calculations!AH$15:AH$1318) -> 254.0045579 | AF22: =SUMIF(Calculations!$I$15:$I$1318,$J22,Calculations!AI$15:AI$1318) -> 254.0045579 | AG22: =SUMIF(Calculations!$I$15:$I$1318,$J22,Calculations!AJ$15:AJ$1318) -> 254.0045579 | AH22: =SUMIF(Calculations!$I$15:$I$1318,$J22,Calculations!AK$15:AK$1318) -> 0 | AI22: =SUMIF(Calculations!$I$15:$I$1318,$J22,Calculations!AL$15:AL$1318) -> 0 | AJ22: =SUMIF(Calculations!$I$15:$I$1318,$J22,Calculations!AM$15:AM$1318) -> 0
I23: Collection Costs | J23: 1Collection Costs | L23: =SUM(O23:AJ23) -> 345987.6783 | O23: =SUMIF(Calculations!$I$15:$I$1318,$J23,Calculations!R$15:R$1318) -> 0 | P23: =SUMIF(Calculations!$I$15:$I$1318,$J23,Calculations!S$15:S$1318) -> 0 | Q23: =SUMIF(Calculations!$I$15:$I$1318,$J23,Calculations!T$15:T$1318) -> 14302.95232 | R23: =SUMIF(Calculations!$I$15:$I$1318,$J23,Calculations!U$15:U$1318) -> 16001.63442 | S23: =SUMIF(Calculations!$I$15:$I$1318,$J23,Calculations!V$15:V$1318) -> 21738.35873 | T23: =SUMIF(Calculations!$I$15:$I$1318,$J23,Calculations!W$15:W$1318) -> 35462.26843 | U23: =SUMIF(Calculations!$I$15:$I$1318,$J23,Calculations!X$15:X$1318) -> 46242.34313 | V23: =SUMIF(Calculations!$I$15:$I$1318,$J23,Calculations!Y$15:Y$1318) -> 43564.72635 | W23: =SUMIF(Calculations!$I$15:$I$1318,$J23,Calculations!Z$15:Z$1318) -> 38107.14405 | X23: =SUMIF(Calculations!$I$15:$I$1318,$J23,Calculations!AA$15:AA$1318) -> 35097.48681 | Y23: =SUMIF(Calculations!$I$15:$I$1318,$J23,Calculations!AB$15:AB$1318) -> 26547.30081 | Z23: =SUMIF(Calculations!$I$15:$I$1318,$J23,Calculations!AC$15:AC$1318) -> 25910.59056 | AA23: =SUMIF(Calculations!$I$15:$I$1318,$J23,Calculations!AD$15:AD$1318) -> 23112.87758 | AB23: =SUMIF(Calculations!$I$15:$I$1318,$J23,Calculations!AE$15:AE$1318) -> 19899.99507 | AC23: =SUMIF(Calculations!$I$15:$I$1318,$J23,Calculations!AF$15:AF$1318) -> 0 | AD23: =SUMIF(Calculations!$I$15:$I$1318,$J23,Calculations!AG$15:AG$1318) -> 0 | AE23: =SUMIF(Calculations!$I$15:$I$1318,$J23,Calculations!AH$15:AH$1318) -> 0 | AF23: =SUMIF(Calculations!$I$15:$I$1318,$J23,Calculations!AI$15:AI$1318) -> 0 | AG23: =SUMIF(Calculations!$I$15:$I$1318,$J23,Calculations!AJ$15:AJ$1318) -> 0 | AH23: =SUMIF(Calculations!$I$15:$I$1318,$J23,Calculations!AK$15:AK$1318) -> 0 | AI23: =SUMIF(Calculations!$I$15:$I$1318,$J23,Calculations!AL$15:AL$1318) -> 0 | AJ23: =SUMIF(Calculations!$I$15:$I$1318,$J23,Calculations!AM$15:AM$1318) -> 0
I24: Lactose | J24: 1Lactose | L24: =SUM(O24:AJ24) -> 415494.2005 | O24: =SUMIF(Calculations!$I$15:$I$1318,$J24,Calculations!R$15:R$1318) -> 0 | P24: =SUMIF(Calculations!$I$15:$I$1318,$J24,Calculations!S$15:S$1318) -> 0 | Q24: =SUMIF(Calculations!$I$15:$I$1318,$J24,Calculations!T$15:T$1318) -> 2222.841062 | R24: =SUMIF(Calculations!$I$15:$I$1318,$J24,Calculations!U$15:U$1318) -> 3694.109454 | S24: =SUMIF(Calculations!$I$15:$I$1318,$J24,Calculations!V$15:V$1318) -> 19428.36239 | T24: =SUMIF(Calculations!$I$15:$I$1318,$J24,Calculations!W$15:W$1318) -> 32434.17644 | U24: =SUMIF(Calculations!$I$15:$I$1318,$J24,Calculations!X$15:X$1318) -> 39040.09556 | V24: =SUMIF(Calculations!$I$15:$I$1318,$J24,Calculations!Y$15:Y$1318) -> 41832.60146 | W24: =SUMIF(Calculations!$I$15:$I$1318,$J24,Calculations!Z$15:Z$1318) -> 46359.02042 | X24: =SUMIF(Calculations!$I$15:$I$1318,$J24,Calculations!AA$15:AA$1318) -> 49393.94958 | Y24: =SUMIF(Calculations!$I$15:$I$1318,$J24,Calculations!AB$15:AB$1318) -> 44555.17688 | Z24: =SUMIF(Calculations!$I$15:$I$1318,$J24,Calculations!AC$15:AC$1318) -> 54341.92797 | AA24: =SUMIF(Calculations!$I$15:$I$1318,$J24,Calculations!AD$15:AD$1318) -> 50346.85125 | AB24: =SUMIF(Calculations!$I$15:$I$1318,$J24,Calculations!AE$15:AE$1318) -> 31845.088 | AC24: =SUMIF(Calculations!$I$15:$I$1318,$J24,Calculations!AF$15:AF$1318) -> 0 | AD24: =SUMIF(Calculations!$I$15:$I$1318,$J24,Calculations!AG$15:AG$1318) -> 0 | AE24: =SUMIF(Calculations!$I$15:$I$1318,$J24,Calculations!AH$15:AH$1318) -> 0 | AF24: =SUMIF(Calculations!$I$15:$I$1318,$J24,Calculations!AI$15:AI$1318) -> 0 | AG24: =SUMIF(Calculations!$I$15:$I$1318,$J24,Calculations!AJ$15:AJ$1318) -> 0 | AH24: =SUMIF(Calculations!$I$15:$I$1318,$J24,Calculations!AK$15:AK$1318) -> 0 | AI24: =SUMIF(Calculations!$I$15:$I$1318,$J24,Calculations!AL$15:AL$1318) -> 0 | AJ24: =SUMIF(Calculations!$I$15:$I$1318,$J24,Calculations!AM$15:AM$1318) -> 0
I25: Operating Costs
I26: Packaging | J26: 1Packaging | L26: =SUM(O26:AJ26) -> 475777.5461 | O26: =SUMIF(Calculations!$I$15:$I$1318,$J26,Calculations!R$15:R$1318) -> 0 | P26: =SUMIF(Calculations!$I$15:$I$1318,$J26,Calculations!S$15:S$1318) -> 0 | Q26: =SUMIF(Calculations!$I$15:$I$1318,$J26,Calculations!T$15:T$1318) -> 3031.44873 | R26: =SUMIF(Calculations!$I$15:$I$1318,$J26,Calculations!U$15:U$1318) -> 5096.944168 | S26: =SUMIF(Calculations!$I$15:$I$1318,$J26,Calculations!V$15:V$1318) -> 29947.36596 | T26: =SUMIF(Calculations!$I$15:$I$1318,$J26,Calculations!W$15:W$1318) -> 54629.84357 | U26: =SUMIF(Calculations!$I$15:$I$1318,$J26,Calculations!X$15:X$1318) -> 63841.51597 | V26: =SUMIF(Calculations!$I$15:$I$1318,$J26,Calculations!Y$15:Y$1318) -> 60500.15673 | W26: =SUMIF(Calculations!$I$15:$I$1318,$J26,Calculations!Z$15:Z$1318) -> 58292.2258 | X26: =SUMIF(Calculations!$I$15:$I$1318,$J26,Calculations!AA$15:AA$1318) -> 53881.09121 | Y26: =SUMIF(Calculations!$I$15:$I$1318,$J26,Calculations!AB$15:AB$1318) -> 43870.49694 | Z26: =SUMIF(Calculations!$I$15:$I$1318,$J26,Calculations!AC$15:AC$1318) -> 45615.84534 | AA26: =SUMIF(Calculations!$I$15:$I$1318,$J26,Calculations!AD$15:AD$1318) -> 36452.5048 | AB26: =SUMIF(Calculations!$I$15:$I$1318,$J26,Calculations!AE$15:AE$1318) -> 20618.10688 | AC26: =SUMIF(Calculations!$I$15:$I$1318,$J26,Calculations!AF$15:AF$1318) -> 0 | AD26: =SUMIF(Calculations!$I$15:$I$1318,$J26,Calculations!AG$15:AG$1318) -> 0 | AE26: =SUMIF(Calculations!$I$15:$I$1318,$J26,Calculations!AH$15:AH$1318) -> 0 | AF26: =SUMIF(Calculations!$I$15:$I$1318,$J26,Calculations!AI$15:AI$1318) -> 0 | AG26: =SUMIF(Calculations!$I$15:$I$1318,$J26,Calculations!AJ$15:AJ$1318) -> 0 | AH26: =SUMIF(Calculations!$I$15:$I$1318,$J26,Calculations!AK$15:AK$1318) -> 0 | AI26: =SUMIF(Calculations!$I$15:$I$1318,$J26,Calculations!AL$15:AL$1318) -> 0 | AJ26: =SUMIF(Calculations!$I$15:$I$1318,$J26,Calculations!AM$15:AM$1318) -> 0
I27: Energy - Variable | J27: 1Energy - Variable | L27: 0 | O27: =SUMIF(Calculations!$I$15:$I$1318,$J27,Calculations!R$15:R$1318) -> 0 | P27: =SUMIF(Calculations!$I$15:$I$1318,$J27,Calculations!S$15:S$1318) -> 0 | Q27: =SUMIF(Calculations!$I$15:$I$1318,$J27,Calculations!T$15:T$1318) -> 0 | R27: =SUMIF(Calculations!$I$15:$I$1318,$J27,Calculations!U$15:U$1318) -> 0 | S27: =SUMIF(Calculations!$I$15:$I$1318,$J27,Calculations!V$15:V$1318) -> 0 | T27: =SUMIF(Calculations!$I$15:$I$1318,$J27,Calculations!W$15:W$1318) -> 0 | U27: =SUMIF(Calculations!$I$15:$I$1318,$J27,Calculations!X$15:X$1318) -> 0 | V27: =SUMIF(Calculations!$I$15:$I$1318,$J27,Calculations!Y$15:Y$1318) -> 0 | W27: =SUMIF(Calculations!$I$15:$I$1318,$J27,Calculations!Z$15:Z$1318) -> 0 | X27: =SUMIF(Calculations!$I$15:$I$1318,$J27,Calculations!AA$15:AA$1318) -> 0 | Y27: =SUMIF(Calculations!$I$15:$I$1318,$J27,Calculations!AB$15:AB$1318) -> 0 | Z27: =SUMIF(Calculations!$I$15:$I$1318,$J27,Calculations!AC$15:AC$1318) -> 0 | AA27: =SUMIF(Calculations!$I$15:$I$1318,$J27,Calculations!AD$15:AD$1318) -> 0 | AB27: =SUMIF(Calculations!$I$15:$I$1318,$J27,Calculations!AE$15:AE$1318) -> 0 | AC27: =SUMIF(Calculations!$I$15:$I$1318,$J27,Calculations!AF$15:AF$1318) -> 0 | AD27: =SUMIF(Calculations!$I$15:$I$1318,$J27,Calculations!AG$15:AG$1318) -> 0 | AE27: =SUMIF(Calculations!$I$15:$I$1318,$J27,Calculations!AH$15:AH$1318) -> 0 | AF27: =SUMIF(Calculations!$I$15:$I$1318,$J27,Calculations!AI$15:AI$1318) -> 0 | AG27: =SUMIF(Calculations!$I$15:$I$1318,$J27,Calculations!AJ$15:AJ$1318) -> 0 | AH27: =SUMIF(Calculations!$I$15:$I$1318,$J27,Calculations!AK$15:AK$1318) -> 0 | AI27: =SUMIF(Calculations!$I$15:$I$1318,$J27,Calculations!AL$15:AL$1318) -> 0 | AJ27: =SUMIF(Calculations!$I$15:$I$1318,$J27,Calculations!AM$15:AM$1318) -> 0
I28: Water | J28: 1Water | L28: 0 | O28: =SUMIF(Calculations!$I$15:$I$1318,$J28,Calculations!R$15:R$1318) -> 0 | P28: =SUMIF(Calculations!$I$15:$I$1318,$J28,Calculations!S$15:S$1318) -> 0 | Q28: =SUMIF(Calculations!$I$15:$I$1318,$J28,Calculations!T$15:T$1318) -> 0 | R28: =SUMIF(Calculations!$I$15:$I$1318,$J28,Calculations!U$15:U$1318) -> 0 | S28: =SUMIF(Calculations!$I$15:$I$1318,$J28,Calculations!V$15:V$1318) -> 0 | T28: =SUMIF(Calculations!$I$15:$I$1318,$J28,Calculations!W$15:W$1318) -> 0 | U28: =SUMIF(Calculations!$I$15:$I$1318,$J28,Calculations!X$15:X$1318) -> 0 | V28: =SUMIF(Calculations!$I$15:$I$1318,$J28,Calculations!Y$15:Y$1318) -> 0 | W28: =SUMIF(Calculations!$I$15:$I$1318,$J28,Calculations!Z$15:Z$1318) -> 0 | X28: =SUMIF(Calculations!$I$15:$I$1318,$J28,Calculations!AA$15:AA$1318) -> 0 | Y28: =SUMIF(Calculations!$I$15:$I$1318,$J28,Calculations!AB$15:AB$1318) -> 0 | Z28: =SUMIF(Calculations!$I$15:$I$1318,$J28,Calculations!AC$15:AC$1318) -> 0 | AA28: =SUMIF(Calculations!$I$15:$I$1318,$J28,Calculations!AD$15:AD$1318) -> 0 | AB28: =SUMIF(Calculations!$I$15:$I$1318,$J28,Calculations!AE$15:AE$1318) -> 0 | AC28: =SUMIF(Calculations!$I$15:$I$1318,$J28,Calculations!AF$15:AF$1318) -> 0 | AD28: =SUMIF(Calculations!$I$15:$I$1318,$J28,Calculations!AG$15:AG$1318) -> 0 | AE28: =SUMIF(Calculations!$I$15:$I$1318,$J28,Calculations!AH$15:AH$1318) -> 0 | AF28: =SUMIF(Calculations!$I$15:$I$1318,$J28,Calculations!AI$15:AI$1318) -> 0 | AG28: =SUMIF(Calculations!$I$15:$I$1318,$J28,Calculations!AJ$15:AJ$1318) -> 0 | AH28: =SUMIF(Calculations!$I$15:$I$1318,$J28,Calculations!AK$15:AK$1318) -> 0 | AI28: =SUMIF(Calculations!$I$15:$I$1318,$J28,Calculations!AL$15:AL$1318) -> 0 | AJ28: =SUMIF(Calculations!$I$15:$I$1318,$J28,Calculations!AM$15:AM$1318) -> 0
I29: Cleaning & CIP | J29: 1Cleaning & CIP | L29: 0 | O29: =SUMIF(Calculations!$I$15:$I$1318,$J29,Calculations!R$15:R$1318) -> 0 | P29: =SUMIF(Calculations!$I$15:$I$1318,$J29,Calculations!S$15:S$1318) -> 0 | Q29: =SUMIF(Calculations!$I$15:$I$1318,$J29,Calculations!T$15:T$1318) -> 0 | R29: =SUMIF(Calculations!$I$15:$I$1318,$J29,Calculations!U$15:U$1318) -> 0 | S29: =SUMIF(Calculations!$I$15:$I$1318,$J29,Calculations!V$15:V$1318) -> 0 | T29: =SUMIF(Calculations!$I$15:$I$1318,$J29,Calculations!W$15:W$1318) -> 0 | U29: =SUMIF(Calculations!$I$15:$I$1318,$J29,Calculations!X$15:X$1318) -> 0 | V29: =SUMIF(Calculations!$I$15:$I$1318,$J29,Calculations!Y$15:Y$1318) -> 0 | W29: =SUMIF(Calculations!$I$15:$I$1318,$J29,Calculations!Z$15:Z$1318) -> 0 | X29: =SUMIF(Calculations!$I$15:$I$1318,$J29,Calculations!AA$15:AA$1318) -> 0 | Y29: =SUMIF(Calculations!$I$15:$I$1318,$J29,Calculations!AB$15:AB$1318) -> 0 | Z29: =SUMIF(Calculations!$I$15:$I$1318,$J29,Calculations!AC$15:AC$1318) -> 0 | AA29: =SUMIF(Calculations!$I$15:$I$1318,$J29,Calculations!AD$15:AD$1318) -> 0 | AB29: =SUMIF(Calculations!$I$15:$I$1318,$J29,Calculations!AE$15:AE$1318) -> 0 | AC29: =SUMIF(Calculations!$I$15:$I$1318,$J29,Calculations!AF$15:AF$1318) -> 0 | AD29: =SUMIF(Calculations!$I$15:$I$1318,$J29,Calculations!AG$15:AG$1318) -> 0 | AE29: =SUMIF(Calculations!$I$15:$I$1318,$J29,Calculations!AH$15:AH$1318) -> 0 | AF29: =SUMIF(Calculations!$I$15:$I$1318,$J29,Calculations!AI$15:AI$1318) -> 0 | AG29: =SUMIF(Calculations!$I$15:$I$1318,$J29,Calculations!AJ$15:AJ$1318) -> 0 | AH29: =SUMIF(Calculations!$I$15:$I$1318,$J29,Calculations!AK$15:AK$1318) -> 0 | AI29: =SUMIF(Calculations!$I$15:$I$1318,$J29,Calculations!AL$15:AL$1318) -> 0 | AJ29: =SUMIF(Calculations!$I$15:$I$1318,$J29,Calculations!AM$15:AM$1318) -> 0
I30: Consumables | J30: 1Consumables | L30: 0 | O30: =SUMIF(Calculations!$I$15:$I$1318,$J30,Calculations!R$15:R$1318) -> 0 | P30: =SUMIF(Calculations!$I$15:$I$1318,$J30,Calculations!S$15:S$1318) -> 0 | Q30: =SUMIF(Calculations!$I$15:$I$1318,$J30,Calculations!T$15:T$1318) -> 0 | R30: =SUMIF(Calculations!$I$15:$I$1318,$J30,Calculations!U$15:U$1318) -> 0 | S30: =SUMIF(Calculations!$I$15:$I$1318,$J30,Calculations!V$15:V$1318) -> 0 | T30: =SUMIF(Calculations!$I$15:$I$1318,$J30,Calculations!W$15:W$1318) -> 0 | U30: =SUMIF(Calculations!$I$15:$I$1318,$J30,Calculations!X$15:X$1318) -> 0 | V30: =SUMIF(Calculations!$I$15:$I$1318,$J30,Calculations!Y$15:Y$1318) -> 0 | W30: =SUMIF(Calculations!$I$15:$I$1318,$J30,Calculations!Z$15:Z$1318) -> 0 | X30: =SUMIF(Calculations!$I$15:$I$1318,$J30,Calculations!AA$15:AA$1318) -> 0 | Y30: =SUMIF(Calculations!$I$15:$I$1318,$J30,Calculations!AB$15:AB$1318) -> 0 | Z30: =SUMIF(Calculations!$I$15:$I$1318,$J30,Calculations!AC$15:AC$1318) -> 0 | AA30: =SUMIF(Calculations!$I$15:$I$1318,$J30,Calculations!AD$15:AD$1318) -> 0 | AB30: =SUMIF(Calculations!$I$15:$I$1318,$J30,Calculations!AE$15:AE$1318) -> 0 | AC30: =SUMIF(Calculations!$I$15:$I$1318,$J30,Calculations!AF$15:AF$1318) -> 0 | AD30: =SUMIF(Calculations!$I$15:$I$1318,$J30,Calculations!AG$15:AG$1318) -> 0 | AE30: =SUMIF(Calculations!$I$15:$I$1318,$J30,Calculations!AH$15:AH$1318) -> 0 | AF30: =SUMIF(Calculations!$I$15:$I$1318,$J30,Calculations!AI$15:AI$1318) -> 0 | AG30: =SUMIF(Calculations!$I$15:$I$1318,$J30,Calculations!AJ$15:AJ$1318) -> 0 | AH30: =SUMIF(Calculations!$I$15:$I$1318,$J30,Calculations!AK$15:AK$1318) -> 0 | AI30: =SUMIF(Calculations!$I$15:$I$1318,$J30,Calculations!AL$15:AL$1318) -> 0 | AJ30: =SUMIF(Calculations!$I$15:$I$1318,$J30,Calculations!AM$15:AM$1318) -> 0
I31: Effluent | J31: 1Effluent | L31: 0 | O31: =SUMIF(Calculations!$I$15:$I$1318,$J31,Calculations!R$15:R$1318) -> 0 | P31: =SUMIF(Calculations!$I$15:$I$1318,$J31,Calculations!S$15:S$1318) -> 0 | Q31: =SUMIF(Calculations!$I$15:$I$1318,$J31,Calculations!T$15:T$1318) -> 0 | R31: =SUMIF(Calculations!$I$15:$I$1318,$J31,Calculations!U$15:U$1318) -> 0 | S31: =SUMIF(Calculations!$I$15:$I$1318,$J31,Calculations!V$15:V$1318) -> 0 | T31: =SUMIF(Calculations!$I$15:$I$1318,$J31,Calculations!W$15:W$1318) -> 0 | U31: =SUMIF(Calculations!$I$15:$I$1318,$J31,Calculations!X$15:X$1318) -> 0 | V31: =SUMIF(Calculations!$I$15:$I$1318,$J31,Calculations!Y$15:Y$1318) -> 0 | W31: =SUMIF(Calculations!$I$15:$I$1318,$J31,Calculations!Z$15:Z$1318) -> 0 | X31: =SUMIF(Calculations!$I$15:$I$1318,$J31,Calculations!AA$15:AA$1318) -> 0 | Y31: =SUMIF(Calculations!$I$15:$I$1318,$J31,Calculations!AB$15:AB$1318) -> 0 | Z31: =SUMIF(Calculations!$I$15:$I$1318,$J31,Calculations!AC$15:AC$1318) -> 0 | AA31: =SUMIF(Calculations!$I$15:$I$1318,$J31,Calculations!AD$15:AD$1318) -> 0 | AB31: =SUMIF(Calculations!$I$15:$I$1318,$J31,Calculations!AE$15:AE$1318) -> 0 | AC31: =SUMIF(Calculations!$I$15:$I$1318,$J31,Calculations!AF$15:AF$1318) -> 0 | AD31: =SUMIF(Calculations!$I$15:$I$1318,$J31,Calculations!AG$15:AG$1318) -> 0 | AE31: =SUMIF(Calculations!$I$15:$I$1318,$J31,Calculations!AH$15:AH$1318) -> 0 | AF31: =SUMIF(Calculations!$I$15:$I$1318,$J31,Calculations!AI$15:AI$1318) -> 0 | AG31: =SUMIF(Calculations!$I$15:$I$1318,$J31,Calculations!AJ$15:AJ$1318) -> 0 | AH31: =SUMIF(Calculations!$I$15:$I$1318,$J31,Calculations!AK$15:AK$1318) -> 0 | AI31: =SUMIF(Calculations!$I$15:$I$1318,$J31,Calculations!AL$15:AL$1318) -> 0 | AJ31: =SUMIF(Calculations!$I$15:$I$1318,$J31,Calculations!AM$15:AM$1318) -> 0
I32: Laboratory | J32: 1Laboratory | L32: 0 | O32: =SUMIF(Calculations!$I$15:$I$1318,$J32,Calculations!R$15:R$1318) -> 0 | P32: =SUMIF(Calculations!$I$15:$I$1318,$J32,Calculations!S$15:S$1318) -> 0 | Q32: =SUMIF(Calculations!$I$15:$I$1318,$J32,Calculations!T$15:T$1318) -> 0 | R32: =SUMIF(Calculations!$I$15:$I$1318,$J32,Calculations!U$15:U$1318) -> 0 | S32: =SUMIF(Calculations!$I$15:$I$1318,$J32,Calculations!V$15:V$1318) -> 0 | T32: =SUMIF(Calculations!$I$15:$I$1318,$J32,Calculations!W$15:W$1318) -> 0 | U32: =SUMIF(Calculations!$I$15:$I$1318,$J32,Calculations!X$15:X$1318) -> 0 | V32: =SUMIF(Calculations!$I$15:$I$1318,$J32,Calculations!Y$15:Y$1318) -> 0 | W32: =SUMIF(Calculations!$I$15:$I$1318,$J32,Calculations!Z$15:Z$1318) -> 0 | X32: =SUMIF(Calculations!$I$15:$I$1318,$J32,Calculations!AA$15:AA$1318) -> 0 | Y32: =SUMIF(Calculations!$I$15:$I$1318,$J32,Calculations!AB$15:AB$1318) -> 0 | Z32: =SUMIF(Calculations!$I$15:$I$1318,$J32,Calculations!AC$15:AC$1318) -> 0 | AA32: =SUMIF(Calculations!$I$15:$I$1318,$J32,Calculations!AD$15:AD$1318) -> 0 | AB32: =SUMIF(Calculations!$I$15:$I$1318,$J32,Calculations!AE$15:AE$1318) -> 0 | AC32: =SUMIF(Calculations!$I$15:$I$1318,$J32,Calculations!AF$15:AF$1318) -> 0 | AD32: =SUMIF(Calculations!$I$15:$I$1318,$J32,Calculations!AG$15:AG$1318) -> 0 | AE32: =SUMIF(Calculations!$I$15:$I$1318,$J32,Calculations!AH$15:AH$1318) -> 0 | AF32: =SUMIF(Calculations!$I$15:$I$1318,$J32,Calculations!AI$15:AI$1318) -> 0 | AG32: =SUMIF(Calculations!$I$15:$I$1318,$J32,Calculations!AJ$15:AJ$1318) -> 0 | AH32: =SUMIF(Calculations!$I$15:$I$1318,$J32,Calculations!AK$15:AK$1318) -> 0 | AI32: =SUMIF(Calculations!$I$15:$I$1318,$J32,Calculations!AL$15:AL$1318) -> 0 | AJ32: =SUMIF(Calculations!$I$15:$I$1318,$J32,Calculations!AM$15:AM$1318) -> 0
I33: Variable operating costs | L33: =SUM(L26:L32) -> 475777.5461 | O33: =SUM(O26:O32) -> 0 | P33: 0 | Q33: 3031.44873 | R33: 5096.944168 | S33: 29947.36596 | T33: 54629.84357 | U33: 63841.51597 | V33: 60500.15673 | W33: 58292.2258 | X33: 53881.09121 | Y33: 43870.49694 | Z33: 45615.84534 | AA33: 36452.5048 | AB33: 20618.10688 | AC33: 0 | AD33: 0 | AE33: 0 | AF33: 0 | AG33: 0 | AH33: 0 | AI33: 0 | AJ33: 0
I34: Wages & ERE | J34: 1Wages & ERE | L34: =SUM(O34:AJ34) -> 0 | O34: =SUMIF(Calculations!$I$15:$I$1318,$J34,Calculations!R$15:R$1318) -> 0 | P34: =SUMIF(Calculations!$I$15:$I$1318,$J34,Calculations!S$15:S$1318) -> 0 | Q34: =SUMIF(Calculations!$I$15:$I$1318,$J34,Calculations!T$15:T$1318) -> 0 | R34: =SUMIF(Calculations!$I$15:$I$1318,$J34,Calculations!U$15:U$1318) -> 0 | S34: =SUMIF(Calculations!$I$15:$I$1318,$J34,Calculations!V$15:V$1318) -> 0 | T34: =SUMIF(Calculations!$I$15:$I$1318,$J34,Calculations!W$15:W$1318) -> 0 | U34: =SUMIF(Calculations!$I$15:$I$1318,$J34,Calculations!X$15:X$1318) -> 0 | V34: =SUMIF(Calculations!$I$15:$I$1318,$J34,Calculations!Y$15:Y$1318) -> 0 | W34: =SUMIF(Calculations!$I$15:$I$1318,$J34,Calculations!Z$15:Z$1318) -> 0 | X34: =SUMIF(Calculations!$I$15:$I$1318,$J34,Calculations!AA$15:AA$1318) -> 0 | Y34: =SUMIF(Calculations!$I$15:$I$1318,$J34,Calculations!AB$15:AB$1318) -> 0 | Z34: =SUMIF(Calculations!$I$15:$I$1318,$J34,Calculations!AC$15:AC$1318) -> 0 | AA34: =SUMIF(Calculations!$I$15:$I$1318,$J34,Calculations!AD$15:AD$1318) -> 0 | AB34: =SUMIF(Calculations!$I$15:$I$1318,$J34,Calculations!AE$15:AE$1318) -> 0 | AC34: =SUMIF(Calculations!$I$15:$I$1318,$J34,Calculations!AF$15:AF$1318) -> 0 | AD34: =SUMIF(Calculations!$I$15:$I$1318,$J34,Calculations!AG$15:AG$1318) -> 0 | AE34: =SUMIF(Calculations!$I$15:$I$1318,$J34,Calculations!AH$15:AH$1318) -> 0 | AF34: =SUMIF(Calculations!$I$15:$I$1318,$J34,Calculations!AI$15:AI$1318) -> 0 | AG34: =SUMIF(Calculations!$I$15:$I$1318,$J34,Calculations!AJ$15:AJ$1318) -> 0 | AH34: =SUMIF(Calculations!$I$15:$I$1318,$J34,Calculations!AK$15:AK$1318) -> 0 | AI34: =SUMIF(Calculations!$I$15:$I$1318,$J34,Calculations!AL$15:AL$1318) -> 0 | AJ34: =SUMIF(Calculations!$I$15:$I$1318,$J34,Calculations!AM$15:AM$1318) -> 0
I35: Repairs & Maintenance | J35: 1Repairs & Maintenance | L35: =SUM(O35:AJ35) -> 0 | O35: =SUMIF(Calculations!$I$15:$I$1318,$J35,Calculations!R$15:R$1318) -> 0 | P35: =SUMIF(Calculations!$I$15:$I$1318,$J35,Calculations!S$15:S$1318) -> 0 | Q35: =SUMIF(Calculations!$I$15:$I$1318,$J35,Calculations!T$15:T$1318) -> 0 | R35: =SUMIF(Calculations!$I$15:$I$1318,$J35,Calculations!U$15:U$1318) -> 0 | S35: =SUMIF(Calculations!$I$15:$I$1318,$J35,Calculations!V$15:V$1318) -> 0 | T35: =SUMIF(Calculations!$I$15:$I$1318,$J35,Calculations!W$15:W$1318) -> 0 | U35: =SUMIF(Calculations!$I$15:$I$1318,$J35,Calculations!X$15:X$1318) -> 0 | V35: =SUMIF(Calculations!$I$15:$I$1318,$J35,Calculations!Y$15:Y$1318) -> 0 | W35: =SUMIF(Calculations!$I$15:$I$1318,$J35,Calculations!Z$15:Z$1318) -> 0 | X35: =SUMIF(Calculations!$I$15:$I$1318,$J35,Calculations!AA$15:AA$1318) -> 0 | Y35: =SUMIF(Calculations!$I$15:$I$1318,$J35,Calculations!AB$15:AB$1318) -> 0 | Z35: =SUMIF(Calculations!$I$15:$I$1318,$J35,Calculations!AC$15:AC$1318) -> 0 | AA35: =SUMIF(Calculations!$I$15:$I$1318,$J35,Calculations!AD$15:AD$1318) -> 0 | AB35: =SUMIF(Calculations!$I$15:$I$1318,$J35,Calculations!AE$15:AE$1318) -> 0 | AC35: =SUMIF(Calculations!$I$15:$I$1318,$J35,Calculations!AF$15:AF$1318) -> 0 | AD35: =SUMIF(Calculations!$I$15:$I$1318,$J35,Calculations!AG$15:AG$1318) -> 0 | AE35: =SUMIF(Calculations!$I$15:$I$1318,$J35,Calculations!AH$15:AH$1318) -> 0 | AF35: =SUMIF(Calculations!$I$15:$I$1318,$J35,Calculations!AI$15:AI$1318) -> 0 | AG35: =SUMIF(Calculations!$I$15:$I$1318,$J35,Calculations!AJ$15:AJ$1318) -> 0 | AH35: =SUMIF(Calculations!$I$15:$I$1318,$J35,Calculations!AK$15:AK$1318) -> 0 | AI35: =SUMIF(Calculations!$I$15:$I$1318,$J35,Calculations!AL$15:AL$1318) -> 0 | AJ35: =SUMIF(Calculations!$I$15:$I$1318,$J35,Calculations!AM$15:AM$1318) -> 0
I36: Energy - Fixed | J36: =$J$3&I36 -> 1Energy - Fixed | L36: =SUM(O36:AJ36) -> 0 | O36: =SUMIF(Calculations!$I$15:$I$1318,$J36,Calculations!R$15:R$1318) -> 0 | P36: =SUMIF(Calculations!$I$15:$I$1318,$J36,Calculations!S$15:S$1318) -> 0 | Q36: =SUMIF(Calculations!$I$15:$I$1318,$J36,Calculations!T$15:T$1318) -> 0 | R36: =SUMIF(Calculations!$I$15:$I$1318,$J36,Calculations!U$15:U$1318) -> 0 | S36: =SUMIF(Calculations!$I$15:$I$1318,$J36,Calculations!V$15:V$1318) -> 0 | T36: =SUMIF(Calculations!$I$15:$I$1318,$J36,Calculations!W$15:W$1318) -> 0 | U36: =SUMIF(Calculations!$I$15:$I$1318,$J36,Calculations!X$15:X$1318) -> 0 | V36: =SUMIF(Calculations!$I$15:$I$1318,$J36,Calculations!Y$15:Y$1318) -> 0 | W36: =SUMIF(Calculations!$I$15:$I$1318,$J36,Calculations!Z$15:Z$1318) -> 0 | X36: =SUMIF(Calculations!$I$15:$I$1318,$J36,Calculations!AA$15:AA$1318) -> 0 | Y36: =SUMIF(Calculations!$I$15:$I$1318,$J36,Calculations!AB$15:AB$1318) -> 0 | Z36: =SUMIF(Calculations!$I$15:$I$1318,$J36,Calculations!AC$15:AC$1318) -> 0 | AA36: =SUMIF(Calculations!$I$15:$I$1318,$J36,Calculations!AD$15:AD$1318) -> 0 | AB36: =SUMIF(Calculations!$I$15:$I$1318,$J36,Calculations!AE$15:AE$1318) -> 0 | AC36: =SUMIF(Calculations!$I$15:$I$1318,$J36,Calculations!AF$15:AF$1318) -> 0 | AD36: =SUMIF(Calculations!$I$15:$I$1318,$J36,Calculations!AG$15:AG$1318) -> 0 | AE36: =SUMIF(Calculations!$I$15:$I$1318,$J36,Calculations!AH$15:AH$1318) -> 0 | AF36: =SUMIF(Calculations!$I$15:$I$1318,$J36,Calculations!AI$15:AI$1318) -> 0 | AG36: =SUMIF(Calculations!$I$15:$I$1318,$J36,Calculations!AJ$15:AJ$1318) -> 0 | AH36: =SUMIF(Calculations!$I$15:$I$1318,$J36,Calculations!AK$15:AK$1318) -> 0 | AI36: =SUMIF(Calculations!$I$15:$I$1318,$J36,Calculations!AL$15:AL$1318) -> 0 | AJ36: =SUMIF(Calculations!$I$15:$I$1318,$J36,Calculations!AM$15:AM$1318) -> 0
I37: Site Overheads | J37: 1Site Overheads | L37: =SUM(O37:AJ37) -> 375112.6422 | O37: =SUMIF(Calculations!$I$15:$I$1318,$J37,Calculations!R$15:R$1318) -> 0 | P37: =SUMIF(Calculations!$I$15:$I$1318,$J37,Calculations!S$15:S$1318) -> 0 | Q37: =SUMIF(Calculations!$I$15:$I$1318,$J37,Calculations!T$15:T$1318) -> 35784.51855 | R37: =SUMIF(Calculations!$I$15:$I$1318,$J37,Calculations!U$15:U$1318) -> 35804.59959 | S37: =SUMIF(Calculations!$I$15:$I$1318,$J37,Calculations!V$15:V$1318) -> 32857.69628 | T37: =SUMIF(Calculations!$I$15:$I$1318,$J37,Calculations!W$15:W$1318) -> 30165.19585 | U37: =SUMIF(Calculations!$I$15:$I$1318,$J37,Calculations!X$15:X$1318) -> 30689.93893 | V37: =SUMIF(Calculations!$I$15:$I$1318,$J37,Calculations!Y$15:Y$1318) -> 29116.5988 | W37: =SUMIF(Calculations!$I$15:$I$1318,$J37,Calculations!Z$15:Z$1318) -> 29556.06903 | X37: =SUMIF(Calculations!$I$15:$I$1318,$J37,Calculations!AA$15:AA$1318) -> 28030.88185 | Y37: =SUMIF(Calculations!$I$15:$I$1318,$J37,Calculations!AB$15:AB$1318) -> 27182.97883 | Z37: =SUMIF(Calculations!$I$15:$I$1318,$J37,Calculations!AC$15:AC$1318) -> 29382.18635 | AA37: =SUMIF(Calculations!$I$15:$I$1318,$J37,Calculations!AD$15:AD$1318) -> 30760.52412 | AB37: =SUMIF(Calculations!$I$15:$I$1318,$J37,Calculations!AE$15:AE$1318) -> 35781.45407 | AC37: =SUMIF(Calculations!$I$15:$I$1318,$J37,Calculations!AF$15:AF$1318) -> 0 | AD37: =SUMIF(Calculations!$I$15:$I$1318,$J37,Calculations!AG$15:AG$1318) -> 0 | AE37: =SUMIF(Calculations!$I$15:$I$1318,$J37,Calculations!AH$15:AH$1318) -> 0 | AF37: =SUMIF(Calculations!$I$15:$I$1318,$J37,Calculations!AI$15:AI$1318) -> 0 | AG37: =SUMIF(Calculations!$I$15:$I$1318,$J37,Calculations!AJ$15:AJ$1318) -> 0 | AH37: =SUMIF(Calculations!$I$15:$I$1318,$J37,Calculations!AK$15:AK$1318) -> 0 | AI37: =SUMIF(Calculations!$I$15:$I$1318,$J37,Calculations!AL$15:AL$1318) -> 0 | AJ37: =SUMIF(Calculations!$I$15:$I$1318,$J37,Calculations!AM$15:AM$1318) -> 0
I38: Fixed operating costs | L38: =SUM(L34:L37) -> 375112.6422 | O38: =SUM(O34:O37) -> 0 | P38: =SUM(P34:P37) -> 0 | Q38: =SUM(Q34:Q37) -> 35784.51855 | R38: =SUM(R34:R37) -> 35804.59959 | S38: 32857.69628 | T38: 30165.19585 | U38: 30689.93893 | V38: 29116.5988 | W38: 29556.06903 | X38: 28030.88185 | Y38: 27182.97883 | Z38: 29382.18635 | AA38: 30760.52412 | AB38: 35781.45407 | AC38: 0 | AD38: 0 | AE38: 0 | AF38: 0 | AG38: 0 | AH38: 0 | AI38: 0 | AJ38: 0
I39: Operating Costs | L39: =L33+L38 -> 850890.1883 | O39: =SUM(O33,O38) -> 0 | P39: =SUM(P33,P38) -> 0 | Q39: =SUM(Q33,Q38) -> 38815.96728 | R39: =SUM(R33,R38) -> 40901.54376 | S39: 62805.06224 | T39: 84795.03942 | U39: 94531.45489 | V39: 89616.75552 | W39: 87848.29483 | X39: 81911.97305 | Y39: 71053.47578 | Z39: 74998.03169 | AA39: 67213.02892 | AB39: 56399.56095 | AC39: 0 | AD39: 0 | AE39: 0 | AF39: 0 | AG39: 0 | AH39: 0 | AI39: 0 | AJ39: 0
I40: Variable supply chain costs | J40: 1Variable supply chain costs | L40: =SUM(O40:AJ40) -> 229093.2916 | O40: =SUMIF(Calculations!$I$15:$I$1318,$J40,Calculations!R$15:R$1318) -> 0 | P40: =SUMIF(Calculations!$I$15:$I$1318,$J40,Calculations!S$15:S$1318) -> 0 | Q40: =SUMIF(Calculations!$I$15:$I$1318,$J40,Calculations!T$15:T$1318) -> 0 | R40: =SUMIF(Calculations!$I$15:$I$1318,$J40,Calculations!U$15:U$1318) -> 0 | S40: =SUMIF(Calculations!$I$15:$I$1318,$J40,Calculations!V$15:V$1318) -> 0 | T40: =SUMIF(Calculations!$I$15:$I$1318,$J40,Calculations!W$15:W$1318) -> 16464.75865 | U40: =SUMIF(Calculations!$I$15:$I$1318,$J40,Calculations!X$15:X$1318) -> 16464.75865 | V40: =SUMIF(Calculations!$I$15:$I$1318,$J40,Calculations!Y$15:Y$1318) -> 25942.10125 | W40: =SUMIF(Calculations!$I$15:$I$1318,$J40,Calculations!Z$15:Z$1318) -> 25942.10125 | X40: =SUMIF(Calculations!$I$15:$I$1318,$J40,Calculations!AA$15:AA$1318) -> 25942.10125 | Y40: =SUMIF(Calculations!$I$15:$I$1318,$J40,Calculations!AB$15:AB$1318) -> 16422.36507 | Z40: =SUMIF(Calculations!$I$15:$I$1318,$J40,Calculations!AC$15:AC$1318) -> 16422.36507 | AA40: =SUMIF(Calculations!$I$15:$I$1318,$J40,Calculations!AD$15:AD$1318) -> 16422.36507 | AB40: =SUMIF(Calculations!$I$15:$I$1318,$J40,Calculations!AE$15:AE$1318) -> 19925.28075 | AC40: =SUMIF(Calculations!$I$15:$I$1318,$J40,Calculations!AF$15:AF$1318) -> 19925.28075 | AD40: =SUMIF(Calculations!$I$15:$I$1318,$J40,Calculations!AG$15:AG$1318) -> 19925.28075 | AE40: =SUMIF(Calculations!$I$15:$I$1318,$J40,Calculations!AH$15:AH$1318) -> 3098.177686 | AF40: =SUMIF(Calculations!$I$15:$I$1318,$J40,Calculations!AI$15:AI$1318) -> 3098.177686 | AG40: =SUMIF(Calculations!$I$15:$I$1318,$J40,Calculations!AJ$15:AJ$1318) -> 3098.177686 | AH40: =SUMIF(Calculations!$I$15:$I$1318,$J40,Calculations!AK$15:AK$1318) -> 0 | AI40: =SUMIF(Calculations!$I$15:$I$1318,$J40,Calculations!AL$15:AL$1318) -> 0 | AJ40: =SUMIF(Calculations!$I$15:$I$1318,$J40,Calculations!AM$15:AM$1318) -> 0
I41: Fixed supply chain costs | J41: 1Fixed supply chain costs | L41: =SUM(O41:AJ41) -> 0 | O41: =SUMIF(Calculations!$I$15:$I$1318,$J41,Calculations!R$15:R$1318) -> 0 | P41: =SUMIF(Calculations!$I$15:$I$1318,$J41,Calculations!S$15:S$1318) -> 0 | Q41: =SUMIF(Calculations!$I$15:$I$1318,$J41,Calculations!T$15:T$1318) -> 0 | R41: =SUMIF(Calculations!$I$15:$I$1318,$J41,Calculations!U$15:U$1318) -> 0 | S41: =SUMIF(Calculations!$I$15:$I$1318,$J41,Calculations!V$15:V$1318) -> 0 | T41: =SUMIF(Calculations!$I$15:$I$1318,$J41,Calculations!W$15:W$1318) -> 0 | U41: =SUMIF(Calculations!$I$15:$I$1318,$J41,Calculations!X$15:X$1318) -> 0 | V41: =SUMIF(Calculations!$I$15:$I$1318,$J41,Calculations!Y$15:Y$1318) -> 0 | W41: =SUMIF(Calculations!$I$15:$I$1318,$J41,Calculations!Z$15:Z$1318) -> 0 | X41: =SUMIF(Calculations!$I$15:$I$1318,$J41,Calculations!AA$15:AA$1318) -> 0 | Y41: =SUMIF(Calculations!$I$15:$I$1318,$J41,Calculations!AB$15:AB$1318) -> 0 | Z41: =SUMIF(Calculations!$I$15:$I$1318,$J41,Calculations!AC$15:AC$1318) -> 0 | AA41: =SUMIF(Calculations!$I$15:$I$1318,$J41,Calculations!AD$15:AD$1318) -> 0 | AB41: =SUMIF(Calculations!$I$15:$I$1318,$J41,Calculations!AE$15:AE$1318) -> 0 | AC41: =SUMIF(Calculations!$I$15:$I$1318,$J41,Calculations!AF$15:AF$1318) -> 0 | AD41: =SUMIF(Calculations!$I$15:$I$1318,$J41,Calculations!AG$15:AG$1318) -> 0 | AE41: =SUMIF(Calculations!$I$15:$I$1318,$J41,Calculations!AH$15:AH$1318) -> 0 | AF41: =SUMIF(Calculations!$I$15:$I$1318,$J41,Calculations!AI$15:AI$1318) -> 0 | AG41: =SUMIF(Calculations!$I$15:$I$1318,$J41,Calculations!AJ$15:AJ$1318) -> 0 | AH41: =SUMIF(Calculations!$I$15:$I$1318,$J41,Calculations!AK$15:AK$1318) -> 0 | AI41: =SUMIF(Calculations!$I$15:$I$1318,$J41,Calculations!AL$15:AL$1318) -> 0 | AJ41: =SUMIF(Calculations!$I$15:$I$1318,$J41,Calculations!AM$15:AM$1318) -> 0
I42: Supply Chain | L42: =SUM(L40:L41) -> 229093.2916 | O42: =SUM(O40:O41) -> 0 | P42: =SUM(P40:P41) -> 0 | Q42: =SUM(Q40:Q41) -> 0 | R42: 0 | S42: 0 | T42: 16464.75865 | U42: 16464.75865 | V42: 25942.10125 | W42: 25942.10125 | X42: 25942.10125 | Y42: 16422.36507 | Z42: 16422.36507 | AA42: 16422.36507 | AB42: 19925.28075 | AC42: 19925.28075 | AD42: 19925.28075 | AE42: 3098.177686 | AF42: 3098.177686 | AG42: 3098.177686 | AH42: 0 | AI42: 0 | AJ42: 0
I43: Administration | J43: 1Administration | L43: =SUM(O43:AJ43) -> 230818.2546 | O43: =SUMIF(Calculations!$I$15:$I$1318,$J43,Calculations!R$15:R$1318) -> 0 | P43: =SUMIF(Calculations!$I$15:$I$1318,$J43,Calculations!S$15:S$1318) -> 0 | Q43: =SUMIF(Calculations!$I$15:$I$1318,$J43,Calculations!T$15:T$1318) -> 16012.03765 | R43: =SUMIF(Calculations!$I$15:$I$1318,$J43,Calculations!U$15:U$1318) -> 37279.34339 | S43: =SUMIF(Calculations!$I$15:$I$1318,$J43,Calculations!V$15:V$1318) -> 17452.40402 | T43: =SUMIF(Calculations!$I$15:$I$1318,$J43,Calculations!W$15:W$1318) -> 17807.01426 | U43: =SUMIF(Calculations!$I$15:$I$1318,$J43,Calculations!X$15:X$1318) -> 19829.03332 | V43: =SUMIF(Calculations!$I$15:$I$1318,$J43,Calculations!Y$15:Y$1318) -> 16856.82788 | W43: =SUMIF(Calculations!$I$15:$I$1318,$J43,Calculations!Z$15:Z$1318) -> 18879.34718 | X43: =SUMIF(Calculations!$I$15:$I$1318,$J43,Calculations!AA$15:AA$1318) -> 16742.78626 | Y43: =SUMIF(Calculations!$I$15:$I$1318,$J43,Calculations!AB$15:AB$1318) -> 15457.42577 | Z43: =SUMIF(Calculations!$I$15:$I$1318,$J43,Calculations!AC$15:AC$1318) -> 18169.71915 | AA43: =SUMIF(Calculations!$I$15:$I$1318,$J43,Calculations!AD$15:AD$1318) -> 17716.60561 | AB43: =SUMIF(Calculations!$I$15:$I$1318,$J43,Calculations!AE$15:AE$1318) -> 18615.71011 | AC43: =SUMIF(Calculations!$I$15:$I$1318,$J43,Calculations!AF$15:AF$1318) -> 0 | AD43: =SUMIF(Calculations!$I$15:$I$1318,$J43,Calculations!AG$15:AG$1318) -> 0 | AE43: =SUMIF(Calculations!$I$15:$I$1318,$J43,Calculations!AH$15:AH$1318) -> 0 | AF43: =SUMIF(Calculations!$I$15:$I$1318,$J43,Calculations!AI$15:AI$1318) -> 0 | AG43: =SUMIF(Calculations!$I$15:$I$1318,$J43,Calculations!AJ$15:AJ$1318) -> 0 | AH43: =SUMIF(Calculations!$I$15:$I$1318,$J43,Calculations!AK$15:AK$1318) -> 0 | AI43: =SUMIF(Calculations!$I$15:$I$1318,$J43,Calculations!AL$15:AL$1318) -> 0 | AJ43: =SUMIF(Calculations!$I$15:$I$1318,$J43,Calculations!AM$15:AM$1318) -> 0
I44: Miscellaneous costs | J44: =$J$3&I44 -> 1Miscellaneous costs | L44: =SUM(O44:AJ44) -> 0 | O44: =SUMIF(Calculations!$I$15:$I$1318,$J44,Calculations!R$15:R$1318) -> 0 | P44: =SUMIF(Calculations!$I$15:$I$1318,$J44,Calculations!S$15:S$1318) -> 0 | Q44: =SUMIF(Calculations!$I$15:$I$1318,$J44,Calculations!T$15:T$1318) -> 0 | R44: =SUMIF(Calculations!$I$15:$I$1318,$J44,Calculations!U$15:U$1318) -> 0 | S44: =SUMIF(Calculations!$I$15:$I$1318,$J44,Calculations!V$15:V$1318) -> 0 | T44: =SUMIF(Calculations!$I$15:$I$1318,$J44,Calculations!W$15:W$1318) -> 0 | U44: =SUMIF(Calculations!$I$15:$I$1318,$J44,Calculations!X$15:X$1318) -> 0 | V44: =SUMIF(Calculations!$I$15:$I$1318,$J44,Calculations!Y$15:Y$1318) -> 0 | W44: =SUMIF(Calculations!$I$15:$I$1318,$J44,Calculations!Z$15:Z$1318) -> 0 | X44: =SUMIF(Calculations!$I$15:$I$1318,$J44,Calculations!AA$15:AA$1318) -> 0 | Y44: =SUMIF(Calculations!$I$15:$I$1318,$J44,Calculations!AB$15:AB$1318) -> 0 | Z44: =SUMIF(Calculations!$I$15:$I$1318,$J44,Calculations!AC$15:AC$1318) -> 0 | AA44: =SUMIF(Calculations!$I$15:$I$1318,$J44,Calculations!AD$15:AD$1318) -> 0 | AB44: =SUMIF(Calculations!$I$15:$I$1318,$J44,Calculations!AE$15:AE$1318) -> 0 | AC44: =SUMIF(Calculations!$I$15:$I$1318,$J44,Calculations!AF$15:AF$1318) -> 0 | AD44: =SUMIF(Calculations!$I$15:$I$1318,$J44,Calculations!AG$15:AG$1318) -> 0 | AE44: =SUMIF(Calculations!$I$15:$I$1318,$J44,Calculations!AH$15:AH$1318) -> 0 | AF44: =SUMIF(Calculations!$I$15:$I$1318,$J44,Calculations!AI$15:AI$1318) -> 0 | AG44: =SUMIF(Calculations!$I$15:$I$1318,$J44,Calculations!AJ$15:AJ$1318) -> 0 | AH44: =SUMIF(Calculations!$I$15:$I$1318,$J44,Calculations!AK$15:AK$1318) -> 0 | AI44: =SUMIF(Calculations!$I$15:$I$1318,$J44,Calculations!AL$15:AL$1318) -> 0 | AJ44: =SUMIF(Calculations!$I$15:$I$1318,$J44,Calculations!AM$15:AM$1318) -> 0
I45: Depreciation Expense | J45: =$J$3&I45 -> 1Depreciation Expense | L45: =SUM(O45:AJ45) -> 264601.6797 | O45: =SUMIF(Calculations!$I$15:$I$1318,$J45,Calculations!R$15:R$1318) -> 0 | P45: =SUMIF(Calculations!$I$15:$I$1318,$J45,Calculations!S$15:S$1318) -> 0 | Q45: =SUMIF(Calculations!$I$15:$I$1318,$J45,Calculations!T$15:T$1318) -> 0 | R45: =SUMIF(Calculations!$I$15:$I$1318,$J45,Calculations!U$15:U$1318) -> 0 | S45: =SUMIF(Calculations!$I$15:$I$1318,$J45,Calculations!V$15:V$1318) -> 0 | T45: =SUMIF(Calculations!$I$15:$I$1318,$J45,Calculations!W$15:W$1318) -> 0 | U45: =SUMIF(Calculations!$I$15:$I$1318,$J45,Calculations!X$15:X$1318) -> 0 | V45: =SUMIF(Calculations!$I$15:$I$1318,$J45,Calculations!Y$15:Y$1318) -> 0 | W45: =SUMIF(Calculations!$I$15:$I$1318,$J45,Calculations!Z$15:Z$1318) -> 0 | X45: =SUMIF(Calculations!$I$15:$I$1318,$J45,Calculations!AA$15:AA$1318) -> 0 | Y45: =SUMIF(Calculations!$I$15:$I$1318,$J45,Calculations!AB$15:AB$1318) -> 0 | Z45: =SUMIF(Calculations!$I$15:$I$1318,$J45,Calculations!AC$15:AC$1318) -> 0 | AA45: =SUMIF(Calculations!$I$15:$I$1318,$J45,Calculations!AD$15:AD$1318) -> 0 | AB45: =SUMIF(Calculations!$I$15:$I$1318,$J45,Calculations!AE$15:AE$1318) -> 264601.6797 | AC45: =SUMIF(Calculations!$I$15:$I$1318,$J45,Calculations!AF$15:AF$1318) -> 0 | AD45: =SUMIF(Calculations!$I$15:$I$1318,$J45,Calculations!AG$15:AG$1318) -> 0 | AE45: =SUMIF(Calculations!$I$15:$I$1318,$J45,Calculations!AH$15:AH$1318) -> 0 | AF45: =SUMIF(Calculations!$I$15:$I$1318,$J45,Calculations!AI$15:AI$1318) -> 0 | AG45: =SUMIF(Calculations!$I$15:$I$1318,$J45,Calculations!AJ$15:AJ$1318) -> 0 | AH45: =SUMIF(Calculations!$I$15:$I$1318,$J45,Calculations!AK$15:AK$1318) -> 0 | AI45: =SUMIF(Calculations!$I$15:$I$1318,$J45,Calculations!AL$15:AL$1318) -> 0 | AJ45: =SUMIF(Calculations!$I$15:$I$1318,$J45,Calculations!AM$15:AM$1318) -> 0
I46: Inventory Movement | J46: =$J$3&I46 -> 1Inventory Movement | L46: =SUM(O46:AJ46) -> 4.365574569e-10 | O46: =SUMIF(Calculations!$I$15:$I$1318,$J46,Calculations!R$15:R$1318) -> 0 | P46: =SUMIF(Calculations!$I$15:$I$1318,$J46,Calculations!S$15:S$1318) -> 0 | Q46: =SUMIF(Calculations!$I$15:$I$1318,$J46,Calculations!T$15:T$1318) -> -154092.7822 | R46: =SUMIF(Calculations!$I$15:$I$1318,$J46,Calculations!U$15:U$1318) -> -220397.6116 | S46: =SUMIF(Calculations!$I$15:$I$1318,$J46,Calculations!V$15:V$1318) -> -731129.8519 | T46: =SUMIF(Calculations!$I$15:$I$1318,$J46,Calculations!W$15:W$1318) -> -270839.6742 | U46: =SUMIF(Calculations!$I$15:$I$1318,$J46,Calculations!X$15:X$1318) -> -685051.6753 | V46: =SUMIF(Calculations!$I$15:$I$1318,$J46,Calculations!Y$15:Y$1318) -> -168965.1723 | W46: =SUMIF(Calculations!$I$15:$I$1318,$J46,Calculations!Z$15:Z$1318) -> -121707.7139 | X46: =SUMIF(Calculations!$I$15:$I$1318,$J46,Calculations!AA$15:AA$1318) -> -18299.79085 | Y46: =SUMIF(Calculations!$I$15:$I$1318,$J46,Calculations!AB$15:AB$1318) -> -245080.3045 | Z46: =SUMIF(Calculations!$I$15:$I$1318,$J46,Calculations!AC$15:AC$1318) -> -293610.0428 | AA46: =SUMIF(Calculations!$I$15:$I$1318,$J46,Calculations!AD$15:AD$1318) -> -95156.23566 | AB46: =SUMIF(Calculations!$I$15:$I$1318,$J46,Calculations!AE$15:AE$1318) -> 419061.0231 | AC46: =SUMIF(Calculations!$I$15:$I$1318,$J46,Calculations!AF$15:AF$1318) -> 1001484.655 | AD46: =SUMIF(Calculations!$I$15:$I$1318,$J46,Calculations!AG$15:AG$1318) -> 1033673.575 | AE46: =SUMIF(Calculations!$I$15:$I$1318,$J46,Calculations!AH$15:AH$1318) -> 183370.534 | AF46: =SUMIF(Calculations!$I$15:$I$1318,$J46,Calculations!AI$15:AI$1318) -> 183370.534 | AG46: =SUMIF(Calculations!$I$15:$I$1318,$J46,Calculations!AJ$15:AJ$1318) -> 183370.534 | AH46: =SUMIF(Calculations!$I$15:$I$1318,$J46,Calculations!AK$15:AK$1318) -> 0 | AI46: =SUMIF(Calculations!$I$15:$I$1318,$J46,Calculations!AL$15:AL$1318) -> 0 | AJ46: =SUMIF(Calculations!$I$15:$I$1318,$J46,Calculations!AM$15:AM$1318) -> 0
I47: Non-Milk Expenses | L47: =SUM(L22:L24,L39,L42:L46) -> 2443080.554 | O47: =SUM(O22:O24,O39,O42:O46) -> 0 | P47: 0 | Q47: -82738.98391 | R47: -122520.9806 | S47: -602421.2467 | T47: -75242.13343 | U47: -460309.7063 | V47: 58259.12504 | W47: 104839.4787 | X47: 200199.791 | Y47: -62413.75235 | Z47: -95136.60046 | AA47: 88286.30064 | AB47: 839266.3326 | AC47: 1030327.931 | AD47: 1062516.851 | AE47: 186722.7162 | AF47: 186722.7162 | AG47: 186722.7162 | AH47: 0 | AI47: 0 | AJ47: 0
I49: Cost of Milk | J49: =$J$3&I49 -> 1Cost of Milk | L49: =SUM(O49:AJ49) -> 9349264.623 | O49: =SUMIF(Calculations!$I$15:$I$1318,$J49,Calculations!R$15:R$1318) -> 0 | P49: =SUMIF(Calculations!$I$15:$I$1318,$J49,Calculations!S$15:S$1318) -> 0 | Q49: =SUMIF(Calculations!$I$15:$I$1318,$J49,Calculations!T$15:T$1318) -> 60778.03024 | R49: =SUMIF(Calculations!$I$15:$I$1318,$J49,Calculations!U$15:U$1318) -> 100165.2311 | S49: =SUMIF(Calculations!$I$15:$I$1318,$J49,Calculations!V$15:V$1318) -> 586802.9629 | T49: =SUMIF(Calculations!$I$15:$I$1318,$J49,Calculations!W$15:W$1318) -> 1070749.52 | U49: =SUMIF(Calculations!$I$15:$I$1318,$J49,Calculations!X$15:X$1318) -> 1251075.964 | V49: =SUMIF(Calculations!$I$15:$I$1318,$J49,Calculations!Y$15:Y$1318) -> 1187813.691 | W49: =SUMIF(Calculations!$I$15:$I$1318,$J49,Calculations!Z$15:Z$1318) -> 1141649.312 | X49: =SUMIF(Calculations!$I$15:$I$1318,$J49,Calculations!AA$15:AA$1318) -> 1057285.227 | Y49: =SUMIF(Calculations!$I$15:$I$1318,$J49,Calculations!AB$15:AB$1318) -> 863609.2471 | Z49: =SUMIF(Calculations!$I$15:$I$1318,$J49,Calculations!AC$15:AC$1318) -> 900854.9637 | AA49: =SUMIF(Calculations!$I$15:$I$1318,$J49,Calculations!AD$15:AD$1318) -> 721123.9926 | AB49: =SUMIF(Calculations!$I$15:$I$1318,$J49,Calculations!AE$15:AE$1318) -> 407356.4809 | AC49: =SUMIF(Calculations!$I$15:$I$1318,$J49,Calculations!AF$15:AF$1318) -> 0 | AD49: =SUMIF(Calculations!$I$15:$I$1318,$J49,Calculations!AG$15:AG$1318) -> 0 | AE49: =SUMIF(Calculations!$I$15:$I$1318,$J49,Calculations!AH$15:AH$1318) -> 0 | AF49: =SUMIF(Calculations!$I$15:$I$1318,$J49,Calculations!AI$15:AI$1318) -> 0 | AG49: =SUMIF(Calculations!$I$15:$I$1318,$J49,Calculations!AJ$15:AJ$1318) -> 0 | AH49: =SUMIF(Calculations!$I$15:$I$1318,$J49,Calculations!AK$15:AK$1318) -> 0 | AI49: =SUMIF(Calculations!$I$15:$I$1318,$J49,Calculations!AL$15:AL$1318) -> 0 | AJ49: =SUMIF(Calculations!$I$15:$I$1318,$J49,Calculations!AM$15:AM$1318) -> 0
I51: EBIT | J51: =$J$3&I51 -> 1EBIT | L51: =L19-L47-L49 -> 607986.3313 | O51: =O19-O47-O49 -> 0 | P51: 0 | Q51: 21960.95367 | R51: 22355.74944 | S51: 15618.28374 | T51: -288420.3676 | U51: -83679.23865 | V51: 76905.10448 | W51: 76489.12957 | X51: 65492.90183 | Y51: 204129.5721 | Z51: 199606.7036 | AA51: 195914.7736 | AB51: -108206.853 | AC51: 108088.0295 | AD51: 75899.10985 | AE51: 8610.826365 | AF51: 8610.826365 | AG51: 8610.826365 | AH51: 0 | AI51: 0 | AJ51: 0
I53: Tax Expense | J53: =$J$3&I53 -> 1Tax Expense | L53: =SUM(O53:AJ53) -> 154813.9168 | O53: =SUMIF(Calculations!$I$15:$I$1318,$J53,Calculations!R$15:R$1318) -> 0 | P53: =SUMIF(Calculations!$I$15:$I$1318,$J53,Calculations!S$15:S$1318) -> 0 | Q53: =SUMIF(Calculations!$I$15:$I$1318,$J53,Calculations!T$15:T$1318) -> 12901.15973 | R53: =SUMIF(Calculations!$I$15:$I$1318,$J53,Calculations!U$15:U$1318) -> 12901.15973 | S53: =SUMIF(Calculations!$I$15:$I$1318,$J53,Calculations!V$15:V$1318) -> 12901.15973 | T53: =SUMIF(Calculations!$I$15:$I$1318,$J53,Calculations!W$15:W$1318) -> 12901.15973 | U53: =SUMIF(Calculations!$I$15:$I$1318,$J53,Calculations!X$15:X$1318) -> 12901.15973 | V53: =SUMIF(Calculations!$I$15:$I$1318,$J53,Calculations!Y$15:Y$1318) -> 12901.15973 | W53: =SUMIF(Calculations!$I$15:$I$1318,$J53,Calculations!Z$15:Z$1318) -> 12901.15973 | X53: =SUMIF(Calculations!$I$15:$I$1318,$J53,Calculations!AA$15:AA$1318) -> 12901.15973 | Y53: =SUMIF(Calculations!$I$15:$I$1318,$J53,Calculations!AB$15:AB$1318) -> 12901.15973 | Z53: =SUMIF(Calculations!$I$15:$I$1318,$J53,Calculations!AC$15:AC$1318) -> 12901.15973 | AA53: =SUMIF(Calculations!$I$15:$I$1318,$J53,Calculations!AD$15:AD$1318) -> 12901.15973 | AB53: =SUMIF(Calculations!$I$15:$I$1318,$J53,Calculations!AE$15:AE$1318) -> 12901.15973 | AC53: =SUMIF(Calculations!$I$15:$I$1318,$J53,Calculations!AF$15:AF$1318) -> 0 | AD53: =SUMIF(Calculations!$I$15:$I$1318,$J53,Calculations!AG$15:AG$1318) -> 0 | AE53: =SUMIF(Calculations!$I$15:$I$1318,$J53,Calculations!AH$15:AH$1318) -> 0 | AF53: =SUMIF(Calculations!$I$15:$I$1318,$J53,Calculations!AI$15:AI$1318) -> 0 | AG53: =SUMIF(Calculations!$I$15:$I$1318,$J53,Calculations!AJ$15:AJ$1318) -> 0 | AH53: =SUMIF(Calculations!$I$15:$I$1318,$J53,Calculations!AK$15:AK$1318) -> 0 | AI53: =SUMIF(Calculations!$I$15:$I$1318,$J53,Calculations!AL$15:AL$1318) -> 0 | AJ53: =SUMIF(Calculations!$I$15:$I$1318,$J53,Calculations!AM$15:AM$1318) -> 0
I55: NOPLAT | L55: =L51-L53 -> 453172.4145 | O55: =O51-O53 -> 0 | P55: =P51-P53 -> 0 | Q55: =Q51-Q53 -> 9059.793942 | R55: 9454.589706 | S55: 2717.124006 | T55: -301321.5273 | U55: -96580.39839 | V55: 64003.94474 | W55: 63587.96984 | X55: 52591.7421 | Y55: 191228.4124 | Z55: 186705.5439 | AA55: 183013.6139 | AB55: -121108.0127 | AC55: 108088.0295 | AD55: 75899.10985 | AE55: 8610.826365 | AF55: 8610.826365 | AG55: 8610.826365 | AH55: 0 | AI55: 0 | AJ55: 0
I57: Capital Charge | J57: =$J$3&I57 -> 1Capital Charge | L57: =L67 -> 453172.4145 | O57: =O67 -> 0 | P57: =P67 -> 0 | Q57: =Q67 -> 6.812869153 | R57: 375.0066031 | S57: 1002.342057 | T57: 1831.414604 | U57: 2861.09241 | V57: 3437.537717 | W57: 4923.182233 | X57: 4680.642651 | Y57: 3803.634073 | Z57: 3968.496993 | AA57: 6237.666675 | AB57: 404984.3196 | AC57: 6428.325416 | AD57: 4634.729356 | AE57: 813.2220315 | AF57: -1478.698556 | AG57: -2286.388723 | AH57: 805.2201711 | AI57: -2.022071677e-13 | AJ57: -2.022071677e-13
I59: Capital Base
I61: Capital Charge Rate | J61: =$J$3&I61 -> 1Capital Charge Rate | O61: =Global!$O$39 -> 0.004551006625 | P61: =Global!$O$39 -> 0.004551006625 | Q61: =Global!$O$39 -> 0.004551006625 | R61: =Q61 -> 0.004551006625 | S61: 0.004551006625 | T61: 0.004551006625 | U61: 0.004551006625 | V61: 0.004551006625 | W61: 0.004551006625 | X61: 0.004551006625 | Y61: 0.004551006625 | Z61: 0.004551006625 | AA61: 0.004551006625 | AB61: 0.004551006625 | AC61: 0.004551006625 | AD61: 0.004551006625 | AE61: 0.004551006625 | AF61: 0.004551006625 | AG61: 0.004551006625 | AH61: 0.004551006625 | AI61: 0.004551006625 | AJ61: 0.004551006625
I62: Capital Charge on Fixed Assets | L62: =Calculations!N1192 -> 398133.5723 | O62: =Calculations!R1192 -> 0 | P62: =Calculations!S1192 -> 0 | Q62: =Calculations!T1192 -> 0 | R62: =Calculations!U1192 -> 0 | S62: =Calculations!V1192 -> 0 | T62: =Calculations!W1192 -> 0 | U62: =Calculations!X1192 -> 0 | V62: =Calculations!Y1192 -> 0 | W62: =Calculations!Z1192 -> 0 | X62: =Calculations!AA1192 -> 0 | Y62: =Calculations!AB1192 -> 0 | Z62: =Calculations!AC1192 -> 0 | AA62: =Calculations!AD1192 -> 0 | AB62: =Calculations!AE1192 -> 398133.5723 | AC62: =Calculations!AF1192 -> 0 | AD62: =Calculations!AG1192 -> 0
I64: 12 Month Average | L64: =SUM(O64:AJ64)/12 -> 895314.4857 | O64: =Calculations!R1204 -> 0 | P64: =Calculations!S1204 -> 0 | Q64: =Calculations!T1204 -> 1497.002689 | R64: =Calculations!U1204 -> 82400.80359 | S64: =Calculations!V1204 -> 220246.2312 | T64: =Calculations!W1204 -> 402419.6745 | U64: =Calculations!X1204 -> 628672.4336 | V64: =Calculations!Y1204 -> 755335.6873 | W64: =Calculations!Z1204 -> 1081778.744 | X64: =Calculations!AA1204 -> 1028485.132 | Y64: =Calculations!AB1204 -> 835778.6281 | Z64: =Calculations!AC1204 -> 872004.2223 | AA64: =Calculations!AD1204 -> 1370612.523 | AB64: =Calculations!AE1204 -> 1505325.712 | AC64: =Calculations!AF1204 -> 1412506.275 | AD64: =Calculations!AG1204 -> 1018396.53 | AE64: =Calculations!AH1204 -> 178690.584 | AF64: =Calculations!AI1204 -> -324916.8103 | AG64: =Calculations!AJ1204 -> -502391.8688 | AH64: =Calculations!AK1204 -> 176932.3223 | AI64: =Calculations!AL1204 -> -4.443130594e-11 | AJ64: =Calculations!AM1204 -> -4.443130594e-11
I65: Capital Charge on Net Working Capital | L65: =SUM(O65:AJ65) -> 48894.98587 | O65: =O61*O64 -> 0 | P65: =P61*P64 -> 0 | Q65: =Q61*Q64 -> 6.812869153 | R65: 375.0066031 | S65: 1002.342057 | T65: 1831.414604 | U65: 2861.09241 | V65: 3437.537717 | W65: 4923.182233 | X65: 4680.642651 | Y65: 3803.634073 | Z65: 3968.496993 | AA65: 6237.666675 | AB65: 6850.747288 | AC65: 6428.325416 | AD65: 4634.729356 | AE65: 813.2220315 | AF65: -1478.698556 | AG65: -2286.388723 | AH65: 805.2201711 | AI65: -2.022071677e-13 | AJ65: -2.022071677e-13
I66: Time Value of Money Adjustment | L66: =L55-L62-L65 -> 6143.856343
I67: Total Capital Charge | L67: =L65+L62+L66 -> 453172.4145 | O67: =O65+O62 -> 0 | P67: =P65+P62 -> 0 | Q67: =Q65+Q62 -> 6.812869153 | R67: 375.0066031 | S67: 1002.342057 | T67: 1831.414604 | U67: 2861.09241 | V67: 3437.537717 | W67: 4923.182233 | X67: 4680.642651 | Y67: 3803.634073 | Z67: 3968.496993 | AA67: 6237.666675 | AB67: 404984.3196 | AC67: 6428.325416 | AD67: 4634.729356 | AE67: 813.2220315 | AF67: -1478.698556 | AG67: -2286.388723 | AH67: 805.2201711 | AI67: -2.022071677e-13 | AJ67: -2.022071677e-13
I69: Per KGMS
I70: Revenue
I71: Sales | J71: =$J$3&I71 -> 1Sales | L71: =L17/L$11 -> 8.127541968
I72: Downgrade expense (excl rework) | J72: =$J$3&I72 -> 1Downgrade expense (excl rework) | L72: =L18/L$11 -> 0
I73: Net Sales | L73: =SUM(L71:L72) -> 8.127541968
I75: Non-Milk Costs
I76: Commission | J76: =$J$3&I76 -> 1Commission | L76: =L22/L$11 -> 0.06960349767
I77: Collection Costs | J77: =$J$3&I77 -> 1Collection Costs | L77: =L23/L$11 -> 0.2267704999
I78: Lactose | L78: =L24/L$11 -> 0.2723271188
I79: Operating Costs
I80: Packaging | J80: =$J$3&I80 -> 1Packaging | L80: =L26/L$11 -> 0.3118385965
I81: Energy - Variable | J81: 1Energy - Variable | L81: 0
I82: Water | J82: 1Water | L82: 0
I83: Cleaning & CIP | J83: 1Cleaning & CIP | L83: 0
I84: Consumables | J84: 1Consumables | L84: 0
I85: Effluent | J85: 1Effluent | L85: 0
I86: Laboratory | J86: 1Laboratory | L86: 0
I87: Variable operating costs | L87: 0.3118385965
I88: Wages & ERE | J88: =$J$3&I88 -> 1Wages & ERE | L88: 0
I89: Repairs & Maintenance | J89: =$J$3&I89 -> 1Repairs & Maintenance | L89: 0
I90: Energy - Fixed | J90: =$J$3&I90 -> 1Energy - Fixed | L90: 0
I91: Site Overheads | J91: =$J$3&I91 -> 1Site Overheads | L91: =L37/L$11 -> 0.2458598579
I92: Fixed operating costs | L92: 0.2458598579
I93: Operating Costs | J93: =$J$3&I93 -> 1Operating Costs | L93: 0.5576984544
I94: Variable supply chain costs | J94: 1Variable supply chain costs | L94: 0.150154481
I95: Fixed supply chain costs | J95: 1Fixed supply chain costs | L95: 0
I96: Supply Chain | J96: 1Supply Chain | L96: 0.150154481
I97: Administration | J97: 1Administration | L97: 0.1512850725
I98: Miscellaneous costs | J98: 1Miscellaneous costs | L98: 0
I99: Depreciation Expense | J99: 1Depreciation Expense | L99: 0.1734277229
I100: Capital Charge | J100: 1Capital Charge | L100: =L111 -> 0.2970225284
I101: Tax Expense | J101: 1Tax Expense | L101: =L53/L$11 -> 0.1014695942
I102: Total Expenses | L102: =SUM(L76:L78,L93,L96:L101) -> 1.99975897
I104: Milk Price | L104: =Calculations!$N$1249 -> 6.127782999
L105: =L104-(L73-L102) -> 0
I107: Capital Base
I108: Capital Charge on Fixed Assets | L108: =L62/L$11 -> 0.2609484525
I109: Capital Charge on Net Working Capital | L109: =L65/L$11 -> 0.03204721175
I110: Time Value of Money Adjustment | L110: =L66/L$11 -> 0.00402686414
I111: Total Capital Charge | L111: =L109+L108+L110 -> 0.2970225284
I113: Cash Flows
I115: Cash From Sales | L115: =SUM(O115:AJ115) -> 12400331.51 | O115: =Calculations!R909 -> 0 | P115: =Calculations!S909 -> 0 | Q115: =Calculations!T909 -> 0 | R115: =Calculations!U909 -> 0 | S115: =Calculations!V909 -> 0 | T115: =Calculations!W909 -> 45261.27755 | U115: =Calculations!X909 -> 728436.2366 | V115: =Calculations!Y909 -> 725161.5335 | W115: =Calculations!Z909 -> 1362922.853 | X115: =Calculations!AA909 -> 1322977.92 | Y115: =Calculations!AB909 -> 1194947.799 | Z115: =Calculations!AC909 -> 1103430.988 | AA115: =Calculations!AD909 -> 974971.0894 | AB115: =Calculations!AE909 -> 1048216.752 | AC115: =Calculations!AF909 -> 1104043.543 | AD115: =Calculations!AG909 -> 1172788.378 | AE115: =Calculations!AH909 -> 1049573.732 | AF115: =Calculations!AI909 -> 189435.7985 | AG115: =Calculations!AJ909 -> 201231.2866 | AH115: =Calculations!AK909 -> 176932.3223 | AI115: =Calculations!AL909 -> 0 | AJ115: =Calculations!AM909 -> 0
I117: Trade Creditors | L117: =SUM(O117:AJ117) -> -2178478.875 | O117: =Calculations!R1256 -> 0 | P117: =Calculations!S1256 -> -1497.002689 | Q117: =Calculations!T1256 -> -71844.00696 | R117: =Calculations!U1256 -> -98502.61956 | S117: =Calculations!V1256 -> -130199.0418 | T117: =Calculations!W1256 -> -196056.8913 | U117: =Calculations!X1256 -> -224946.1479 | V117: =Calculations!Y1256 -> -227056.7704 | W117: =Calculations!Z1256 -> -226383.8001 | X117: =Calculations!AA1256 -> -218169.4186 | Y117: =Calculations!AB1256 -> -182590.1202 | Z117: =Calculations!AC1256 -> -198292.4156 | AA117: =Calculations!AD1256 -> -182753.1675 | AB117: =Calculations!AE1256 -> -153049.5061 | AC117: =Calculations!AF1256 -> -28823.7553 | AD117: =Calculations!AG1256 -> -28325.72426 | AE117: =Calculations!AH1256 -> -3354.450915 | AF117: =Calculations!AI1256 -> -3349.913574 | AG117: =Calculations!AJ1256 -> -3284.122131 | AH117: =Calculations!AK1256 -> 0 | AI117: =Calculations!AL1256 -> 0 | AJ117: =Calculations!AM1256 -> 0
I118: Suppliers | L118: =SUM(O118:AJ118) -> -9349264.623 | O118: =Calculations!R1257 -> 0 | P118: =Calculations!S1257 -> 0 | Q118: =Calculations!T1257 -> 0 | R118: =Calculations!U1257 -> -29888.21836 | S118: =Calculations!V1257 -> -49257.27747 | T118: =Calculations!W1257 -> -325174.0338 | U118: =Calculations!X1257 -> -726733.7408 | V118: =Calculations!Y1257 -> -760543.8755 | W118: =Calculations!Z1257 -> -1019657.471 | X118: =Calculations!AA1257 -> -807905.6163 | Y118: =Calculations!AB1257 -> -857354.8607 | Z118: =Calculations!AC1257 -> -1217041.329 | AA118: =Calculations!AD1257 -> -743917.4966 | AB118: =Calculations!AE1257 -> -607249.5031 | AC118: =Calculations!AF1257 -> -573022.0136 | AD118: =Calculations!AG1257 -> -228857.5972 | AE118: =Calculations!AH1257 -> -534001.0602 | AF118: =Calculations!AI1257 -> 0 | AG118: =Calculations!AJ1257 -> -868660.5293 | AH118: =Calculations!AK1257 -> 0 | AI118: =Calculations!AL1257 -> 0 | AJ118: =Calculations!AM1257 -> 0
I119: Tax | L119: =SUM(O119:AJ119) -> -154813.9168 | O119: =Calculations!R1258 -> 0 | P119: =Calculations!S1258 -> 0 | Q119: =Calculations!T1258 -> 0 | R119: =Calculations!U1258 -> 0 | S119: =Calculations!V1258 -> 0 | T119: =Calculations!W1258 -> -51604.63893 | U119: =Calculations!X1258 -> 0 | V119: =Calculations!Y1258 -> 0 | W119: =Calculations!Z1258 -> 0 | X119: =Calculations!AA1258 -> -51604.63893 | Y119: =Calculations!AB1258 -> 0 | Z119: =Calculations!AC1258 -> 0 | AA119: =Calculations!AD1258 -> 0 | AB119: =Calculations!AE1258 -> -51604.63893 | AC119: =Calculations!AF1258 -> 0 | AD119: =Calculations!AG1258 -> 0 | AE119: =Calculations!AH1258 -> 0 | AF119: =Calculations!AI1258 -> 0 | AG119: =Calculations!AJ1258 -> 0 | AH119: =Calculations!AK1258 -> 0 | AI119: =Calculations!AL1258 -> 0 | AJ119: =Calculations!AM1258 -> 0
I121: Operating Cash Flow | L121: =SUM(O121:AJ121) -> 717774.0942 | O121: =SUM(O115,O117:O119) -> 0 | P121: =SUM(P115,P117:P119) -> -1497.002689 | Q121: =SUM(Q115,Q117:Q119) -> -71844.00696 | R121: -128390.8379 | S121: -179456.3192 | T121: -527574.2864 | U121: -223243.6521 | V121: -262439.1124 | W121: 116881.5818 | X121: 245298.2465 | Y121: 155002.8181 | Z121: -311902.7573 | AA121: 48300.42526 | AB121: 236313.1039 | AC121: 502197.7745 | AD121: 915605.056 | AE121: 512218.2206 | AF121: 186085.8849 | AG121: -670713.3648 | AH121: 176932.3223 | AI121: 0 | AJ121: 0
I123: WACC | L123: =Global!O38 -> 0.056 | O123: =O61 -> 0.004551006625 | P123: =P61 -> 0.004551006625 | Q123: =Q61 -> 0.004551006625 | R123: 0.004551006625 | S123: 0.004551006625 | T123: 0.004551006625 | U123: 0.004551006625 | V123: 0.004551006625 | W123: 0.004551006625 | X123: 0.004551006625 | Y123: 0.004551006625 | Z123: 0.004551006625 | AA123: 0.004551006625 | AB123: 0.004551006625 | AC123: 0.004551006625 | AD123: 0.004551006625 | AE123: 0.004551006625 | AF123: 0.004551006625 | AG123: 0.004551006625 | AH123: 0.004551006625 | AI123: 0.004551006625 | AJ123: 0.004551006625
I125: Discount Factor | O125: =P125*(1+O123) -> 1.004551007 | P125: =Q125*(1+P123) -> 1 | Q125: =1/(1+Q123) -> 0.9954696112 | R125: =Q125/(1+R123) -> 0.9909597468 | S125: =R125/(1+S123) -> 0.9864703139 | T125: 0.9820012198 | U125: 0.9775523725 | V125: 0.9731236802 | W125: 0.9687150516 | X125: 0.9643263958 | Y125: 0.9599576223 | Z125: 0.955608641 | AA125: 0.9512793623 | AB125: 0.946969697 | AC125: 0.9426795561 | AD125: 0.9384088512 | AE125: 0.9341574942 | AF125: 0.9299253976 | AG125: 0.925712474 | AH125: 0.9215186366 | AI125: 0.9173437988 | AJ125: 0.9131878748
I126: Discounted Cash Flows | L126: =SUM(O126:AJ126) -> 627590.2007 | O126: =O125*O121 -> 0 | P126: =P125*P121 -> -1497.002689 | Q126: =Q125*Q121 -> -71518.52568 | R126: =R125*R121 -> -127230.1522 | S126: =S125*S121 -> -177028.3316 | T126: -518078.5928 | U126: -218232.3618 | V126: -255385.7148 | W126: 113224.9476 | X126: 236547.5739 | Y126: 148796.1367 | Z126: -298056.97 | AA126: 45947.19774 | AB126: 223781.3484 | AC126: 473411.5752 | AD126: 859211.8888 | AE126: 478492.4895 | AF126: 173045.9905 | AG126: -620887.7282 | AH126: 163046.4324 | AI126: 0 | AJ126: 0
I128: Present Value of required return
I129: Capital charge on fixed assets (discounted) | L129: =SUMPRODUCT(Q$125:AD$125,Q62:AD62) -> 377020.4283
I130: Depreciation (discounted) | L130: =SUMPRODUCT(Q$125:AD$125,Q45:AD45) -> 250569.7724
I131: Net | L131: =SUM(L129:L130) -> 627590.2007
I133: Excess / (Deficit) Return | L133: =L126-L131 -> 0
I134: cents / kgms | L134: =L133/L12 -> 0
I136: Check consistency of financials / cash flows
I137: NOPLAT | O137: =O55 -> 0 | P137: =P55 -> 0 | Q137: =Q55 -> 9059.793942 | R137: 9454.589706 | S137: 2717.124006 | T137: -301321.5273 | U137: -96580.39839 | V137: 64003.94474 | W137: 63587.96984 | X137: 52591.7421 | Y137: 191228.4124 | Z137: 186705.5439 | AA137: 183013.6139 | AB137: -121108.0127 | AC137: 108088.0295 | AD137: 75899.10985 | AE137: 8610.826365 | AF137: 8610.826365 | AG137: 8610.826365 | AH137: 0 | AI137: 0 | AJ137: 0
I138: + depreciation | O138: =O45 -> 0 | P138: =P45 -> 0 | Q138: =Q45 -> 0 | R138: 0 | S138: 0 | T138: 0 | U138: 0 | V138: 0 | W138: 0 | X138: 0 | Y138: 0 | Z138: 0 | AA138: 0 | AB138: 264601.6797 | AC138: 0 | AD138: 0 | AE138: 0 | AF138: 0 | AG138: 0 | AH138: 0 | AI138: 0 | AJ138: 0
I139: + change in working capital | O139: =-(P64-O64) -> 0 | P139: =-(Q64-P64) -> -1497.002689 | Q139: =-(R64-Q64) -> -80903.80091 | R139: -137845.4276 | S139: -182173.4432 | T139: -226252.7591 | U139: -126663.2537 | V139: -326443.0571 | W139: 53293.612 | X139: 192706.5044 | Y139: -36225.59429 | Z139: -498608.3011 | AA139: -134713.1886 | AB139: 92819.43695 | AC139: 394109.745 | AD139: 839705.9462 | AE139: 503607.3942 | AF139: 177475.0585 | AG139: -679324.1911 | AH139: 176932.3223 | AI139: 0 | AJ139: -4.443130594e-11
I140: Operating Cash Flow | O140: =SUM(O137:O139) -> 0 | P140: =SUM(P137:P139) -> -1497.002689 | Q140: =SUM(Q137:Q139) -> -71844.00696 | R140: -128390.8379 | S140: -179456.3192 | T140: -527574.2864 | U140: -223243.6521 | V140: -262439.1124 | W140: 116881.5818 | X140: 245298.2465 | Y140: 155002.8181 | Z140: -311902.7573 | AA140: 48300.42526 | AB140: 236313.1039 | AC140: 502197.7745 | AD140: 915605.056 | AE140: 512218.2206 | AF140: 186085.8849 | AG140: -670713.3648 | AH140: 176932.3223 | AI140: 0 | AJ140: -4.443130594e-11
I141: check | L141: =IF(ROUND(SUM(O141:AJ141),3)=0,"Okay","Error") -> Okay | O141: =O121-O140 -> 0 | P141: =P121-P140 -> 0 | Q141: =Q121-Q140 -> 0 | R141: =R121-R140 -> 0 | S141: 0 | T141: 0 | U141: 0 | V141: 0 | W141: 1.455191523e-10 | X141: -5.238689482e-10 | Y141: 2.619344741e-10 | Z141: 0 | AA141: -2.037268132e-10 | AB141: 0 | AC141: 6.98491931e-10 | AD141: 0 | AE141: 0 | AF141: 0 | AG141: 0 | AH141: 0 | AI141: 0 | AJ141: 4.443130594e-11

Sheet LookupTables (hidden)
E10: Year to date month | I10: Selected
E11: =Global!K32 -> 2016-06-30 | F11: YTD_Months | I11: 18
E12: =EOMONTH(E11,1) -> 2016-07-31 | I12: =CHOOSE(YTD_Months_No,$E$11,$E$12,$E$13,$E$14,$E$15,$E$16,$E$17,$E$18,$E$19,$E$20,$E$21,$E$22,$E$23,$E$24,$E$25,$E$26,$E$27,$E$28) -> 2017-11-30
E13: =EOMONTH(E12,1) -> 2016-08-31
E14: 2016-09-30
E15: 2016-10-31
E16: 2016-11-30
E17: 2016-12-31
E18: 2017-01-31
E19: 2017-02-28
E20: 2017-03-31
E21: 2017-04-30
E22: 2017-05-31
E23: 2017-06-30
E24: 2017-07-31
E25: 2017-08-31
E26: 2017-09-30
E27: 2017-10-31
E28: 2017-11-30

Sheet nav_inputs (hidden)
B5: Full | C5: References | F5: Caption
B6: Caption | C6: Worksheet | D6: Cell | E6: Level A | F6: Level B | G6: Level C
B7: Entities | C7: Global | D7: A1 | E7: Global
B8: =E8&IF(F8="","",IF(G8=""," / "&F8," / "&F8&" / "&G8)) -> Data Input / GLOBAL | C8: Data Input | D8: ="A"&MATCH(F8,'Data Input'!$F$13:$F$715,0)+15 -> A17 | E8: Data Input | F8: ='Data Input'!F14 -> GLOBAL
B9: Data Input / MILK SUPPLY | C9: Data Input | D9: ="A"&MATCH(F9,'Data Input'!$F$13:$F$715,0)+15 -> A27 | E9: Data Input | F9: ='Data Input'!F24 -> MILK SUPPLY
B10: Data Input / PRODUCTION | C10: Data Input | D10: ="A"&MATCH(F10,'Data Input'!$F$13:$F$715,0)+15 -> A39 | E10: Data Input | F10: ='Data Input'!F36 -> PRODUCTION
B11: Data Input / REVENUE / 1. Base Commodity Prices | C11: Data Input | D11: ="A"&MATCH(G11,'Data Input'!$E$13:$E$715,0)+15 -> A86 | E11: Data Input | F11: ='Data Input'!F77 -> REVENUE | G11: ='Data Input'!E83 -> 1. Base Commodity Prices
B12: =E12&IF(F12="","",IF(G12=""," / "&F12," / "&F12&" / "&G12)) -> Data Input / REVENUE / 2. Sales Phasing | C12: Data Input | D12: ="A"&MATCH(G12,'Data Input'!$E$13:$E$715,0)+15 -> A100 | E12: Data Input | F12: =F11 -> REVENUE | G12: ='Data Input'!E97 -> 2. Sales Phasing
B13: =E13&IF(F13="","",IF(G13=""," / "&F13," / "&F13&" / "&G13)) -> Data Input / COLLECTION | C13: Data Input | D13: ="A"&MATCH(F13,'Data Input'!$F$13:$F$715,0)+15 -> A135 | E13: Data Input | F13: ='Data Input'!F132 -> COLLECTION
B14: Data Input / OPEX | C14: Data Input | D14: ="A"&MATCH(F14,'Data Input'!$F$13:$F$715,0)+15 -> A146 | E14: Data Input | F14: ='Data Input'!F143 -> OPEX
B15: Data Input / SUPPLY CHAIN | C15: Data Input | D15: ="A"&MATCH(F15,'Data Input'!$F$13:$F$715,0)+15 -> A192 | E15: Data Input | F15: ='Data Input'!F189 -> SUPPLY CHAIN
B16: Data Input / ADMINISTRATION | C16: Data Input | D16: ="A"&MATCH(F16,'Data Input'!$F$13:$F$715,0)+15 -> A219 | E16: Data Input | F16: ='Data Input'!F216 -> ADMINISTRATION
B17: Data Input / FIXED ASSETS | C17: Data Input | D17: ="A"&MATCH(F17,'Data Input'!$F$13:$F$715,0)+15 -> A232 | E17: Data Input | F17: ='Data Input'!F229 -> FIXED ASSETS
B18: Data Input / INCOME TAX | C18: Data Input | D18: ="A"&MATCH(F18,'Data Input'!$F$13:$F$715,0)+15 -> A243 | E18: Data Input | F18: ='Data Input'!F240 -> INCOME TAX
B19: Data Input / WORKING CAPITAL | C19: Data Input | D19: ="A"&MATCH(F19,'Data Input'!$F$13:$F$715,0)+15 -> A253 | E19: Data Input | F19: ='Data Input'!F250 -> WORKING CAPITAL
B20: Data Input / WORKING CAPITAL | C20: Data Input | D20: ="A"&MATCH(F20,'Data Input'!$F$13:$F$715,0)+14 -> A252 | E20: Data Input | F20: ='Data Input'!F250 -> WORKING CAPITAL
B21: Calculations / PRODUCTION | C21: Calculations | D21: ="A"&MATCH(F21,Calculations!$D$11:$D$1318,0)+13 -> A17 | E21: =C21 -> Calculations | F21: =Calculations!D14 -> PRODUCTION
B22: Calculations / COMPONENT MILK PRICE | C22: Calculations | D22: ="A"&MATCH(F22,Calculations!$D$11:$D$1318,0)+13 -> A221 | E22: Calculations | F22: =Calculations!D218 -> COMPONENT MILK PRICE
B23: Calculations / SALES REVENUE | C23: Calculations | D23: ="A"&MATCH(F23,Calculations!$D$11:$D$1318,0)+13 -> A282 | E23: Calculations | F23: =Calculations!D279 -> SALES REVENUE
B24: Calculations / COST OF MILK | C24: Calculations | D24: ="A"&MATCH(F24,Calculations!$D$11:$D$1318,0)+13 -> A507 | E24: Calculations | F24: =Calculations!D504 -> COST OF MILK
B25: Calculations / COLLECTION COSTS | C25: Calculations | D25: ="A"&MATCH(F25,Calculations!$D$11:$D$1318,0)+13 -> A523 | E25: Calculations | F25: =Calculations!D520 -> COLLECTION COSTS
B26: Calculations / OPEX | C26: Calculations | D26: ="A"&MATCH(F26,Calculations!$D$11:$D$1318,0)+13 -> A544 | E26: Calculations | F26: =Calculations!D541 -> OPEX
B27: Calculations / SUPPLY CHAIN COSTS | C27: Calculations | D27: ="A"&MATCH(F27,Calculations!$D$11:$D$1318,0)+13 -> A741 | E27: Calculations | F27: =Calculations!D738 -> SUPPLY CHAIN COSTS
B28: Calculations / ADMINISTRATION COSTS | C28: Calculations | D28: ="A"&MATCH(F28,Calculations!$D$11:$D$1318,0)+13 -> A830 | E28: Calculations | F28: =Calculations!D827 -> ADMINISTRATION COSTS
B29: Calculations / CURRENT ASSET MOVEMENTS / Receivables | C29: Calculations | D29: ="A"&MATCH(G29,Calculations!$D$11:$D$1318,0)+13 -> A868 | E29: Calculations | F29: =Calculations!D863 -> CURRENT ASSET MOVEMENTS | G29: =Calculations!D865 -> Receivables
B30: Calculations / CURRENT ASSET MOVEMENTS / INVENTORY | C30: Calculations | D30: ="A"&MATCH(G30,Calculations!$D$11:$D$1318,0)+13 -> A916 | E30: Calculations | F30: =F29 -> CURRENT ASSET MOVEMENTS | G30: =Calculations!D913 -> INVENTORY
B31: Calculations / CURRENT LIABILITY MOVEMENTS / TRADE CREDITORS | C31: Calculations | D31: ="A"&MATCH(G31,Calculations!$D$11:$D$1318,0)+13 -> A1080 | E31: Calculations | F31: =Calculations!D1075 -> CURRENT LIABILITY MOVEMENTS | G31: =Calculations!D1077 -> TRADE CREDITORS
B32: Calculations / CURRENT LIABILITY MOVEMENTS / OWING TO SUPPLIERS | C32: Calculations | D32: ="A"&MATCH(G32,Calculations!$D$11:$D$1318,0)+13 -> A1138 | E32: Calculations | F32: =F31 -> CURRENT LIABILITY MOVEMENTS | G32: =Calculations!D1135 -> OWING TO SUPPLIERS
B33: Calculations / FIXED ASSETS | C33: Calculations | D33: ="A"&MATCH(F33,Calculations!$D$11:$D$1318,0)+13 -> A1169 | E33: Calculations | F33: =Calculations!D1166 -> FIXED ASSETS
B34: Calculations / CAPITAL CHARGE | C34: Calculations | D34: ="A"&MATCH(F34,Calculations!$D$11:$D$1318,0)+13 -> A1180 | E34: Calculations | F34: =Calculations!D1177 -> CAPITAL CHARGE
B35: Calculations / MILK PRICE CALCULATION | C35: Calculations | D35: ="A"&MATCH(F35,Calculations!$D$11:$D$1318,0)+13 -> A1211 | E35: Calculations | F35: =Calculations!D1208 -> MILK PRICE CALCULATION
B36: Calculations / TAX EXPENSE | C36: Calculations | D36: ="A"&MATCH(F36,Calculations!$D$11:$D$1318,0)+13 -> A1272 | E36: Calculations | F36: =Calculations!D1269 -> TAX EXPENSE
B37: Calculations / TAX PAYMENTS | C37: Calculations | D37: ="A"&MATCH(F37,Calculations!$D$11:$D$1318,0)+13 -> A1301 | E37: Calculations | F37: =Calculations!D1298 -> TAX PAYMENTS
B38: Summary | C38: Summary | D38: A1 | E38: Summary
B40: =E40&IF(F40="","",IF(G40=""," / "&F40," / "&F40&" / "&G40)) -> 
D67: Worksheet Names
D69: Global
D70: Data Input
D71: GDT
D72: Calculations
D73: Summary
D74: LookupTables
